BodyName,ServiceAreaCategorisation,ServiceDivisionCategorisation,ExpensesType,Date,TransactionNumber,Amount,CapitalorRevenue,SupplierName,MerchantCategory
Peterborough City Council,Financial Services,Finance,Services,02/07/2018,30180977,14640,Revenue,Penna Plc,Consultants Fees
Peterborough City Council,Corporate Items,Corporate Services,Agency Staff,02/07/2018,30180978,10906,Revenue,Penna Plc,External Temporary Staff
Peterborough City Council,Communities,Cultural Services,Services,02/07/2018,30180979,8850,Revenue,Penna Plc,Consultants Fees
Peterborough City Council,Corporate Items,Corporate Services,Agency Staff,02/07/2018,30180980,11527.5,Revenue,Penna Plc,External Temporary Staff
Peterborough City Council,Marketing & Communications,Marketing & Communications,Services,02/07/2018,30181267,900,Revenue,Peterborough Cathedral,Conferences/Events
Peterborough City Council,Adults,Home Services Delivery Model,Services,02/07/2018,30181268,1028.5,Revenue,Handyman Steve,Contractors
Peterborough City Council,Commissioning and Commercial Operations,Commissioning,Repair & Maintenance of Buildings,02/07/2018,30181320,1607,Revenue,Peterborough Engraving & City Sign Services,Premises Maintenance
Peterborough City Council,Adults,Independent Sector Placements,Services,02/07/2018,30181470,3767.2,Revenue,Community Care Solutions Ltd,Residential Care
Peterborough City Council,Adults,Independent Sector Placements,Services,02/07/2018,30181471,3767.2,Revenue,Community Care Solutions Ltd,Residential Care
Peterborough City Council,Adults,Independent Sector Placements,Services,02/07/2018,30181472,3767.2,Revenue,Community Care Solutions Ltd,Residential Care
Peterborough City Council,Adults,Independent Sector Placements,Services,02/07/2018,30181473,3767.2,Revenue,Community Care Solutions Ltd,Residential Care
Peterborough City Council,Adults,Independent Sector Placements,Services,02/07/2018,30181474,3784,Revenue,Community Care Solutions Ltd,Residential Care
Peterborough City Council,Corporate,Corporate,Non Revenue,02/07/2018,30181549,3506,Capital,Casbon Building Services,Grant Payment
Peterborough City Council,Corporate,Corporate,Non Revenue,02/07/2018,30181555,1578,Capital,MORLEY BUILDING SERVICES LTD,Grant Payment
Peterborough City Council,Corporate,Corporate,Non Revenue,02/07/2018,30181556,8600,Capital,Casbon Building Services,Grant Payment
Peterborough City Council,Corporate,Corporate,Non Revenue,02/07/2018,30181558,1755,Capital,Dolphin Mobility East Midlands Ltd,Grant Payment
Peterborough City Council,Adults,Home Services Delivery Model,Services,02/07/2018,30181561,2786.7,Revenue,Gaswise Services Ltd,Grant Payment
Peterborough City Council,"Cemeteries, Cremation & Registrars",Bereavement Service,"Tools, Equipment, Furniture & Materials",02/07/2018,30181708,1239,Revenue,Ashdown Supplies,Items For Resale
Peterborough City Council,Westcombe Engineering,Westcombe Engineering,"Tools, Equipment, Furniture & Materials",02/07/2018,30181718,8120,Revenue,BWC Aluminium Ltd,Items For Resale
Peterborough City Council,Commissioning and Commercial Operations,Commissioning,Third Party Payment,02/07/2018,30181723,30000,Revenue,Cambridgeshire Constabulary,Contributions
Peterborough City Council,Adults,Independent Sector Placements,Services,02/07/2018,30181820,1020.04,Revenue,GCH (North London) Ltd - Tudors,Residential Care
Peterborough City Council,Adults,Independent Sector Placements,Services,02/07/2018,30181821,2300,Revenue,GCH (North London) Ltd - Tudors,Residential Care
Peterborough City Council,Adults,Independent Sector Placements,Services,02/07/2018,30181822,1469.48,Revenue,GCH (North London) Ltd - Tudors,Residential Care
Peterborough City Council,Adults,Independent Sector Placements,Services,02/07/2018,30182067,670.04,Revenue,GCH (North London) Ltd - Tudors,Residential Care
Peterborough City Council,Adults,Independent Sector Placements,Services,02/07/2018,30182068,1733.72,Revenue,GCH (North London) Ltd - Tudors,Residential Care
Peterborough City Council,Adults,Independent Sector Placements,Services,02/07/2018,30182070,1776.24,Revenue,GCH (North London) Ltd - Tudors,Residential Care
Peterborough City Council,Adults,Independent Sector Placements,Services,02/07/2018,30182072,1559.6,Revenue,GCH (North London) Ltd - Tudors,Residential Care
Peterborough City Council,Adults,Independent Sector Placements,Services,02/07/2018,30182074,1526.56,Revenue,GCH (North London) Ltd - Tudors,Residential Care
Peterborough City Council,Adults,Independent Sector Placements,Services,02/07/2018,30182075,1222.48,Revenue,GCH (North London) Ltd - Tudors,Residential Care
Peterborough City Council,Adults,Independent Sector Placements,Services,02/07/2018,30182077,1061.36,Revenue,GCH (North London) Ltd - Tudors,Residential Care
Peterborough City Council,Adults,Independent Sector Placements,Services,02/07/2018,30182079,1305.48,Revenue,GCH (North London) Ltd - Tudors,Residential Care
Peterborough City Council,Adults,Independent Sector Placements,Services,02/07/2018,30182080,1023.84,Revenue,GCH (North London) Ltd - Tudors,Residential Care
Peterborough City Council,Adults,Independent Sector Placements,Services,02/07/2018,30182082,1223.16,Revenue,GCH (North London) Ltd - Tudors,Residential Care
Peterborough City Council,Adults,Independent Sector Placements,Services,02/07/2018,30182084,1188.68,Revenue,GCH (North London) Ltd - Tudors,Residential Care
Peterborough City Council,Adults,Independent Sector Placements,Services,02/07/2018,30182085,1517.28,Revenue,GCH (North London) Ltd - Tudors,Residential Care
Peterborough City Council,Adults,Independent Sector Placements,Services,02/07/2018,30182086,982.12,Revenue,GCH (North London) Ltd - Tudors,Residential Care
Peterborough City Council,Adults,Independent Sector Placements,Services,02/07/2018,30182087,942.96,Revenue,GCH (North London) Ltd - Tudors,Residential Care
Peterborough City Council,Adults,Independent Sector Placements,Services,02/07/2018,30182088,1703.04,Revenue,GCH (North London) Ltd - Tudors,Residential Care
Peterborough City Council,Adults,Independent Sector Placements,Services,02/07/2018,30182089,1369.48,Revenue,GCH (North London) Ltd - Tudors,Residential Care
Peterborough City Council,Adults,Independent Sector Placements,Services,02/07/2018,30182090,2021.88,Revenue,GCH (North London) Ltd - Tudors,Residential Care
Peterborough City Council,Commissioning and Commercial Operations,Clare Lodge,Agency Staff,02/07/2018,30182570,1856,Revenue,Wrixon Care Services,External Temporary Staff
Peterborough City Council,Commissioning and Commercial Operations,Clare Lodge,Agency Staff,02/07/2018,30182574,528,Revenue,Wrixon Care Services,External Temporary Staff
Peterborough City Council,HR,HR WFD & Training,Services,02/07/2018,30182597,1150,Revenue,Cambridgeshire County Council,Courses And Seminars
Peterborough City Council,Adults,Independent Sector Placements,Services,02/07/2018,30182625,4378.96,Revenue,Voyage,Home Care
Peterborough City Council,Adults,Independent Sector Placements,Services,02/07/2018,30182626,3743.92,Revenue,Voyage,Home Care
Peterborough City Council,Adults,Independent Sector Placements,Services,02/07/2018,30182627,1830.72,Revenue,Voyage,Home Care
Peterborough City Council,Adults,Independent Sector Placements,Services,02/07/2018,30182628,1988,Revenue,Voyage,Home Care
Peterborough City Council,Adults,Independent Sector Placements,Services,02/07/2018,30182629,4869.2,Revenue,Voyage,Residential Care
Peterborough City Council,Adults,Independent Sector Placements,Services,02/07/2018,30182630,3095.6,Revenue,Voyage,Home Care
Peterborough City Council,Adults,Independent Sector Placements,Services,02/07/2018,30182632,2328.8,Revenue,Voyage,Home Care
Peterborough City Council,Adults,Independent Sector Placements,Services,02/07/2018,30182633,5354.88,Revenue,Voyage,Residential Care
Peterborough City Council,Adults,Independent Sector Placements,Services,02/07/2018,30182635,2754.8,Revenue,Voyage,Home Care
Peterborough City Council,Adults,Independent Sector Placements,Services,02/07/2018,30182637,1931.2,Revenue,Voyage,Home Care
Peterborough City Council,Adults,Independent Sector Placements,Services,02/07/2018,30182640,1931.2,Revenue,Voyage,Home Care
Peterborough City Council,Corporate,Corporate,Non Revenue,02/07/2018,30182911,5059.85,Capital,Enterprise Managed Services Limited,Consultants Fees
Peterborough City Council,Corporate,Corporate,Non Revenue,02/07/2018,30182913,724.47,Capital,Enterprise Managed Services Limited,Consultants Fees
Peterborough City Council,Corporate,Corporate,Non Revenue,02/07/2018,30182920,2024.44,Capital,Enterprise Managed Services Limited,Consultants Fees
Peterborough City Council,Education,Special Educational Needs / Inclusion,Services,02/07/2018,30183013,560.49,Revenue,Children's Therapy Solutions Ltd,Occupational Health
Peterborough City Council,Education,Special Educational Needs / Inclusion,Services,02/07/2018,30183052,819.28,Revenue,Children's Therapy Solutions Ltd,Occupational Health
Peterborough City Council,Financial Services,Finance,Agency Staff,02/07/2018,30183106,19215,Revenue,Penna Plc,External Temporary Staff
Peterborough City Council,Adults,Independent Sector Placements,Services,02/07/2018,30183410,11780,Revenue,Exclusive Secure Care Services,Home Care
Peterborough City Council,Development and Construction,Development Management,Agency Staff,02/07/2018,30183811,1000.21,Revenue,Reed Specialist Recruitment Limited,External Temporary Staff
Peterborough City Council,Development and Construction,Planning Compliance,Agency Staff,02/07/2018,30183823,980.88,Revenue,Reed Specialist Recruitment Limited,External Temporary Staff
Peterborough City Council,Communities,Cultural Services,Services,02/07/2018,30183962,6195,Revenue,Penna Plc,Consultants Fees
Peterborough City Council,Adults,Independent Sector Placements,Services,02/07/2018,30184020,13185.71,Revenue,Alysia Caring Ltd T/a Cherry Blossom care Home,Residential Care
Peterborough City Council,Development and Construction,Planning Compliance,Agency Staff,02/07/2018,30184067,1177.06,Revenue,Reed Specialist Recruitment Limited,External Temporary Staff
Peterborough City Council,Corporate,Corporate,Non Revenue,02/07/2018,30184105,11636,Capital,Garfield Builders Ltd,Building And Site Works
Peterborough City Council,Adults,Independent Sector Placements,Services,02/07/2018,30184349,-6616.91,Revenue,Alysia Caring Ltd T/a Cherry Blossom care Home,Residential Care
Peterborough City Council,Adults,Independent Sector Placements,Services,02/07/2018,30184421,2300,Revenue,GCH (North London) Ltd - Tudors,Residential Care
Peterborough City Council,Adults,Independent Sector Placements,Services,02/07/2018,30184469,11470,Revenue,Accomplish Group Ltd (Milton Park),Residential Care
Peterborough City Council,Adults,Independent Sector Placements,Services,02/07/2018,30184470,-8510,Revenue,Accomplish Group Ltd (Milton Park),Residential Care
Peterborough City Council,Adults,Independent Sector Placements,Services,02/07/2018,30184533,599.76,Revenue,Alysia Caring Ltd T/a Cherry Blossom care Home,Residential Care
Peterborough City Council,Adults,Independent Sector Placements,Services,02/07/2018,30184534,578.34,Revenue,Alysia Caring Ltd T/a Cherry Blossom care Home,Residential Care
Peterborough City Council,Corporate,Corporate,Non Revenue,02/07/2018,30184590,4744,Capital,Gaswise Services Ltd,Grant Payment
Peterborough City Council,Corporate,Corporate,Non Revenue,02/07/2018,30184591,5399,Capital,Gaswise Services Ltd,Grant Payment
Peterborough City Council,Corporate,Corporate,Non Revenue,02/07/2018,30184592,3107,Capital,MORLEY BUILDING SERVICES LTD,Grant Payment
Peterborough City Council,Legal Services,Legal Services,Services,02/07/2018,30184663,1874.5,Revenue,The Psychological Service,Expert Witnesses
Peterborough City Council,Communities,Housing,Services,02/07/2018,30184699,1300,Revenue,Harrison Rose Property Management,Financial Assistance
Peterborough City Council,Communities,Housing,Services,02/07/2018,30184702,1000,Revenue,Redacted Personal Data,Financial Assistance
Peterborough City Council,Communities,Housing,Services,02/07/2018,30184703,700,Revenue,Redacted Personal Data,Financial Assistance
Peterborough City Council,Children's & Safeguarding,Access to Resources & Specialist Commissioning,Agency Staff,02/07/2018,30184712,808.08,Revenue,HCL Social Care Ltd,External Temporary Staff
Peterborough City Council,Director,Director,Agency Staff,02/07/2018,30184727,730.08,Revenue,Reed Specialist Recruitment Limited,External Temporary Staff
Peterborough City Council,Director,Director,Agency Staff,02/07/2018,30184734,973.44,Revenue,Reed Specialist Recruitment Limited,External Temporary Staff
Peterborough City Council,Commissioning and Commercial Operations,Commissioning,Third Party Payment,02/07/2018,30184741,190290.75,Revenue,Barnardo Services Limited,Third Party Payments - Contract
Peterborough City Council,Director,Director,Agency Staff,02/07/2018,30184742,1460.16,Revenue,Reed Specialist Recruitment Limited,External Temporary Staff
Peterborough City Council,Corporate,Corporate,Non Revenue,02/07/2018,30184743,203823.07,Capital,Southview Building Solutions Ltd,Building And Site Works
Peterborough City Council,Commissioning and Commercial Operations,Early Years & Quality Improvement,Services,02/07/2018,30184747,1010.1,Revenue,St Johns C of E Pre-School,Grant Payment
Peterborough City Council,Commissioning and Commercial Operations,Early Years & Quality Improvement,Services,02/07/2018,30184749,601.38,Revenue,Discovery Pre School,Grant Payment
Peterborough City Council,Commissioning and Commercial Operations,Early Years & Quality Improvement,Services,02/07/2018,30184750,1735.5,Revenue,Family Action,Grant Payment
Peterborough City Council,Commissioning and Commercial Operations,Early Years & Quality Improvement,Services,02/07/2018,30184755,5187,Revenue,Manor House Nursery (Peterborough) Ltd,Grant Payment
Peterborough City Council,Commissioning and Commercial Operations,Early Years & Quality Improvement,Services,02/07/2018,30184756,1783.27,Revenue,Longthorpe Playgroup,Grant Payment
Peterborough City Council,Commissioning and Commercial Operations,Early Years & Quality Improvement,Services,02/07/2018,30184758,4131.84,Revenue,Little Tigers Day Nursery,Grant Payment
Peterborough City Council,Commissioning and Commercial Operations,Early Years & Quality Improvement,Services,02/07/2018,30184760,4285.06,Revenue,Little Stars Day Nursery,Grant Payment
Peterborough City Council,Commissioning and Commercial Operations,Early Years & Quality Improvement,Services,02/07/2018,30184761,2858.39,Revenue,Little Blossoms,Grant Payment
Peterborough City Council,Commissioning and Commercial Operations,Early Years & Quality Improvement,Services,02/07/2018,30184763,715.86,Revenue,Pakistan Comm Ass of PBoro Pre- School,Grant Payment
Peterborough City Council,Commissioning and Commercial Operations,Early Years & Quality Improvement,Services,02/07/2018,30184770,5481.52,Revenue,ZigZag Day Nursery Ltd,Grant Payment
Peterborough City Council,Commissioning and Commercial Operations,Early Years & Quality Improvement,Services,02/07/2018,30184771,1304.16,Revenue,Sunflower Seed Pre-School,Grant Payment
Peterborough City Council,Commissioning and Commercial Operations,Early Years & Quality Improvement,Services,02/07/2018,30184773,973.18,Revenue,SDN Ltd t/a Stars Day Nursery Bushfield,Grant Payment
Peterborough City Council,Commissioning and Commercial Operations,Early Years & Quality Improvement,Services,02/07/2018,30184776,3426.28,Revenue,Peterborough High School Nursery,Grant Payment
Peterborough City Council,Commissioning and Commercial Operations,Early Years & Quality Improvement,Services,02/07/2018,30184782,4928.9,Revenue,Newborough Pre-School Playgroup,Grant Payment
Peterborough City Council,Commissioning and Commercial Operations,Early Years & Quality Improvement,Services,02/07/2018,30184786,11398.01,Revenue,The Owls' Nest Pre-School,Grant Payment
Peterborough City Council,Commissioning and Commercial Operations,Early Years & Quality Improvement,Services,02/07/2018,30184792,1269.45,Revenue,Newark Playgroup,Grant Payment
Peterborough City Council,Commissioning and Commercial Operations,Early Years & Quality Improvement,Services,02/07/2018,30184795,2261.6,Revenue,The Learning Tree Kindergarten,Grant Payment
Peterborough City Council,Peterborough Highway Services,Transport & Infrastructure Commissioning,Services,02/07/2018,30184800,14263.27,Revenue,Statutory Payment of Concessionary Fares to Bus Provider,Contractors
Peterborough City Council,Commissioning and Commercial Operations,Early Years & Quality Improvement,Services,02/07/2018,30184802,4559.73,Revenue,Stars Pre-School Welland,Grant Payment
Peterborough City Council,Commissioning and Commercial Operations,Early Years & Quality Improvement,Services,02/07/2018,30184805,5553.32,Revenue,Acorn Academy Day Nursery Ltd,Grant Payment
Peterborough City Council,Commissioning and Commercial Operations,Early Years & Quality Improvement,Services,02/07/2018,30184807,9867,Revenue,Apricot Childcare,Grant Payment
Peterborough City Council,Commissioning and Commercial Operations,Early Years & Quality Improvement,Services,02/07/2018,30184812,3162.9,Revenue,Busy Bees Pre-School,Grant Payment
Peterborough City Council,Commissioning and Commercial Operations,Early Years & Quality Improvement,Services,02/07/2018,30184813,2390.96,Revenue,Busy Bunnies Nursery,Grant Payment
Peterborough City Council,Marketing & Communications,Marketing & Communications,Services,02/07/2018,30184836,1000,Revenue,Codename Media Ltd,Advertising
Peterborough City Council,Children's & Safeguarding,Commissioning - CSC,Services,02/07/2018,8000119355,673.84,Revenue,Redacted Personal Data,Financial Assistance
Peterborough City Council,Children's & Safeguarding,Commissioning - CSC,Services,02/07/2018,8000119355,766.34,Revenue,Redacted Personal Data,Financial Assistance
Peterborough City Council,Children's & Safeguarding,Commissioning - CSC,Services,02/07/2018,8000119355,576.38,Revenue,Redacted Personal Data,Financial Assistance
Peterborough City Council,Children's & Safeguarding,Commissioning - CSC,Services,02/07/2018,8000119355,866.92,Revenue,Redacted Personal Data,Financial Assistance
Peterborough City Council,Children's & Safeguarding,Commissioning - CSC,Services,02/07/2018,8000119355,2022.82,Revenue,Redacted Personal Data,Financial Assistance
Peterborough City Council,Children's & Safeguarding,Commissioning - CSC,Services,02/07/2018,8000119355,627.18,Revenue,Redacted Personal Data,Financial Assistance
Peterborough City Council,Children's & Safeguarding,Commissioning - CSC,Services,02/07/2018,8000119355,748.76,Revenue,Redacted Personal Data,Financial Assistance
Peterborough City Council,Children's & Safeguarding,Commissioning - CSC,Services,02/07/2018,8000119355,748.76,Revenue,Redacted Personal Data,Financial Assistance
Peterborough City Council,Children's & Safeguarding,Commissioning - CSC,Services,02/07/2018,8000119355,1260,Revenue,Redacted Personal Data,Financial Assistance
Peterborough City Council,"Waste, Cleansing and Open Spaces",Waste & Operational Svs Mgmt,Third Party Payments,02/07/2018,8000120641,20100,Revenue,JB Extreme Landscapes,Third Party Payments - Contract
Peterborough City Council,Children's & Safeguarding,Commissioning - CSC,Third Party Payments,03/07/2018,8000122327,531035.67,Revenue,IAS TACT,Third Party Payments - Contract
Peterborough City Council,Corporate,Corporate,Non Revenue,04/07/2018,30147416,81957.78,Capital,Enterprise Managed Services Limited,Consultants Fees
Peterborough City Council,Corporate,Corporate,Non Revenue,04/07/2018,30180454,2137.5,Capital,NPS Peterborough Ltd,Consultants Fees
Peterborough City Council,Communities,Targeted Youth Service,Services,04/07/2018,30181104,2900,Revenue,Foundry Mountain Activities Ltd,Programmes
Peterborough City Council,Corporate,Corporate,Non Revenue,04/07/2018,30181550,3753,Capital,MORLEY BUILDING SERVICES LTD,Grant Payment
Peterborough City Council,Corporate,Corporate,Non Revenue,04/07/2018,30181562,2016,Capital,P F S Builders & Contractors,Grant Payment
Peterborough City Council,Peterborough Highway Services,Network and Traffic Management,Services,04/07/2018,30181633,660.95,Revenue,Johnston Press Midlands Division,Advertising
Peterborough City Council,Children's & Safeguarding,Commissioning - CSC,Services,04/07/2018,30181710,148000,Revenue,CHUMS Social Enterprise CIC,Hired Services
Peterborough City Council,Adults,Independent Sector Placements,Services,04/07/2018,30181812,10093.04,Revenue,ABBEYGATE REST HOME,Residential Care
Peterborough City Council,Adults,Independent Sector Placements,Services,04/07/2018,30181814,1001.25,Revenue,Sagecare,Home Care
Peterborough City Council,Peterborough Highway Services,Transport & Infrastructure Commissioning,Services,04/07/2018,30181981,6301,Revenue,Buckinghamshire County Council,Hired Services
Peterborough City Council,ICT,ICT,Services,04/07/2018,30182114,1500,Revenue,Capita Business Services Ltd,IT Services
Peterborough City Council,Adults,Block Contracts,Third Party Payment,04/07/2018,30182115,6894.96,Revenue,Axiom Housing Association Ltd,Third Party Payments - Contract
Peterborough City Council,ICT,ICT,Agency Staff,04/07/2018,30182119,4000,Revenue,Cranford Solutions Ltd,External Temporary Staff
Peterborough City Council,Commissioning and Commercial Operations,Commissioning,Services,04/07/2018,30182148,13750,Revenue,NewArk Play Association Ltd,Hired Services
Peterborough City Council,Public Health,PH Commissioning,Third Party Payment,04/07/2018,30182150,591.98,Revenue,NHS Cambs & P'boro CCG (Clinical Commissioning Group),Third Party Payments - Contract
Peterborough City Council,Adults,OP/PD/SI,"Tools, Equipment, Furniture & Materials",04/07/2018,30182154,1355.58,Revenue,Handicare Accessibility Ltd,Occupational Therapy Equipment
Peterborough City Council,Adults,Day opportunities - Older People,Agency Staff,04/07/2018,30182351,976.8,Revenue,Medicare First Ltd,External Temporary Staff
Peterborough City Council,Adults,Independent Sector Placements,Services,04/07/2018,30182382,2400,Revenue,FIELD HOUSE (EYE) LTD,Residential Care
Peterborough City Council,Legal Services,Legal Services,Services,04/07/2018,30182403,550,Revenue,"Elliott, Ms Margot",Legal Costs
Peterborough City Council,Legal Services,Legal Services,Services,04/07/2018,30182405,2740,Revenue,"Corbino, Mr David",Legal Costs
Peterborough City Council,"Cemeteries, Cremation & Registrars",Bereavement Service,Services,04/07/2018,30182483,897.35,Revenue,Scribes Ltd,Hired Services
Peterborough City Council,Peterborough Highway Services,Transport & Infrastructure Commissioning,Services,04/07/2018,30182522,188901.95,Revenue,Stagecoach in Peterborough,Contractors
Peterborough City Council,Corporate,Corporate,Non Revenue,04/07/2018,30182536,2765,Capital,Dolphin Mobility East Midlands Ltd,Grant Payment
Peterborough City Council,Commissioning and Commercial Operations,Clare Lodge,Agency Staff,04/07/2018,30182584,1400,Revenue,Wrixon Care Services,External Temporary Staff
Peterborough City Council,Constitutional Services,Elections,Rents,04/07/2018,30182608,10673.5,Revenue,Kingsgate Trading Ltd,Hire Of Premises
Peterborough City Council,Marketing & Communications,Marketing & Communications,Services,04/07/2018,30182634,525,Revenue,XL Circondare Ltd t/a  XL Press,Printing
Peterborough City Council,Corporate Property,Office Accomodation,Cleaning & Domestic Supplies,04/07/2018,30182639,1477.28,Revenue,Beebys Ltd,Cleaning
Peterborough City Council,Children's & Safeguarding,Adult & Children Safeguarding Board,Rents,04/07/2018,30182647,4080,Revenue,Deafblind Uk Trading Ltd,Hire Of Premises
Peterborough City Council,"Director, OP & JV",Growth HoS,Services,04/07/2018,30182661,1750,Revenue,Pinsent Masons,Legal Costs
Peterborough City Council,Adults,Independent Sector Placements,Services,04/07/2018,30182671,1847.6,Revenue,Alysia Caring Ltd T/a Cherry Blossom care Home,Residential Care
Peterborough City Council,Adults,Independent Sector Placements,Services,04/07/2018,30182672,2737.04,Revenue,Alysia Caring Ltd T/a Cherry Blossom care Home,Residential Care
Peterborough City Council,Adults,Independent Sector Placements,Services,04/07/2018,30182673,2930.04,Revenue,Alysia Caring Ltd T/a Cherry Blossom care Home,Residential Care
Peterborough City Council,Adults,Independent Sector Placements,Services,04/07/2018,30182674,3100,Revenue,Alysia Caring Ltd T/a Cherry Blossom care Home,Residential Care
Peterborough City Council,Adults,Independent Sector Placements,Services,04/07/2018,30182675,3463.32,Revenue,Alysia Caring Ltd T/a Cherry Blossom care Home,Residential Care
Peterborough City Council,Legal Services,Legal Services,Services,04/07/2018,30182680,550,Revenue,"Elliott, Ms Margot",Legal Costs
Peterborough City Council,"Waste, Cleansing and Open Spaces",Waste Management,Services,04/07/2018,30182688,17721.95,Revenue,AmeyCespa (East) Ltd,Recycling
Peterborough City Council,Legal Services,Legal Services,Agency Staff,04/07/2018,30182696,935,Revenue,Venn Group Ltd,External Temporary Staff
Peterborough City Council,Legal Services,Legal Services,Agency Staff,04/07/2018,30182698,1380,Revenue,Venn Group Ltd,External Temporary Staff
Peterborough City Council,Adults,Independent Sector Placements,Services,04/07/2018,30182863,2472.64,Revenue,SOCIAL CARE SOLUTIONS LTD,Home Care
Peterborough City Council,Adults,Independent Sector Placements,Services,04/07/2018,30182865,7700.4,Revenue,SOCIAL CARE SOLUTIONS LTD,Home Care
Peterborough City Council,Adults,Independent Sector Placements,Services,04/07/2018,30182866,2462.44,Revenue,SOCIAL CARE SOLUTIONS LTD,Home Care
Peterborough City Council,Adults,Independent Sector Placements,Services,04/07/2018,30182869,883.96,Revenue,Pilgrim Havens,Residential Care
Peterborough City Council,Adults,Independent Sector Placements,Services,04/07/2018,30182870,1617.16,Revenue,Pilgrim Havens,Residential Care
Peterborough City Council,Adults,Independent Sector Placements,Services,04/07/2018,30182871,1329.48,Revenue,Pilgrim Havens,Residential Care
Peterborough City Council,Adults,Independent Sector Placements,Services,04/07/2018,30182872,1023.84,Revenue,Pilgrim Havens,Residential Care
Peterborough City Council,Adults,Independent Sector Placements,Services,04/07/2018,30182873,1269.48,Revenue,Pilgrim Havens,Residential Care
Peterborough City Council,Adults,Independent Sector Placements,Services,04/07/2018,30182874,1567.48,Revenue,Pilgrim Havens,Residential Care
Peterborough City Council,Adults,Independent Sector Placements,Services,04/07/2018,30182876,3600,Revenue,Alysia Caring Ltd T/a Cherry Blossom care Home,Residential Care
Peterborough City Council,Adults,Independent Sector Placements,Services,04/07/2018,30182879,2930.04,Revenue,Alysia Caring Ltd T/a Cherry Blossom care Home,Residential Care
Peterborough City Council,Adults,Independent Sector Placements,Services,04/07/2018,30182881,2825.04,Revenue,Alysia Caring Ltd T/a Cherry Blossom care Home,Residential Care
Peterborough City Council,Adults,Independent Sector Placements,Services,04/07/2018,30182892,3453.76,Revenue,Alysia Caring Ltd T/a Cherry Blossom care Home,Residential Care
Peterborough City Council,Adults,Independent Sector Placements,Services,04/07/2018,30182893,3100,Revenue,Alysia Caring Ltd T/a Cherry Blossom care Home,Residential Care
Peterborough City Council,Adults,Independent Sector Placements,Services,04/07/2018,30182894,2737.04,Revenue,Alysia Caring Ltd T/a Cherry Blossom care Home,Residential Care
Peterborough City Council,Adults,Independent Sector Placements,Services,04/07/2018,30182895,1847.6,Revenue,Alysia Caring Ltd T/a Cherry Blossom care Home,Residential Care
Peterborough City Council,Director,Director,Services,04/07/2018,30182917,1500,Revenue,The Staff College,Subscriptions
Peterborough City Council,Public Health,PH Commissioning,Third Party Payment,04/07/2018,30182987,8608.26,Revenue,NHS Cambs & P'boro CCG (Clinical Commissioning Group),Third Party Payments - Contract
Peterborough City Council,Adults,Independent Sector Placements,Services,04/07/2018,30183053,900,Revenue,SOCIAL CARE SOLUTIONS LTD,Home Care
Peterborough City Council,Adults,Independent Sector Placements,Services,04/07/2018,30183054,7509.6,Revenue,SOCIAL CARE SOLUTIONS LTD,Home Care
Peterborough City Council,Adults,Independent Sector Placements,Services,04/07/2018,30183055,6591,Revenue,SOCIAL CARE SOLUTIONS LTD,Home Care
Peterborough City Council,Adults,Independent Sector Placements,Services,04/07/2018,30183056,3000,Revenue,SOCIAL CARE SOLUTIONS LTD,Home Care
Peterborough City Council,Adults,Independent Sector Placements,Services,04/07/2018,30183057,7509.6,Revenue,SOCIAL CARE SOLUTIONS LTD,Home Care
Peterborough City Council,Adults,Independent Sector Placements,Services,04/07/2018,30183058,3290.12,Revenue,SOCIAL CARE SOLUTIONS LTD,Home Care
Peterborough City Council,Adults,Independent Sector Placements,Services,04/07/2018,30183059,6426,Revenue,SOCIAL CARE SOLUTIONS LTD,Home Care
Peterborough City Council,Adults,Independent Sector Placements,Services,04/07/2018,30183060,2128,Revenue,Alysia Caring Ltd T/a Cherry Blossom care Home,Residential Care
Peterborough City Council,Adults,Independent Sector Placements,Services,04/07/2018,30183061,1043.94,Revenue,Alysia Caring Ltd T/a Cherry Blossom care Home,Residential Care
Peterborough City Council,Westcombe Engineering,Westcombe Engineering,"Tools, Equipment, Furniture & Materials",04/07/2018,30183071,556.39,Revenue,Haas Automation,Equipment Repairs
Peterborough City Council,Adults,Independent Sector Placements,Services,04/07/2018,30183118,1090.4,Revenue,FIELD HOUSE (EYE) LTD,Residential Care
Peterborough City Council,Adults,Independent Sector Placements,Services,04/07/2018,30183119,1110.44,Revenue,FIELD HOUSE (EYE) LTD,Residential Care
Peterborough City Council,Adults,Independent Sector Placements,Services,04/07/2018,30183120,1269.48,Revenue,FIELD HOUSE (EYE) LTD,Residential Care
Peterborough City Council,Adults,Independent Sector Placements,Services,04/07/2018,30183137,1269.48,Revenue,FIELD HOUSE (EYE) LTD,Residential Care
Peterborough City Council,Peterborough Highway Services,Transport & Infrastructure Commissioning,Services,04/07/2018,30183165,2861.64,Revenue,Centrebus North Ltd,Contractors
Peterborough City Council,Adults,Independent Sector Placements,Services,04/07/2018,30183188,1269.48,Revenue,FIELD HOUSE (EYE) LTD,Residential Care
Peterborough City Council,Adults,Independent Sector Placements,Services,04/07/2018,30183189,1269.48,Revenue,FIELD HOUSE (EYE) LTD,Residential Care
Peterborough City Council,Adults,Independent Sector Placements,Services,04/07/2018,30183192,944.64,Revenue,FIELD HOUSE (EYE) LTD,Residential Care
Peterborough City Council,Adults,Independent Sector Placements,Services,04/07/2018,30183193,944.64,Revenue,FIELD HOUSE (EYE) LTD,Residential Care
Peterborough City Council,Adults,Independent Sector Placements,Services,04/07/2018,30183221,952.84,Revenue,FIELD HOUSE (EYE) LTD,Residential Care
Peterborough City Council,Adults,Independent Sector Placements,Services,04/07/2018,30183223,921.04,Revenue,FIELD HOUSE (EYE) LTD,Residential Care
Peterborough City Council,Adults,Independent Sector Placements,Services,04/07/2018,30183233,2400,Revenue,FIELD HOUSE (EYE) LTD,Residential Care
Peterborough City Council,Children's & Safeguarding,Child Health,Services,04/07/2018,30183324,2900.63,Revenue,Circles Network,Purchased Social Care Services
Peterborough City Council,Adults,Independent Sector Placements,Services,04/07/2018,30183402,9542.4,Revenue,Voyage,Home Care
Peterborough City Council,Children's & Safeguarding,Access to Resources & Specialist Commissioning,Services,04/07/2018,30183525,12680.4,Revenue,Aurora Care & Education Opco Ltd,Boarding Out Allowances
Peterborough City Council,Children's & Safeguarding,Access to Resources & Specialist Commissioning,Services,04/07/2018,30183528,11400,Revenue,Positive Steps (Care Services) Ltd,Boarding Out Allowances
Peterborough City Council,Children's & Safeguarding,Access to Resources & Specialist Commissioning,Services,04/07/2018,30183530,19069.43,Revenue,Blue Mountain Homes,Boarding Out Allowances
Peterborough City Council,Adults,OP/PD/SI,"Tools, Equipment, Furniture & Materials",04/07/2018,30183538,83043.68,Revenue,NRS Healthcare,Occupational Therapy Equipment
Peterborough City Council,Adults,Independent Sector Placements,Services,04/07/2018,30183793,644.2,Revenue,Pilgrim Havens,Residential Care
Peterborough City Council,Corporate Property,Office Accomodation,Agency Staff,04/07/2018,30183813,4730.04,Revenue,Reed Specialist Recruitment Limited,External Temporary Staff
Peterborough City Council,Adults,Independent Sector Placements,Services,04/07/2018,30183999,2447.6,Revenue,Alysia Caring Ltd T/a Cherry Blossom care Home,Residential Care
Peterborough City Council,Adults,Independent Sector Placements,Services,04/07/2018,30184041,1912.6,Revenue,Alysia Caring Ltd T/a Cherry Blossom care Home,Residential Care
Peterborough City Council,Financial Services,Finance,Agency Staff,04/07/2018,30184049,594.75,Revenue,Reed Specialist Recruitment Limited,External Temporary Staff
Peterborough City Council,ICT,ICT,Agency Staff,04/07/2018,30184072,689.98,Revenue,Reed Specialist Recruitment Limited,External Temporary Staff
Peterborough City Council,Peterborough Highway Services,Transport & Infrastructure Commissioning,Repair & Maintenance of Buildings,04/07/2018,30184104,2016.72,Revenue,The K A Wing Group Ltd,Premises Maintenance
Peterborough City Council,Adults,Independent Sector Placements,Services,04/07/2018,30184147,857.04,Revenue,Alysia Caring Ltd T/a Cherry Blossom care Home,Residential Care
Peterborough City Council,Adults,Independent Sector Placements,Services,04/07/2018,30184237,1761.44,Revenue,Alysia Caring Ltd T/a Cherry Blossom care Home,Residential Care
Peterborough City Council,Adults,Independent Sector Placements,Services,04/07/2018,30184238,589.44,Revenue,Alysia Caring Ltd T/a Cherry Blossom care Home,Residential Care
Peterborough City Council,Adults,Independent Sector Placements,Services,04/07/2018,30184239,2547.88,Revenue,Alysia Caring Ltd T/a Cherry Blossom care Home,Residential Care
Peterborough City Council,Adults,Independent Sector Placements,Services,04/07/2018,30184240,1583.11,Revenue,Alysia Caring Ltd T/a Cherry Blossom care Home,Residential Care
Peterborough City Council,Adults,Independent Sector Placements,Services,04/07/2018,30184241,1747.12,Revenue,Alysia Caring Ltd T/a Cherry Blossom care Home,Residential Care
Peterborough City Council,Peterborough Highway Services,Transport & Infrastructure Commissioning,Services,04/07/2018,30184258,1000,Revenue,Tym Huckin Ltd,Contractors
Peterborough City Council,Corporate,Corporate,Non Revenue,04/07/2018,30184440,2268.6,Capital,Reed Specialist Recruitment Limited,Consultants Fees
Peterborough City Council,Adults,Independent Sector Placements,Services,04/07/2018,30184535,4421.44,Revenue,Alysia Caring Ltd T/a Cherry Blossom care Home,Residential Care
Peterborough City Council,Education,PFI,Energy Costs,04/07/2018,30184538,696.1,Revenue,Corona Energy Retail 4 Limited,Gas
Peterborough City Council,Education,PFI,Energy Costs,04/07/2018,30184538,546.43,Revenue,Corona Energy Retail 4 Limited,Gas
Peterborough City Council,Corporate Property,Strategic Projects,Energy Costs,04/07/2018,30184540,529.49,Revenue,Corona Energy Retail 4 Limited,Gas
Peterborough City Council,Corporate Property,Strategic Projects,Energy Costs,04/07/2018,30184540,587.98,Revenue,Corona Energy Retail 4 Limited,Gas
Peterborough City Council,Corporate Property,Strategic Projects,Energy Costs,04/07/2018,30184540,1251.95,Revenue,Corona Energy Retail 4 Limited,Gas
Peterborough City Council,Education,PFI,Energy Costs,04/07/2018,30184551,675.58,Revenue,Corona Energy Retail 4 Limited,Gas
Peterborough City Council,Corporate Items,Corporate Services,Services,04/07/2018,30184560,11625,Revenue,East of England LGA,Consultants Fees
Peterborough City Council,Adults,Home Services Delivery Model,Third Party Payment,04/07/2018,30184569,5017.14,Revenue,Peterborough Womens Aid,Grant-Third Party
Peterborough City Council,Legal Services,Legal Services,Services,04/07/2018,30184635,550,Revenue,"Walji, Miss Shabnam",Legal Costs
Peterborough City Council,Legal Services,Legal Services,Services,04/07/2018,30184637,550,Revenue,"Walji, Miss Shabnam",Legal Costs
Peterborough City Council,Children's & Safeguarding,Access to Resources & Specialist Commissioning,Agency Staff,04/07/2018,30184728,880,Revenue,HCL Social Care Ltd,External Temporary Staff
Peterborough City Council,City Centre Management,"Markets, Tourism & Events",Energy Costs,04/07/2018,30184767,1090.55,Revenue,British Gas Business,Electricity
Peterborough City Council,Commissioning and Commercial Operations,Early Years & Quality Improvement,Services,04/07/2018,30184778,706.68,Revenue,Seedlings Nursery,Grant Payment
Peterborough City Council,Education,PFI,Energy Costs,04/07/2018,30184799,514.37,Revenue,Corona Energy Retail 4 Limited,Gas
Peterborough City Council,Corporate Property,Office Accomodation,Energy Costs,04/07/2018,30184799,681.01,Revenue,Corona Energy Retail 4 Limited,Gas
Peterborough City Council,Peterborough Highway Services,Highway Services - HoS,Agency Staff,04/07/2018,30184817,774.42,Revenue,Reed Specialist Recruitment Limited,External Temporary Staff
Peterborough City Council,Corporate,Corporate,Non Revenue,04/07/2018,30184818,2583.6,Capital,Reed Specialist Recruitment Limited,Consultants Fees
Peterborough City Council,Communities,Performance & Information,Agency Staff,04/07/2018,30184819,985.88,Revenue,Reed Specialist Recruitment Limited,External Temporary Staff
Peterborough City Council,Adults,Independent Sector Placements,Services,04/07/2018,30184830,1490.25,Revenue,Springfield Care Limited  T/a Caring Crew,Home Care
Peterborough City Council,Adults,Independent Sector Placements,Services,04/07/2018,30184833,1841,Revenue,Springfield Care Limited  T/a Caring Crew,Home Care
Peterborough City Council,ICT,ICT,Services,04/07/2018,30184861,690.48,Revenue,Amazon Web Services Inc.,Computer Software
Peterborough City Council,ICT,ICT,Services,04/07/2018,30184862,645.68,Revenue,Amazon Web Services Inc.,Computer Software
Peterborough City Council,ICT,ICT,Services,04/07/2018,30184863,954.62,Revenue,Amazon Web Services Inc.,Computer Software
Peterborough City Council,ICT,ICT,Services,04/07/2018,30184864,2199.64,Revenue,Amazon Web Services Inc.,Computer Software
Peterborough City Council,ICT,ICT,Services,04/07/2018,30184865,2199.64,Revenue,Amazon Web Services Inc.,Computer Software
Peterborough City Council,Communities,Housing,Services,04/07/2018,30184870,4800,Revenue,Axiom Housing Association Ltd,Financial Assistance
Peterborough City Council,Communities,Housing,Services,04/07/2018,30184871,3600,Revenue,Axiom Housing Association Ltd,Financial Assistance
Peterborough City Council,Communities,Cultural Services,Energy Costs,04/07/2018,30184878,8650.3,Revenue,Corona Energy Retail 4 Limited,Gas
Peterborough City Council,Communities,Cultural Services,Energy Costs,04/07/2018,30184878,5771.53,Revenue,Corona Energy Retail 4 Limited,Gas
Peterborough City Council,"Waste, Cleansing and Open Spaces",Waste & Operational Svs Mgmt,Water Services,04/07/2018,30184880,846.62,Revenue,Anglian Water Business National,Water
Peterborough City Council,"Waste, Cleansing and Open Spaces",Waste & Operational Svs Mgmt,Water Services,04/07/2018,30184880,820.05,Revenue,Anglian Water Business National,Water
Peterborough City Council,"Waste, Cleansing and Open Spaces",Waste & Operational Svs Mgmt,Water Services,04/07/2018,30184880,3074.44,Revenue,Anglian Water Business National,Water
Peterborough City Council,Commissioning and Commercial Operations,Commissioning,Services,04/07/2018,30184884,1235,Revenue,121 Social Care Limited,Hired Services
Peterborough City Council,Education,Special Educational Needs / Inclusion,Services,04/07/2018,30184909,1848,Revenue,Tripod Learning Ltd,Education Expenses
Peterborough City Council,Adults,Strategic Commissioning - Management,Agency Staff,04/07/2018,30184941,1772.16,Revenue,Reed Specialist Recruitment Limited,External Temporary Staff
Peterborough City Council,Financial Services,Finance,Agency Staff,04/07/2018,30184944,600.75,Revenue,Reed Specialist Recruitment Limited,External Temporary Staff
Peterborough City Council,Adults,Strategic Commissioning - Management,Agency Staff,04/07/2018,30184947,601.95,Revenue,Reed Specialist Recruitment Limited,External Temporary Staff
Peterborough City Council,Adults,Finance,Agency Staff,04/07/2018,30184948,2433.6,Revenue,Reed Specialist Recruitment Limited,External Temporary Staff
Peterborough City Council,Legal Services,Legal Services,Agency Staff,04/07/2018,30184950,1539.29,Revenue,Reed Specialist Recruitment Limited,External Temporary Staff
Peterborough City Council,Adults,Strategic Commissioning - Management,Agency Staff,04/07/2018,30184952,698.92,Revenue,Reed Specialist Recruitment Limited,External Temporary Staff
Peterborough City Council,Adults,Strategic Commissioning - Management,Agency Staff,04/07/2018,30184953,848.5,Revenue,Reed Specialist Recruitment Limited,External Temporary Staff
Peterborough City Council,Legal Services,Legal Services,Agency Staff,04/07/2018,30184955,1702.75,Revenue,Reed Specialist Recruitment Limited,External Temporary Staff
Peterborough City Council,Financial Services,Finance,Agency Staff,04/07/2018,30184956,640.08,Revenue,Reed Specialist Recruitment Limited,External Temporary Staff
Peterborough City Council,Corporate Property,Office Accomodation,Services,04/07/2018,30184978,1008.9,Revenue,Data Solutions 2016 Ltd,Confidential Waste Disposal
Peterborough City Council,Adults,Independent Sector Placements,Services,04/07/2018,30184985,6332.04,Revenue,NORTH EAST AUTISM SOCIETY,Residential Care
Peterborough City Council,Adults,Independent Sector Placements,Services,04/07/2018,30184990,6332.04,Revenue,NORTH EAST AUTISM SOCIETY,Residential Care
Peterborough City Council,Communities,Cohesion,Rents,04/07/2018,30184996,575,Revenue,Redacted Personal Data,Rent
Peterborough City Council,Communities,Cohesion,Rents,04/07/2018,30185006,750,Revenue,Redacted Personal Data,Rent
Peterborough City Council,Communities,Cohesion,Rents,04/07/2018,30185009,625,Revenue,Record Property Solutions,Rent
Peterborough City Council,Communities,Cohesion,Rents,04/07/2018,30185010,800,Revenue,Rightroom Lettings Ltd,Rent
Peterborough City Council,Communities,Housing,Services,04/07/2018,30185012,560,Revenue,Singh and Sons Property Management Ltd,Temporary Accommodation Costs
Peterborough City Council,Communities,Cohesion,Rents,04/07/2018,30185020,625,Revenue,Record Property Solutions,Rent
Peterborough City Council,Communities,Cohesion,Rents,04/07/2018,30185023,800,Revenue,Hope Into Action,Rent
Peterborough City Council,Communities,Cohesion,Rents,04/07/2018,30185026,575,Revenue,Record Property Solutions,Rent
Peterborough City Council,Communities,Cohesion,Rents,04/07/2018,30185027,625,Revenue,Rightroom Lettings Ltd,Rent
Peterborough City Council,"Waste, Cleansing and Open Spaces",Waste & Operational Svs Mgmt,Third Party Payment,04/07/2018,30185029,508639.68,Revenue,Enterprise Managed Services Limited,Third Party Payments - Contract
Peterborough City Council,Corporate,Corporate,Non Revenue,04/07/2018,30185030,1696,Capital,NPS Peterborough Ltd,Consultants Fees
Peterborough City Council,Adults,Independent Sector Placements,Services,04/07/2018,30185033,941.79,Revenue,Sagecare,Home Care
Peterborough City Council,Adults,Independent Sector Placements,Services,04/07/2018,30185042,540.56,Revenue,"ATCHISON, MR ALAN",Residential Care
Peterborough City Council,Adults,Independent Sector Placements,Services,04/07/2018,30185043,2220,Revenue,Springfield Care Limited  T/a Caring Crew,Home Care
Peterborough City Council,Education,Special Educational Needs / Inclusion,Services,04/07/2018,30185079,2362.5,Revenue,Priory Hospital School Priory,Boarding Out Allowances
Peterborough City Council,Adults,Independent Sector Placements,Services,04/07/2018,30185086,1827.32,Revenue,Ashmere,Residential Care
Peterborough City Council,Communities,Housing,Services,04/07/2018,30185113,38197.5,Revenue,Stef & Philips Ltd,Temporary Accommodation Costs
Peterborough City Council,Children's & Safeguarding,CSC Quality Assurance,Services,04/07/2018,30185114,2389.4,Revenue,J C Associates,Consultants Fees
Peterborough City Council,Corporate Items,Corporate Services,Services,04/07/2018,30185120,2500,Revenue,Ernst & Young LLP,Audit Fees
Peterborough City Council,Children's & Safeguarding,External Education Placements,Services,04/07/2018,30185123,32500,Revenue,Gretton School,Boarding Out Allowances
Peterborough City Council,Adults,Independent Sector Placements,Services,04/07/2018,30185138,4999.71,Revenue,THE CLAIR FRANCIS RETIREMENT HOME,Residential Care
Peterborough City Council,Corporate,Corporate,Non Revenue,04/07/2018,30185156,1946.88,Capital,Reed Specialist Recruitment Limited,Consultants Fees
Peterborough City Council,Adults,Learning Disability,Services,04/07/2018,30185158,1000,Revenue,Zest,Grant Payment
Peterborough City Council,Corporate,Corporate,Non Revenue,04/07/2018,30185162,614862.1,Balance Sheet,Teachers Pensions,Pensions
Peterborough City Council,Director of Governance,Gov HOS,Services,04/07/2018,30185178,750,Revenue,Iken Business Ltd,Computer Software
Peterborough City Council,Director of Governance,Gov HOS,Services,04/07/2018,30185180,1348.5,Revenue,Iken Business Ltd,Computer Software
Peterborough City Council,Director of Governance,Gov HOS,Services,04/07/2018,30185181,1000,Revenue,Iken Business Ltd,Computer Software
Peterborough City Council,Director of Governance,Gov HOS,Services,04/07/2018,30185182,3808.34,Revenue,Iken Business Ltd,Computer Software
Peterborough City Council,Peterborough Highway Services,Transport & Infrastructure Commissioning,Services,04/07/2018,30185224,26562.5,Revenue,Stagecoach in Peterborough,Contractors
Peterborough City Council,Legal Services,Legal Services,Agency Staff,04/07/2018,30185869,2062.5,Revenue,Venn Group Ltd,External Temporary Staff
Peterborough City Council,Adults,Independent Sector Placements,Services,04/07/2018,8000118006,4634.24,Revenue,Redacted Personal Data,Adult Social Care Direct Payment
Peterborough City Council,Adults,Independent Sector Placements,Services,04/07/2018,8000118008,631.44,Revenue,Redacted Personal Data,Adult Social Care Direct Payment
Peterborough City Council,Adults,Independent Sector Placements,Services,04/07/2018,8000118009,2126.72,Revenue,Redacted Personal Data,Adult Social Care Direct Payment
Peterborough City Council,Adults,Independent Sector Placements,Services,04/07/2018,8000118010,2375.93,Revenue,Redacted Personal Data,Adult Social Care Direct Payment
Peterborough City Council,Adults,Independent Sector Placements,Services,04/07/2018,8000119365,1547.56,Revenue,Redacted Personal Data,Adult Social Care Direct Payment
Peterborough City Council,Adults,Independent Sector Placements,Services,04/07/2018,8000119366,7183.4,Revenue,Redacted Personal Data,Adult Social Care Direct Payment
Peterborough City Council,Adults,Independent Sector Placements,Services,04/07/2018,8000119367,969.76,Revenue,Redacted Personal Data,Adult Social Care Direct Payment
Peterborough City Council,Adults,Independent Sector Placements,Services,04/07/2018,8000119368,1426.52,Revenue,Redacted Personal Data,Adult Social Care Direct Payment
Peterborough City Council,Adults,Independent Sector Placements,Services,04/07/2018,8000119370,1107.6,Revenue,Redacted Personal Data,Adult Social Care Direct Payment
Peterborough City Council,Adults,Independent Sector Placements,Services,04/07/2018,8000119371,795.56,Revenue,Redacted Personal Data,Adult Social Care Direct Payment
Peterborough City Council,Adults,Independent Sector Placements,Services,04/07/2018,8000119372,978.4,Revenue,Redacted Personal Data,Adult Social Care Direct Payment
Peterborough City Council,Adults,Independent Sector Placements,Services,04/07/2018,8000119376,2573.28,Revenue,Redacted Personal Data,Adult Social Care Direct Payment
Peterborough City Council,Adults,Independent Sector Placements,Services,04/07/2018,8000119377,885.84,Revenue,Redacted Personal Data,Adult Social Care Direct Payment
Peterborough City Council,Adults,Independent Sector Placements,Services,04/07/2018,8000119379,2673.2,Revenue,Redacted Personal Data,Adult Social Care Direct Payment
Peterborough City Council,Adults,Independent Sector Placements,Services,04/07/2018,8000119380,1440.8,Revenue,Redacted Personal Data,Adult Social Care Direct Payment
Peterborough City Council,Adults,Independent Sector Placements,Services,04/07/2018,8000119381,7151,Revenue,Redacted Personal Data,Adult Social Care Direct Payment
Peterborough City Council,Adults,Independent Sector Placements,Services,04/07/2018,8000119382,5692.44,Revenue,Redacted Personal Data,Adult Social Care Direct Payment
Peterborough City Council,Adults,Independent Sector Placements,Services,04/07/2018,8000119383,862.4,Revenue,Redacted Personal Data,Adult Social Care Direct Payment
Peterborough City Council,Adults,Independent Sector Placements,Services,04/07/2018,8000119384,5237.4,Revenue,Redacted Personal Data,Adult Social Care Direct Payment
Peterborough City Council,Adults,Independent Sector Placements,Services,04/07/2018,8000119386,585.4,Revenue,Redacted Personal Data,Adult Social Care Direct Payment
Peterborough City Council,Adults,Independent Sector Placements,Services,04/07/2018,8000119387,658.56,Revenue,Redacted Personal Data,Adult Social Care Direct Payment
Peterborough City Council,Adults,Independent Sector Placements,Services,04/07/2018,8000119388,2120.36,Revenue,Redacted Personal Data,Adult Social Care Direct Payment
Peterborough City Council,Adults,Independent Sector Placements,Services,04/07/2018,8000119389,7057.56,Revenue,Redacted Personal Data,Adult Social Care Direct Payment
Peterborough City Council,Adults,Independent Sector Placements,Services,04/07/2018,8000119390,2513.8,Revenue,Redacted Personal Data,Adult Social Care Direct Payment
Peterborough City Council,Adults,Independent Sector Placements,Services,04/07/2018,8000119391,1397.52,Revenue,Redacted Personal Data,Adult Social Care Direct Payment
Peterborough City Council,Adults,Independent Sector Placements,Services,04/07/2018,8000119393,2339.56,Revenue,Redacted Personal Data,Adult Social Care Direct Payment
Peterborough City Council,Adults,Independent Sector Placements,Services,04/07/2018,8000119394,1780.4,Revenue,Redacted Personal Data,Adult Social Care Direct Payment
Peterborough City Council,Adults,Independent Sector Placements,Services,04/07/2018,8000119395,1421.6,Revenue,Redacted Personal Data,Adult Social Care Direct Payment
Peterborough City Council,Adults,Independent Sector Placements,Services,04/07/2018,8000119396,1025.32,Revenue,Redacted Personal Data,Adult Social Care Direct Payment
Peterborough City Council,Adults,Independent Sector Placements,Services,04/07/2018,8000119397,1739.4,Revenue,Redacted Personal Data,Adult Social Care Direct Payment
Peterborough City Council,Adults,Independent Sector Placements,Services,04/07/2018,8000119398,1596.48,Revenue,Redacted Personal Data,Adult Social Care Direct Payment
Peterborough City Council,Adults,Independent Sector Placements,Services,04/07/2018,8000119399,5783.16,Revenue,Redacted Personal Data,Adult Social Care Direct Payment
Peterborough City Council,Adults,Independent Sector Placements,Services,04/07/2018,8000119400,2743.64,Revenue,Redacted Personal Data,Adult Social Care Direct Payment
Peterborough City Council,Adults,Independent Sector Placements,Services,04/07/2018,8000119401,1290.08,Revenue,Redacted Personal Data,Adult Social Care Direct Payment
Peterborough City Council,Adults,Independent Sector Placements,Services,04/07/2018,8000119402,2576.24,Revenue,Redacted Personal Data,Adult Social Care Direct Payment
Peterborough City Council,Adults,Independent Sector Placements,Services,04/07/2018,8000119404,1629.24,Revenue,Redacted Personal Data,Adult Social Care Direct Payment
Peterborough City Council,Adults,Independent Sector Placements,Services,04/07/2018,8000119405,978.08,Revenue,Redacted Personal Data,Adult Social Care Direct Payment
Peterborough City Council,Adults,Independent Sector Placements,Services,04/07/2018,8000119407,3045.6,Revenue,Redacted Personal Data,Adult Social Care Direct Payment
Peterborough City Council,Adults,Independent Sector Placements,Services,04/07/2018,8000119408,1355.56,Revenue,Redacted Personal Data,Adult Social Care Direct Payment
Peterborough City Council,Adults,Independent Sector Placements,Services,04/07/2018,8000119409,652.56,Revenue,Redacted Personal Data,Adult Social Care Direct Payment
Peterborough City Council,Adults,Independent Sector Placements,Services,04/07/2018,8000119410,1340.4,Revenue,Redacted Personal Data,Adult Social Care Direct Payment
Peterborough City Council,Adults,Independent Sector Placements,Services,04/07/2018,8000119411,1436,Revenue,Redacted Personal Data,Adult Social Care Direct Payment
Peterborough City Council,Adults,Independent Sector Placements,Services,04/07/2018,8000119412,1982.44,Revenue,Redacted Personal Data,Adult Social Care Direct Payment
Peterborough City Council,Adults,Independent Sector Placements,Services,04/07/2018,8000119413,2654.32,Revenue,Redacted Personal Data,Adult Social Care Direct Payment
Peterborough City Council,Adults,Independent Sector Placements,Services,04/07/2018,8000119414,3762.48,Revenue,Redacted Personal Data,Adult Social Care Direct Payment
Peterborough City Council,Adults,Independent Sector Placements,Services,04/07/2018,8000119415,1625,Revenue,Redacted Personal Data,Adult Social Care Direct Payment
Peterborough City Council,Adults,Independent Sector Placements,Services,04/07/2018,8000119416,2585.52,Revenue,Redacted Personal Data,Adult Social Care Direct Payment
Peterborough City Council,Adults,Independent Sector Placements,Services,04/07/2018,8000119417,2451.24,Revenue,Redacted Personal Data,Adult Social Care Direct Payment
Peterborough City Council,Adults,Independent Sector Placements,Services,04/07/2018,8000119420,503.36,Revenue,Redacted Personal Data,Adult Social Care Direct Payment
Peterborough City Council,Adults,Independent Sector Placements,Services,04/07/2018,8000119421,705.36,Revenue,Redacted Personal Data,Adult Social Care Direct Payment
Peterborough City Council,Adults,Independent Sector Placements,Services,04/07/2018,8000119422,648.08,Revenue,Redacted Personal Data,Adult Social Care Direct Payment
Peterborough City Council,Adults,Independent Sector Placements,Services,04/07/2018,8000119423,1533,Revenue,Redacted Personal Data,Adult Social Care Direct Payment
Peterborough City Council,Adults,Independent Sector Placements,Services,04/07/2018,8000119424,883.36,Revenue,Redacted Personal Data,Adult Social Care Direct Payment
Peterborough City Council,Adults,Independent Sector Placements,Services,04/07/2018,8000119426,1090.8,Revenue,Redacted Personal Data,Adult Social Care Direct Payment
Peterborough City Council,Adults,Independent Sector Placements,Services,04/07/2018,8000119427,2176,Revenue,Redacted Personal Data,Adult Social Care Direct Payment
Peterborough City Council,Adults,Independent Sector Placements,Services,04/07/2018,8000119428,1394.48,Revenue,Redacted Personal Data,Adult Social Care Direct Payment
Peterborough City Council,Adults,Independent Sector Placements,Services,04/07/2018,8000119430,1716.32,Revenue,Redacted Personal Data,Adult Social Care Direct Payment
Peterborough City Council,Adults,Independent Sector Placements,Services,04/07/2018,8000119431,642.4,Revenue,Redacted Personal Data,Adult Social Care Direct Payment
Peterborough City Council,Adults,Independent Sector Placements,Services,04/07/2018,8000119432,541.4,Revenue,Redacted Personal Data,Adult Social Care Direct Payment
Peterborough City Council,Adults,Independent Sector Placements,Services,04/07/2018,8000119434,1735.4,Revenue,Redacted Personal Data,Adult Social Care Direct Payment
Peterborough City Council,Adults,Independent Sector Placements,Services,04/07/2018,8000119437,530.84,Revenue,Redacted Personal Data,Adult Social Care Direct Payment
Peterborough City Council,Adults,Independent Sector Placements,Services,04/07/2018,8000119438,709.8,Revenue,Redacted Personal Data,Adult Social Care Direct Payment
Peterborough City Council,Adults,Independent Sector Placements,Services,04/07/2018,8000119439,1341.44,Revenue,Redacted Personal Data,Adult Social Care Direct Payment
Peterborough City Council,Adults,Independent Sector Placements,Services,04/07/2018,8000119442,1562,Revenue,Redacted Personal Data,Adult Social Care Direct Payment
Peterborough City Council,Adults,Independent Sector Placements,Services,04/07/2018,8000119443,775.88,Revenue,Redacted Personal Data,Adult Social Care Direct Payment
Peterborough City Council,Adults,Independent Sector Placements,Services,04/07/2018,8000119444,897.6,Revenue,Redacted Personal Data,Adult Social Care Direct Payment
Peterborough City Council,Adults,Independent Sector Placements,Services,04/07/2018,8000119446,2310,Revenue,Redacted Personal Data,Adult Social Care Direct Payment
Peterborough City Council,Adults,Independent Sector Placements,Services,04/07/2018,8000119447,760.88,Revenue,Redacted Personal Data,Adult Social Care Direct Payment
Peterborough City Council,Adults,Independent Sector Placements,Services,04/07/2018,8000119448,725.08,Revenue,Redacted Personal Data,Adult Social Care Direct Payment
Peterborough City Council,Adults,Independent Sector Placements,Services,04/07/2018,8000119449,890.48,Revenue,Redacted Personal Data,Adult Social Care Direct Payment
Peterborough City Council,Adults,Independent Sector Placements,Services,04/07/2018,8000119450,3222.56,Revenue,Redacted Personal Data,Adult Social Care Direct Payment
Peterborough City Council,Adults,Independent Sector Placements,Services,04/07/2018,8000119452,1539.5,Revenue,Redacted Personal Data,Adult Social Care Direct Payment
Peterborough City Council,Adults,Independent Sector Placements,Services,04/07/2018,8000119455,2430.48,Revenue,Redacted Personal Data,Adult Social Care Direct Payment
Peterborough City Council,Adults,Independent Sector Placements,Services,04/07/2018,8000119456,1678.12,Revenue,Redacted Personal Data,Adult Social Care Direct Payment
Peterborough City Council,Adults,Independent Sector Placements,Services,04/07/2018,8000119457,3528.84,Revenue,Redacted Personal Data,Adult Social Care Direct Payment
Peterborough City Council,Adults,Independent Sector Placements,Services,04/07/2018,8000119458,1038.48,Revenue,Redacted Personal Data,Adult Social Care Direct Payment
Peterborough City Council,Adults,Independent Sector Placements,Services,04/07/2018,8000119459,4340.09,Revenue,Redacted Personal Data,Adult Social Care Direct Payment
Peterborough City Council,Adults,Independent Sector Placements,Services,04/07/2018,8000119460,1979.16,Revenue,Redacted Personal Data,Adult Social Care Direct Payment
Peterborough City Council,Adults,Independent Sector Placements,Services,04/07/2018,8000119461,5668.24,Revenue,Redacted Personal Data,Adult Social Care Direct Payment
Peterborough City Council,Adults,Independent Sector Placements,Services,04/07/2018,8000119462,1612.08,Revenue,Redacted Personal Data,Adult Social Care Direct Payment
Peterborough City Council,Adults,Independent Sector Placements,Services,04/07/2018,8000119463,4944.48,Revenue,Redacted Personal Data,Adult Social Care Direct Payment
Peterborough City Council,Adults,Independent Sector Placements,Services,04/07/2018,8000119464,5231.44,Revenue,Redacted Personal Data,Adult Social Care Direct Payment
Peterborough City Council,Adults,Independent Sector Placements,Services,04/07/2018,8000119465,6292.08,Revenue,Redacted Personal Data,Adult Social Care Direct Payment
Peterborough City Council,Adults,Independent Sector Placements,Services,04/07/2018,8000119466,1604.6,Revenue,Redacted Personal Data,Adult Social Care Direct Payment
Peterborough City Council,Adults,Independent Sector Placements,Services,04/07/2018,8000119469,7350.08,Revenue,Redacted Personal Data,Adult Social Care Direct Payment
Peterborough City Council,Adults,Independent Sector Placements,Services,04/07/2018,8000119471,3293.68,Revenue,Redacted Personal Data,Adult Social Care Direct Payment
Peterborough City Council,Adults,Independent Sector Placements,Services,04/07/2018,8000119472,952,Revenue,Redacted Personal Data,Adult Social Care Direct Payment
Peterborough City Council,Adults,Independent Sector Placements,Services,04/07/2018,8000119475,2608.68,Revenue,Redacted Personal Data,Adult Social Care Direct Payment
Peterborough City Council,Adults,Independent Sector Placements,Services,04/07/2018,8000119476,1748,Revenue,Redacted Personal Data,Adult Social Care Direct Payment
Peterborough City Council,Adults,Independent Sector Placements,Services,04/07/2018,8000119477,1416.64,Revenue,Redacted Personal Data,Adult Social Care Direct Payment
Peterborough City Council,Adults,Independent Sector Placements,Services,04/07/2018,8000119478,1088,Revenue,Redacted Personal Data,Adult Social Care Direct Payment
Peterborough City Council,Adults,Independent Sector Placements,Services,04/07/2018,8000119479,1167.92,Revenue,Redacted Personal Data,Adult Social Care Direct Payment
Peterborough City Council,Adults,Independent Sector Placements,Services,04/07/2018,8000119480,2278.96,Revenue,Redacted Personal Data,Adult Social Care Direct Payment
Peterborough City Council,Adults,Independent Sector Placements,Services,04/07/2018,8000119481,2184.2,Revenue,Redacted Personal Data,Adult Social Care Direct Payment
Peterborough City Council,Adults,Independent Sector Placements,Services,04/07/2018,8000119482,2381.88,Revenue,Redacted Personal Data,Adult Social Care Direct Payment
Peterborough City Council,Adults,Independent Sector Placements,Services,04/07/2018,8000119484,1250.84,Revenue,Redacted Personal Data,Adult Social Care Direct Payment
Peterborough City Council,Adults,Independent Sector Placements,Services,04/07/2018,8000119486,777.2,Revenue,Redacted Personal Data,Adult Social Care Direct Payment
Peterborough City Council,Adults,Independent Sector Placements,Services,04/07/2018,8000119487,773.28,Revenue,Redacted Personal Data,Adult Social Care Direct Payment
Peterborough City Council,Adults,Independent Sector Placements,Services,04/07/2018,8000119488,762.48,Revenue,Redacted Personal Data,Adult Social Care Direct Payment
Peterborough City Council,Adults,Independent Sector Placements,Services,04/07/2018,8000119489,576,Revenue,Redacted Personal Data,Adult Social Care Direct Payment
Peterborough City Council,Adults,Independent Sector Placements,Services,04/07/2018,8000119490,8586.48,Revenue,Redacted Personal Data,Adult Social Care Direct Payment
Peterborough City Council,Adults,Independent Sector Placements,Services,04/07/2018,8000119491,914.84,Revenue,Redacted Personal Data,Adult Social Care Direct Payment
Peterborough City Council,Adults,Independent Sector Placements,Services,04/07/2018,8000119492,6439.28,Revenue,Redacted Personal Data,Adult Social Care Direct Payment
Peterborough City Council,Adults,Independent Sector Placements,Services,04/07/2018,8000119493,2400.88,Revenue,Redacted Personal Data,Adult Social Care Direct Payment
Peterborough City Council,Adults,Independent Sector Placements,Services,04/07/2018,8000119494,1119.92,Revenue,Redacted Personal Data,Adult Social Care Direct Payment
Peterborough City Council,Adults,Independent Sector Placements,Services,04/07/2018,8000119496,1205.16,Revenue,Redacted Personal Data,Adult Social Care Direct Payment
Peterborough City Council,Adults,Independent Sector Placements,Services,04/07/2018,8000119497,9329.88,Revenue,Redacted Personal Data,Adult Social Care Direct Payment
Peterborough City Council,Adults,Independent Sector Placements,Services,04/07/2018,8000119498,3618.48,Revenue,Redacted Personal Data,Adult Social Care Direct Payment
Peterborough City Council,Adults,Independent Sector Placements,Services,04/07/2018,8000119500,1367.28,Revenue,Redacted Personal Data,Adult Social Care Direct Payment
Peterborough City Council,Adults,Independent Sector Placements,Services,04/07/2018,8000119501,3131.2,Revenue,Redacted Personal Data,Adult Social Care Direct Payment
Peterborough City Council,Adults,Independent Sector Placements,Services,04/07/2018,8000119502,1266.48,Revenue,Redacted Personal Data,Adult Social Care Direct Payment
Peterborough City Council,Adults,Independent Sector Placements,Services,04/07/2018,8000119503,6338,Revenue,Redacted Personal Data,Adult Social Care Direct Payment
Peterborough City Council,Adults,Independent Sector Placements,Services,04/07/2018,8000119504,716.8,Revenue,Redacted Personal Data,Adult Social Care Direct Payment
Peterborough City Council,Adults,Independent Sector Placements,Services,04/07/2018,8000119505,10074.4,Revenue,Redacted Personal Data,Adult Social Care Direct Payment
Peterborough City Council,Adults,Independent Sector Placements,Services,04/07/2018,8000119507,1366.96,Revenue,Redacted Personal Data,Adult Social Care Direct Payment
Peterborough City Council,Adults,Independent Sector Placements,Services,04/07/2018,8000119508,2342.76,Revenue,Redacted Personal Data,Adult Social Care Direct Payment
Peterborough City Council,Adults,Independent Sector Placements,Services,04/07/2018,8000119509,1451.73,Revenue,Redacted Personal Data,Adult Social Care Direct Payment
Peterborough City Council,Adults,Independent Sector Placements,Services,04/07/2018,8000119510,3908.6,Revenue,Redacted Personal Data,Adult Social Care Direct Payment
Peterborough City Council,Adults,Independent Sector Placements,Services,04/07/2018,8000119511,6801.88,Revenue,Redacted Personal Data,Adult Social Care Direct Payment
Peterborough City Council,Adults,Independent Sector Placements,Services,04/07/2018,8000119512,4758.48,Revenue,Redacted Personal Data,Adult Social Care Direct Payment
Peterborough City Council,Adults,Independent Sector Placements,Services,04/07/2018,8000119513,1303.32,Revenue,Redacted Personal Data,Adult Social Care Direct Payment
Peterborough City Council,Adults,Independent Sector Placements,Services,04/07/2018,8000119514,744,Revenue,Redacted Personal Data,Adult Social Care Direct Payment
Peterborough City Council,Adults,Independent Sector Placements,Services,04/07/2018,8000119515,7046.48,Revenue,Redacted Personal Data,Adult Social Care Direct Payment
Peterborough City Council,Adults,Independent Sector Placements,Services,04/07/2018,8000119516,2086.2,Revenue,Redacted Personal Data,Adult Social Care Direct Payment
Peterborough City Council,Adults,Independent Sector Placements,Services,04/07/2018,8000119518,4724.56,Revenue,Redacted Personal Data,Adult Social Care Direct Payment
Peterborough City Council,Adults,Independent Sector Placements,Services,04/07/2018,8000119519,4851.36,Revenue,Redacted Personal Data,Adult Social Care Direct Payment
Peterborough City Council,Adults,Independent Sector Placements,Services,04/07/2018,8000119520,1025.08,Revenue,Redacted Personal Data,Adult Social Care Direct Payment
Peterborough City Council,Adults,Independent Sector Placements,Services,04/07/2018,8000119521,3022.36,Revenue,Redacted Personal Data,Adult Social Care Direct Payment
Peterborough City Council,Adults,Independent Sector Placements,Services,04/07/2018,8000119522,12746.84,Revenue,Redacted Personal Data,Adult Social Care Direct Payment
Peterborough City Council,Adults,Independent Sector Placements,Services,04/07/2018,8000119523,6855.28,Revenue,Redacted Personal Data,Adult Social Care Direct Payment
Peterborough City Council,Adults,Independent Sector Placements,Services,04/07/2018,8000119525,4176.4,Revenue,Redacted Personal Data,Adult Social Care Direct Payment
Peterborough City Council,Adults,Independent Sector Placements,Services,04/07/2018,8000119526,652.08,Revenue,Redacted Personal Data,Adult Social Care Direct Payment
Peterborough City Council,Adults,Independent Sector Placements,Services,04/07/2018,8000119528,738.44,Revenue,Redacted Personal Data,Adult Social Care Direct Payment
Peterborough City Council,Adults,Independent Sector Placements,Services,04/07/2018,8000119529,860.72,Revenue,Redacted Personal Data,Adult Social Care Direct Payment
Peterborough City Council,Adults,Independent Sector Placements,Services,04/07/2018,8000119530,2288.52,Revenue,Redacted Personal Data,Adult Social Care Direct Payment
Peterborough City Council,Adults,Independent Sector Placements,Services,04/07/2018,8000119531,648,Revenue,Redacted Personal Data,Adult Social Care Direct Payment
Peterborough City Council,Adults,Independent Sector Placements,Services,04/07/2018,8000119532,2370.48,Revenue,Redacted Personal Data,Adult Social Care Direct Payment
Peterborough City Council,Adults,Independent Sector Placements,Services,04/07/2018,8000119533,800,Revenue,Redacted Personal Data,Adult Social Care Direct Payment
Peterborough City Council,Adults,Independent Sector Placements,Services,04/07/2018,8000119535,634.88,Revenue,Redacted Personal Data,Adult Social Care Direct Payment
Peterborough City Council,Adults,Independent Sector Placements,Services,04/07/2018,8000119536,3024.48,Revenue,Redacted Personal Data,Adult Social Care Direct Payment
Peterborough City Council,Adults,Independent Sector Placements,Services,04/07/2018,8000119537,1170.48,Revenue,Redacted Personal Data,Adult Social Care Direct Payment
Peterborough City Council,Adults,Independent Sector Placements,Services,04/07/2018,8000119538,4208.48,Revenue,Redacted Personal Data,Adult Social Care Direct Payment
Peterborough City Council,Adults,Independent Sector Placements,Services,04/07/2018,8000119539,1724.6,Revenue,Redacted Personal Data,Adult Social Care Direct Payment
Peterborough City Council,Adults,Independent Sector Placements,Services,04/07/2018,8000119540,574.4,Revenue,Redacted Personal Data,Adult Social Care Direct Payment
Peterborough City Council,Adults,Independent Sector Placements,Services,04/07/2018,8000119541,5569.12,Revenue,Redacted Personal Data,Adult Social Care Direct Payment
Peterborough City Council,Adults,Independent Sector Placements,Services,04/07/2018,8000119542,874.16,Revenue,Redacted Personal Data,Adult Social Care Direct Payment
Peterborough City Council,Adults,Independent Sector Placements,Services,04/07/2018,8000119543,1818.4,Revenue,Redacted Personal Data,Adult Social Care Direct Payment
Peterborough City Council,Adults,Independent Sector Placements,Services,04/07/2018,8000119545,1002.48,Revenue,Redacted Personal Data,Adult Social Care Direct Payment
Peterborough City Council,Adults,Independent Sector Placements,Services,04/07/2018,8000119546,669.12,Revenue,Redacted Personal Data,Adult Social Care Direct Payment
Peterborough City Council,Adults,Independent Sector Placements,Services,04/07/2018,8000119547,6075.64,Revenue,Redacted Personal Data,Adult Social Care Direct Payment
Peterborough City Council,Adults,Independent Sector Placements,Services,04/07/2018,8000119548,606.48,Revenue,Redacted Personal Data,Adult Social Care Direct Payment
Peterborough City Council,Adults,Independent Sector Placements,Services,04/07/2018,8000119549,5731.64,Revenue,Redacted Personal Data,Adult Social Care Direct Payment
Peterborough City Council,Adults,Independent Sector Placements,Services,04/07/2018,8000119550,1903.48,Revenue,Redacted Personal Data,Adult Social Care Direct Payment
Peterborough City Council,Adults,Independent Sector Placements,Services,04/07/2018,8000119551,8634,Revenue,Redacted Personal Data,Adult Social Care Direct Payment
Peterborough City Council,Adults,Independent Sector Placements,Services,04/07/2018,8000119552,5619.16,Revenue,Redacted Personal Data,Adult Social Care Direct Payment
Peterborough City Council,Adults,Independent Sector Placements,Services,04/07/2018,8000119553,627.48,Revenue,Redacted Personal Data,Adult Social Care Direct Payment
Peterborough City Council,Adults,Independent Sector Placements,Services,04/07/2018,8000119554,692.12,Revenue,Redacted Personal Data,Adult Social Care Direct Payment
Peterborough City Council,Adults,Independent Sector Placements,Services,04/07/2018,8000119555,1348.84,Revenue,Redacted Personal Data,Adult Social Care Direct Payment
Peterborough City Council,Adults,Independent Sector Placements,Services,04/07/2018,8000119557,1326.48,Revenue,Redacted Personal Data,Adult Social Care Direct Payment
Peterborough City Council,Adults,Independent Sector Placements,Services,04/07/2018,8000119558,2275.64,Revenue,Redacted Personal Data,Adult Social Care Direct Payment
Peterborough City Council,Adults,Independent Sector Placements,Services,04/07/2018,8000119561,1960,Revenue,Redacted Personal Data,Adult Social Care Direct Payment
Peterborough City Council,Adults,Independent Sector Placements,Services,04/07/2018,8000119563,1392.16,Revenue,Redacted Personal Data,Adult Social Care Direct Payment
Peterborough City Council,Adults,Independent Sector Placements,Services,04/07/2018,8000119564,1634.76,Revenue,Redacted Personal Data,Adult Social Care Direct Payment
Peterborough City Council,Adults,Independent Sector Placements,Services,04/07/2018,8000119565,1165.44,Revenue,Redacted Personal Data,Adult Social Care Direct Payment
Peterborough City Council,Adults,Independent Sector Placements,Services,04/07/2018,8000119566,3307.84,Revenue,Redacted Personal Data,Adult Social Care Direct Payment
Peterborough City Council,Adults,Independent Sector Placements,Services,04/07/2018,8000119567,3049.68,Revenue,Redacted Personal Data,Adult Social Care Direct Payment
Peterborough City Council,Adults,Independent Sector Placements,Services,04/07/2018,8000119568,807.88,Revenue,Redacted Personal Data,Adult Social Care Direct Payment
Peterborough City Council,Adults,Independent Sector Placements,Services,04/07/2018,8000119570,540,Revenue,Redacted Personal Data,Adult Social Care Direct Payment
Peterborough City Council,Adults,Independent Sector Placements,Services,04/07/2018,8000119571,1517.68,Revenue,Redacted Personal Data,Adult Social Care Direct Payment
Peterborough City Council,Adults,Independent Sector Placements,Services,04/07/2018,8000119573,822.72,Revenue,Redacted Personal Data,Adult Social Care Direct Payment
Peterborough City Council,Adults,Independent Sector Placements,Services,04/07/2018,8000119574,2847.36,Revenue,Redacted Personal Data,Adult Social Care Direct Payment
Peterborough City Council,Adults,Independent Sector Placements,Services,04/07/2018,8000119575,582.24,Revenue,Redacted Personal Data,Adult Social Care Direct Payment
Peterborough City Council,Adults,Independent Sector Placements,Services,04/07/2018,8000119576,798.48,Revenue,Redacted Personal Data,Adult Social Care Direct Payment
Peterborough City Council,Adults,Independent Sector Placements,Services,04/07/2018,8000119580,1078.92,Revenue,Redacted Personal Data,Adult Social Care Direct Payment
Peterborough City Council,Adults,Independent Sector Placements,Services,04/07/2018,8000119581,805.48,Revenue,Redacted Personal Data,Adult Social Care Direct Payment
Peterborough City Council,Adults,Independent Sector Placements,Services,04/07/2018,8000119582,570.48,Revenue,Redacted Personal Data,Adult Social Care Direct Payment
Peterborough City Council,Adults,Independent Sector Placements,Services,04/07/2018,8000119583,10066.88,Revenue,Redacted Personal Data,Adult Social Care Direct Payment
Peterborough City Council,Adults,Independent Sector Placements,Services,04/07/2018,8000119584,1244.4,Revenue,Redacted Personal Data,Adult Social Care Direct Payment
Peterborough City Council,Adults,Independent Sector Placements,Services,04/07/2018,8000119585,1565.68,Revenue,Redacted Personal Data,Adult Social Care Direct Payment
Peterborough City Council,Adults,Independent Sector Placements,Services,04/07/2018,8000119586,864.28,Revenue,Redacted Personal Data,Adult Social Care Direct Payment
Peterborough City Council,Adults,Independent Sector Placements,Services,04/07/2018,8000119588,1094.88,Revenue,Redacted Personal Data,Adult Social Care Direct Payment
Peterborough City Council,Adults,Independent Sector Placements,Services,04/07/2018,8000119589,1295.16,Revenue,Redacted Personal Data,Adult Social Care Direct Payment
Peterborough City Council,Adults,Independent Sector Placements,Services,04/07/2018,8000119592,2235.6,Revenue,Redacted Personal Data,Adult Social Care Direct Payment
Peterborough City Council,Adults,Independent Sector Placements,Services,04/07/2018,8000119594,2481.56,Revenue,Redacted Personal Data,Adult Social Care Direct Payment
Peterborough City Council,Adults,Independent Sector Placements,Services,04/07/2018,8000119595,888.4,Revenue,Redacted Personal Data,Adult Social Care Direct Payment
Peterborough City Council,Adults,Independent Sector Placements,Services,04/07/2018,8000119596,2270.88,Revenue,Redacted Personal Data,Adult Social Care Direct Payment
Peterborough City Council,Adults,Independent Sector Placements,Services,04/07/2018,8000119597,2644.72,Revenue,Redacted Personal Data,Adult Social Care Direct Payment
Peterborough City Council,Adults,Independent Sector Placements,Services,04/07/2018,8000119598,921.4,Revenue,Redacted Personal Data,Adult Social Care Direct Payment
Peterborough City Council,Adults,Independent Sector Placements,Services,04/07/2018,8000119599,1394.2,Revenue,Redacted Personal Data,Adult Social Care Direct Payment
Peterborough City Council,Adults,Independent Sector Placements,Services,04/07/2018,8000119601,2475.8,Revenue,Redacted Personal Data,Adult Social Care Direct Payment
Peterborough City Council,Adults,Independent Sector Placements,Services,04/07/2018,8000119604,1352.96,Revenue,Redacted Personal Data,Adult Social Care Direct Payment
Peterborough City Council,Adults,Independent Sector Placements,Services,04/07/2018,8000119605,1208.64,Revenue,Redacted Personal Data,Adult Social Care Direct Payment
Peterborough City Council,Adults,Independent Sector Placements,Services,04/07/2018,8000119607,1208.64,Revenue,Redacted Personal Data,Adult Social Care Direct Payment
Peterborough City Council,Adults,Independent Sector Placements,Services,04/07/2018,8000119608,606.48,Revenue,Redacted Personal Data,Adult Social Care Direct Payment
Peterborough City Council,Adults,Independent Sector Placements,Services,04/07/2018,8000119610,3834.48,Revenue,Redacted Personal Data,Adult Social Care Direct Payment
Peterborough City Council,Adults,Independent Sector Placements,Services,04/07/2018,8000119611,1208.64,Revenue,Redacted Personal Data,Adult Social Care Direct Payment
Peterborough City Council,Adults,Independent Sector Placements,Services,04/07/2018,8000119612,744,Revenue,Redacted Personal Data,Adult Social Care Direct Payment
Peterborough City Council,Adults,Independent Sector Placements,Services,04/07/2018,8000119613,1053.48,Revenue,Redacted Personal Data,Adult Social Care Direct Payment
Peterborough City Council,Adults,Independent Sector Placements,Services,04/07/2018,8000119614,1826.88,Revenue,Redacted Personal Data,Adult Social Care Direct Payment
Peterborough City Council,Adults,Independent Sector Placements,Services,04/07/2018,8000119616,522.48,Revenue,Redacted Personal Data,Adult Social Care Direct Payment
Peterborough City Council,Adults,Independent Sector Placements,Services,04/07/2018,8000119617,985.68,Revenue,Redacted Personal Data,Adult Social Care Direct Payment
Peterborough City Council,Adults,Independent Sector Placements,Services,04/07/2018,8000119618,1448.92,Revenue,Redacted Personal Data,Adult Social Care Direct Payment
Peterborough City Council,Adults,Independent Sector Placements,Services,04/07/2018,8000119619,3384.24,Revenue,Redacted Personal Data,Adult Social Care Direct Payment
Peterborough City Council,Adults,Independent Sector Placements,Services,04/07/2018,8000119620,3384.24,Revenue,Redacted Personal Data,Adult Social Care Direct Payment
Peterborough City Council,Adults,Independent Sector Placements,Services,04/07/2018,8000119621,4525.4,Revenue,Redacted Personal Data,Adult Social Care Direct Payment
Peterborough City Council,Adults,Independent Sector Placements,Services,04/07/2018,8000119622,570.88,Revenue,Redacted Personal Data,Adult Social Care Direct Payment
Peterborough City Council,Adults,Independent Sector Placements,Services,04/07/2018,8000119623,1294.48,Revenue,Redacted Personal Data,Adult Social Care Direct Payment
Peterborough City Council,Adults,Independent Sector Placements,Services,04/07/2018,8000119625,540.48,Revenue,Redacted Personal Data,Adult Social Care Direct Payment
Peterborough City Council,Adults,Independent Sector Placements,Services,04/07/2018,8000119626,1135,Revenue,Redacted Personal Data,Adult Social Care Direct Payment
Peterborough City Council,Adults,Independent Sector Placements,Services,04/07/2018,8000119627,1216.96,Revenue,Redacted Personal Data,Adult Social Care Direct Payment
Peterborough City Council,Adults,Independent Sector Placements,Services,04/07/2018,8000119634,3864.56,Revenue,Redacted Personal Data,Adult Social Care Direct Payment
Peterborough City Council,Adults,Independent Sector Placements,Services,04/07/2018,8000119636,895.12,Revenue,Redacted Personal Data,Adult Social Care Direct Payment
Peterborough City Council,Adults,Independent Sector Placements,Services,04/07/2018,8000119638,1152,Revenue,Redacted Personal Data,Adult Social Care Direct Payment
Peterborough City Council,Adults,Independent Sector Placements,Services,04/07/2018,8000119639,3743.08,Revenue,Redacted Personal Data,Adult Social Care Direct Payment
Peterborough City Council,Adults,Independent Sector Placements,Services,04/07/2018,8000119641,5460.88,Revenue,Redacted Personal Data,Adult Social Care Direct Payment
Peterborough City Council,Adults,Independent Sector Placements,Services,04/07/2018,8000119642,580.8,Revenue,Redacted Personal Data,Adult Social Care Direct Payment
Peterborough City Council,Adults,Independent Sector Placements,Services,04/07/2018,8000119644,720.8,Revenue,Redacted Personal Data,Adult Social Care Direct Payment
Peterborough City Council,Adults,Independent Sector Placements,Services,04/07/2018,8000119645,780.72,Revenue,Redacted Personal Data,Adult Social Care Direct Payment
Peterborough City Council,Adults,Independent Sector Placements,Services,04/07/2018,8000119646,930.48,Revenue,Redacted Personal Data,Adult Social Care Direct Payment
Peterborough City Council,Adults,Independent Sector Placements,Services,04/07/2018,8000119648,1537.2,Revenue,Redacted Personal Data,Adult Social Care Direct Payment
Peterborough City Council,Adults,Independent Sector Placements,Services,04/07/2018,8000119649,1187.96,Revenue,Redacted Personal Data,Adult Social Care Direct Payment
Peterborough City Council,Adults,Independent Sector Placements,Services,04/07/2018,8000119650,1390.12,Revenue,Redacted Personal Data,Adult Social Care Direct Payment
Peterborough City Council,Adults,Independent Sector Placements,Services,04/07/2018,8000119652,2950.84,Revenue,Redacted Personal Data,Adult Social Care Direct Payment
Peterborough City Council,Adults,Independent Sector Placements,Services,04/07/2018,8000119653,2829,Revenue,Redacted Personal Data,Adult Social Care Direct Payment
Peterborough City Council,Adults,Independent Sector Placements,Services,04/07/2018,8000119655,1037.84,Revenue,Redacted Personal Data,Adult Social Care Direct Payment
Peterborough City Council,Adults,Independent Sector Placements,Services,04/07/2018,8000119656,820.4,Revenue,Redacted Personal Data,Adult Social Care Direct Payment
Peterborough City Council,Adults,Independent Sector Placements,Services,04/07/2018,8000119657,1608.36,Revenue,Redacted Personal Data,Adult Social Care Direct Payment
Peterborough City Council,Adults,Independent Sector Placements,Services,04/07/2018,8000119659,1179.56,Revenue,Redacted Personal Data,Adult Social Care Direct Payment
Peterborough City Council,Adults,Independent Sector Placements,Services,04/07/2018,8000119660,2249,Revenue,Redacted Personal Data,Adult Social Care Direct Payment
Peterborough City Council,Adults,Independent Sector Placements,Services,04/07/2018,8000119661,620.64,Revenue,Redacted Personal Data,Adult Social Care Direct Payment
Peterborough City Council,Adults,Independent Sector Placements,Services,04/07/2018,8000119663,1654.92,Revenue,Redacted Personal Data,Adult Social Care Direct Payment
Peterborough City Council,Adults,Independent Sector Placements,Services,04/07/2018,8000119664,544.8,Revenue,Redacted Personal Data,Adult Social Care Direct Payment
Peterborough City Council,Adults,Independent Sector Placements,Services,04/07/2018,8000119665,534.48,Revenue,Redacted Personal Data,Adult Social Care Direct Payment
Peterborough City Council,Adults,Independent Sector Placements,Services,04/07/2018,8000119666,938.28,Revenue,Redacted Personal Data,Adult Social Care Direct Payment
Peterborough City Council,Adults,Independent Sector Placements,Services,04/07/2018,8000119667,1293.6,Revenue,Redacted Personal Data,Adult Social Care Direct Payment
Peterborough City Council,Adults,Independent Sector Placements,Services,04/07/2018,8000119670,6124.16,Revenue,Redacted Personal Data,Adult Social Care Direct Payment
Peterborough City Council,Adults,Independent Sector Placements,Services,04/07/2018,8000119671,550.72,Revenue,Redacted Personal Data,Adult Social Care Direct Payment
Peterborough City Council,Adults,Independent Sector Placements,Services,04/07/2018,8000119672,2391.04,Revenue,Redacted Personal Data,Adult Social Care Direct Payment
Peterborough City Council,Adults,Independent Sector Placements,Services,04/07/2018,8000119673,820.36,Revenue,Redacted Personal Data,Adult Social Care Direct Payment
Peterborough City Council,Adults,Independent Sector Placements,Services,04/07/2018,8000119674,700.04,Revenue,Redacted Personal Data,Adult Social Care Direct Payment
Peterborough City Council,Adults,Independent Sector Placements,Services,04/07/2018,8000119675,1664.4,Revenue,Redacted Personal Data,Adult Social Care Direct Payment
Peterborough City Council,Adults,Independent Sector Placements,Services,04/07/2018,8000119676,552.48,Revenue,Redacted Personal Data,Adult Social Care Direct Payment
Peterborough City Council,Adults,Independent Sector Placements,Services,04/07/2018,8000119678,1666.36,Revenue,Redacted Personal Data,Adult Social Care Direct Payment
Peterborough City Council,Adults,Independent Sector Placements,Services,04/07/2018,8000119679,1251.04,Revenue,Redacted Personal Data,Adult Social Care Direct Payment
Peterborough City Council,Adults,Independent Sector Placements,Services,04/07/2018,8000119680,1050.48,Revenue,Redacted Personal Data,Adult Social Care Direct Payment
Peterborough City Council,Adults,Independent Sector Placements,Services,04/07/2018,8000119681,4364.36,Revenue,Redacted Personal Data,Adult Social Care Direct Payment
Peterborough City Council,Adults,Independent Sector Placements,Services,04/07/2018,8000119682,993.36,Revenue,Redacted Personal Data,Adult Social Care Direct Payment
Peterborough City Council,Adults,Independent Sector Placements,Services,04/07/2018,8000119683,7956.76,Revenue,Redacted Personal Data,Adult Social Care Direct Payment
Peterborough City Council,Adults,Independent Sector Placements,Services,04/07/2018,8000119685,2118.6,Revenue,Redacted Personal Data,Adult Social Care Direct Payment
Peterborough City Council,Adults,Independent Sector Placements,Services,04/07/2018,8000119686,758.08,Revenue,Redacted Personal Data,Adult Social Care Direct Payment
Peterborough City Council,Adults,Independent Sector Placements,Services,04/07/2018,8000119693,1085.36,Revenue,Redacted Personal Data,Adult Social Care Direct Payment
Peterborough City Council,Adults,Independent Sector Placements,Services,04/07/2018,8000119696,590.08,Revenue,Redacted Personal Data,Adult Social Care Direct Payment
Peterborough City Council,Adults,Independent Sector Placements,Services,04/07/2018,8000119698,897.92,Revenue,Redacted Personal Data,Adult Social Care Direct Payment
Peterborough City Council,Adults,Independent Sector Placements,Services,04/07/2018,8000119700,30977.72,Revenue,Redacted Personal Data,Adult Social Care Direct Payment
Peterborough City Council,Adults,Independent Sector Placements,Services,04/07/2018,8000119701,6740.4,Revenue,Redacted Personal Data,Adult Social Care Direct Payment
Peterborough City Council,Adults,Independent Sector Placements,Services,04/07/2018,8000119702,694.3,Revenue,Redacted Personal Data,Adult Social Care Direct Payment
Peterborough City Council,Adults,Independent Sector Placements,Services,04/07/2018,8000119703,8333,Revenue,Redacted Personal Data,Adult Social Care Direct Payment
Peterborough City Council,Adults,Independent Sector Placements,Services,04/07/2018,8000119704,1113.28,Revenue,Redacted Personal Data,Adult Social Care Direct Payment
Peterborough City Council,Adults,Independent Sector Placements,Services,04/07/2018,8000119706,818.88,Revenue,Redacted Personal Data,Adult Social Care Direct Payment
Peterborough City Council,Adults,Independent Sector Placements,Services,04/07/2018,8000119707,3753.12,Revenue,Redacted Personal Data,Adult Social Care Direct Payment
Peterborough City Council,Adults,Independent Sector Placements,Services,04/07/2018,8000119708,681.08,Revenue,Redacted Personal Data,Adult Social Care Direct Payment
Peterborough City Council,Adults,Independent Sector Placements,Services,04/07/2018,8000119709,1279.96,Revenue,Redacted Personal Data,Adult Social Care Direct Payment
Peterborough City Council,Adults,Independent Sector Placements,Services,04/07/2018,8000119710,612.8,Revenue,Redacted Personal Data,Adult Social Care Direct Payment
Peterborough City Council,Adults,Independent Sector Placements,Services,04/07/2018,8000119711,2529.24,Revenue,Redacted Personal Data,Adult Social Care Direct Payment
Peterborough City Council,Adults,Independent Sector Placements,Services,04/07/2018,8000119712,2168.08,Revenue,Redacted Personal Data,Adult Social Care Direct Payment
Peterborough City Council,Adults,Independent Sector Placements,Services,04/07/2018,8000119713,569.68,Revenue,Redacted Personal Data,Adult Social Care Direct Payment
Peterborough City Council,Adults,Independent Sector Placements,Services,04/07/2018,8000119714,988.68,Revenue,Redacted Personal Data,Adult Social Care Direct Payment
Peterborough City Council,Adults,Independent Sector Placements,Services,04/07/2018,8000119715,705.36,Revenue,Redacted Personal Data,Adult Social Care Direct Payment
Peterborough City Council,Adults,Independent Sector Placements,Services,04/07/2018,8000119717,672.16,Revenue,Redacted Personal Data,Adult Social Care Direct Payment
Peterborough City Council,Adults,Independent Sector Placements,Services,04/07/2018,8000119718,1140.48,Revenue,Redacted Personal Data,Adult Social Care Direct Payment
Peterborough City Council,Adults,Independent Sector Placements,Services,04/07/2018,8000119720,623.04,Revenue,Redacted Personal Data,Adult Social Care Direct Payment
Peterborough City Council,Adults,Independent Sector Placements,Services,04/07/2018,8000119721,3990.48,Revenue,Redacted Personal Data,Adult Social Care Direct Payment
Peterborough City Council,Adults,Independent Sector Placements,Services,04/07/2018,8000119722,1316.44,Revenue,Redacted Personal Data,Adult Social Care Direct Payment
Peterborough City Council,Adults,Independent Sector Placements,Services,04/07/2018,8000119725,779.56,Revenue,Redacted Personal Data,Adult Social Care Direct Payment
Peterborough City Council,Adults,Independent Sector Placements,Services,04/07/2018,8000119726,1167.48,Revenue,Redacted Personal Data,Adult Social Care Direct Payment
Peterborough City Council,Adults,Independent Sector Placements,Services,04/07/2018,8000119727,1156.6,Revenue,Redacted Personal Data,Adult Social Care Direct Payment
Peterborough City Council,Adults,Independent Sector Placements,Services,04/07/2018,8000119728,500,Revenue,Redacted Personal Data,Adult Social Care Direct Payment
Peterborough City Council,Adults,Independent Sector Placements,Services,04/07/2018,8000119729,2978.52,Revenue,Redacted Personal Data,Adult Social Care Direct Payment
Peterborough City Council,Adults,Independent Sector Placements,Services,04/07/2018,8000119730,1180.28,Revenue,Redacted Personal Data,Adult Social Care Direct Payment
Peterborough City Council,Adults,Independent Sector Placements,Services,04/07/2018,8000119732,3488,Revenue,Redacted Personal Data,Adult Social Care Direct Payment
Peterborough City Council,Adults,Independent Sector Placements,Services,04/07/2018,8000119733,898.96,Revenue,Redacted Personal Data,Adult Social Care Direct Payment
Peterborough City Council,Adults,Independent Sector Placements,Services,04/07/2018,8000119734,988.96,Revenue,Redacted Personal Data,Adult Social Care Direct Payment
Peterborough City Council,Adults,Independent Sector Placements,Services,04/07/2018,8000119735,3349.28,Revenue,Redacted Personal Data,Adult Social Care Direct Payment
Peterborough City Council,Adults,Independent Sector Placements,Services,04/07/2018,8000119736,579.68,Revenue,Redacted Personal Data,Adult Social Care Direct Payment
Peterborough City Council,Adults,Independent Sector Placements,Services,04/07/2018,8000119737,965.16,Revenue,Redacted Personal Data,Adult Social Care Direct Payment
Peterborough City Council,Adults,Independent Sector Placements,Services,04/07/2018,8000119738,1120,Revenue,Redacted Personal Data,Adult Social Care Direct Payment
Peterborough City Council,Adults,Independent Sector Placements,Services,04/07/2018,8000119739,587.2,Revenue,Redacted Personal Data,Adult Social Care Direct Payment
Peterborough City Council,Adults,Independent Sector Placements,Services,04/07/2018,8000119741,1041.76,Revenue,Redacted Personal Data,Adult Social Care Direct Payment
Peterborough City Council,Adults,Independent Sector Placements,Services,04/07/2018,8000119742,9339,Revenue,Redacted Personal Data,Adult Social Care Direct Payment
Peterborough City Council,Adults,Independent Sector Placements,Services,04/07/2018,8000119745,956.76,Revenue,Redacted Personal Data,Adult Social Care Direct Payment
Peterborough City Council,Adults,Independent Sector Placements,Services,04/07/2018,8000119746,1709.56,Revenue,Redacted Personal Data,Adult Social Care Direct Payment
Peterborough City Council,Adults,Independent Sector Placements,Services,04/07/2018,8000119747,858.48,Revenue,Redacted Personal Data,Adult Social Care Direct Payment
Peterborough City Council,Adults,Independent Sector Placements,Services,04/07/2018,8000119748,701.64,Revenue,Redacted Personal Data,Adult Social Care Direct Payment
Peterborough City Council,Adults,Independent Sector Placements,Services,04/07/2018,8000119749,547.32,Revenue,Redacted Personal Data,Adult Social Care Direct Payment
Peterborough City Council,Adults,Independent Sector Placements,Services,04/07/2018,8000119751,792.48,Revenue,Redacted Personal Data,Adult Social Care Direct Payment
Peterborough City Council,Adults,Independent Sector Placements,Services,04/07/2018,8000119752,601.48,Revenue,Redacted Personal Data,Adult Social Care Direct Payment
Peterborough City Council,Adults,Independent Sector Placements,Services,04/07/2018,8000119753,1576.24,Revenue,Redacted Personal Data,Adult Social Care Direct Payment
Peterborough City Council,Adults,Independent Sector Placements,Services,04/07/2018,8000119756,1694.4,Revenue,Redacted Personal Data,Adult Social Care Direct Payment
Peterborough City Council,Adults,Independent Sector Placements,Services,04/07/2018,8000119757,750,Revenue,Redacted Personal Data,Adult Social Care Direct Payment
Peterborough City Council,Adults,Independent Sector Placements,Services,04/07/2018,8000119758,3206.64,Revenue,Redacted Personal Data,Adult Social Care Direct Payment
Peterborough City Council,Adults,Independent Sector Placements,Services,04/07/2018,8000119761,659.08,Revenue,Redacted Personal Data,Adult Social Care Direct Payment
Peterborough City Council,Adults,Independent Sector Placements,Services,04/07/2018,8000119763,5120,Revenue,Redacted Personal Data,Adult Social Care Direct Payment
Peterborough City Council,Adults,Independent Sector Placements,Services,04/07/2018,8000119764,1998.52,Revenue,Redacted Personal Data,Adult Social Care Direct Payment
Peterborough City Council,Adults,Independent Sector Placements,Services,04/07/2018,8000119766,978.48,Revenue,Redacted Personal Data,Adult Social Care Direct Payment
Peterborough City Council,Adults,Independent Sector Placements,Services,04/07/2018,8000119767,705.6,Revenue,Redacted Personal Data,Adult Social Care Direct Payment
Peterborough City Council,Adults,Independent Sector Placements,Services,04/07/2018,8000119768,554.64,Revenue,Redacted Personal Data,Adult Social Care Direct Payment
Peterborough City Council,Adults,Independent Sector Placements,Services,04/07/2018,8000119771,2357.35,Revenue,Redacted Personal Data,Adult Social Care Direct Payment
Peterborough City Council,Adults,Independent Sector Placements,Services,04/07/2018,8000119775,733.36,Revenue,Redacted Personal Data,Adult Social Care Direct Payment
Peterborough City Council,Adults,Independent Sector Placements,Services,04/07/2018,8000119777,616.36,Revenue,Redacted Personal Data,Adult Social Care Direct Payment
Peterborough City Council,Adults,Independent Sector Placements,Services,04/07/2018,8000119778,891.04,Revenue,Redacted Personal Data,Adult Social Care Direct Payment
Peterborough City Council,Adults,Independent Sector Placements,Services,04/07/2018,8000119779,895.32,Revenue,Redacted Personal Data,Adult Social Care Direct Payment
Peterborough City Council,Adults,Independent Sector Placements,Services,04/07/2018,8000119780,3411.04,Revenue,Redacted Personal Data,Adult Social Care Direct Payment
Peterborough City Council,Adults,Independent Sector Placements,Services,04/07/2018,8000119781,1769.52,Revenue,Redacted Personal Data,Adult Social Care Direct Payment
Peterborough City Council,Adults,Independent Sector Placements,Services,04/07/2018,8000119783,504,Revenue,Redacted Personal Data,Adult Social Care Direct Payment
Peterborough City Council,Adults,Independent Sector Placements,Services,04/07/2018,8000119784,2034.48,Revenue,Redacted Personal Data,Adult Social Care Direct Payment
Peterborough City Council,Adults,Independent Sector Placements,Services,04/07/2018,8000119785,864.2,Revenue,Redacted Personal Data,Adult Social Care Direct Payment
Peterborough City Council,Adults,Independent Sector Placements,Services,04/07/2018,8000119789,1435.56,Revenue,Redacted Personal Data,Adult Social Care Direct Payment
Peterborough City Council,Adults,Independent Sector Placements,Services,04/07/2018,8000119791,1073,Revenue,Redacted Personal Data,Adult Social Care Direct Payment
Peterborough City Council,Adults,Independent Sector Placements,Services,04/07/2018,8000119793,673.12,Revenue,Redacted Personal Data,Adult Social Care Direct Payment
Peterborough City Council,Adults,Independent Sector Placements,Services,04/07/2018,8000119794,594.68,Revenue,Redacted Personal Data,Adult Social Care Direct Payment
Peterborough City Council,Adults,Independent Sector Placements,Services,04/07/2018,8000119796,2033.44,Revenue,Redacted Personal Data,Adult Social Care Direct Payment
Peterborough City Council,Adults,Independent Sector Placements,Services,04/07/2018,8000119798,637.84,Revenue,Redacted Personal Data,Adult Social Care Direct Payment
Peterborough City Council,Adults,Independent Sector Placements,Services,04/07/2018,8000119801,844.3,Revenue,Redacted Personal Data,Adult Social Care Direct Payment
Peterborough City Council,Adults,Independent Sector Placements,Services,04/07/2018,8000119805,844.48,Revenue,Redacted Personal Data,Adult Social Care Direct Payment
Peterborough City Council,Adults,Independent Sector Placements,Services,04/07/2018,8000119806,706.48,Revenue,Redacted Personal Data,Adult Social Care Direct Payment
Peterborough City Council,Adults,Independent Sector Placements,Services,04/07/2018,8000119807,802.68,Revenue,Redacted Personal Data,Adult Social Care Direct Payment
Peterborough City Council,Adults,Independent Sector Placements,Services,04/07/2018,8000119808,907.8,Revenue,Redacted Personal Data,Adult Social Care Direct Payment
Peterborough City Council,Adults,Independent Sector Placements,Services,04/07/2018,8000119810,602.48,Revenue,Redacted Personal Data,Adult Social Care Direct Payment
Peterborough City Council,Adults,Independent Sector Placements,Services,04/07/2018,8000119811,4621.12,Revenue,Redacted Personal Data,Adult Social Care Direct Payment
Peterborough City Council,Adults,Independent Sector Placements,Services,04/07/2018,8000119814,714.4,Revenue,Redacted Personal Data,Adult Social Care Direct Payment
Peterborough City Council,Adults,Independent Sector Placements,Services,04/07/2018,8000119815,1444.08,Revenue,Redacted Personal Data,Adult Social Care Direct Payment
Peterborough City Council,Adults,Independent Sector Placements,Services,04/07/2018,8000119816,786.48,Revenue,Redacted Personal Data,Adult Social Care Direct Payment
Peterborough City Council,Adults,Independent Sector Placements,Services,04/07/2018,8000119817,900.48,Revenue,Redacted Personal Data,Adult Social Care Direct Payment
Peterborough City Council,Adults,Independent Sector Placements,Services,04/07/2018,8000119818,2271.04,Revenue,Redacted Personal Data,Adult Social Care Direct Payment
Peterborough City Council,Adults,Independent Sector Placements,Services,04/07/2018,8000119820,606.48,Revenue,Redacted Personal Data,Adult Social Care Direct Payment
Peterborough City Council,Adults,Independent Sector Placements,Services,04/07/2018,8000119823,969.35,Revenue,Redacted Personal Data,Adult Social Care Direct Payment
Peterborough City Council,Adults,Independent Sector Placements,Services,04/07/2018,8000119825,1788.03,Revenue,Redacted Personal Data,Adult Social Care Direct Payment
Peterborough City Council,Adults,Independent Sector Placements,Services,04/07/2018,8000119828,541.24,Revenue,Redacted Personal Data,Adult Social Care Direct Payment
Peterborough City Council,Adults,Independent Sector Placements,Services,04/07/2018,8000119829,2958.48,Revenue,Redacted Personal Data,Adult Social Care Direct Payment
Peterborough City Council,Adults,Independent Sector Placements,Services,04/07/2018,8000119833,538.48,Revenue,Redacted Personal Data,Adult Social Care Direct Payment
Peterborough City Council,Adults,Independent Sector Placements,Services,04/07/2018,8000119838,1574,Revenue,Redacted Personal Data,Adult Social Care Direct Payment
Peterborough City Council,Adults,Independent Sector Placements,Services,04/07/2018,8000119873,587.2,Revenue,Sagecare,Home Care
Peterborough City Council,Legal Services,Legal Services,Agency Staff,05/07/2018,30185977,773.69,Revenue,Venn Group Ltd,External Temporary Staff
Peterborough City Council,Westcombe Engineering,Westcombe Engineering,"Tools, Equipment, Furniture & Materials",06/07/2018,30176837,948.26,Revenue,Carillon Industrial Services Ltd,Tools
Peterborough City Council,Children's & Safeguarding,Children's Social Care,Agency Staff,06/07/2018,30177348,3580.5,Revenue,Service Care Solutions Ltd,External Temporary Staff
Peterborough City Council,Energy,Environment Capital,Services,06/07/2018,30180472,1142.16,Revenue,NPS Peterborough Ltd,Consultants Fees
Peterborough City Council,Communities,Parking,Services,06/07/2018,30181768,3880,Revenue,24181-TEC-Bulk-Issue,Hired Services
Peterborough City Council,Commissioning and Commercial Operations,Early Years & Quality Improvement,Services,06/07/2018,30181841,3375.45,Revenue,The Peterborough School Limited,Grant Payment
Peterborough City Council,Adults,Independent Sector Placements,Services,06/07/2018,30182386,2956.6,Revenue,Maison Care Ltd,Residential Care
Peterborough City Council,Adults,Mental Capacity Act & DoLs,Services,06/07/2018,30182491,949,Revenue,Raj Medical Consultancy Limited,Hired Services
Peterborough City Council,Peterborough Highway Services,Transport & Infrastructure Commissioning,Services,06/07/2018,30182500,1153.84,Revenue,Stagecoach in Peterborough,Contractors
Peterborough City Council,Peterborough Highway Services,Transport & Infrastructure Commissioning,Services,06/07/2018,30182501,1153.85,Revenue,Stagecoach in Peterborough,Contractors
Peterborough City Council,Peterborough Highway Services,Transport & Infrastructure Commissioning,Services,06/07/2018,30182502,1153.85,Revenue,Stagecoach in Peterborough,Contractors
Peterborough City Council,Peterborough Highway Services,Transport & Infrastructure Commissioning,Services,06/07/2018,30182503,1153.85,Revenue,Stagecoach in Peterborough,Contractors
Peterborough City Council,Peterborough Highway Services,Transport & Infrastructure Commissioning,Services,06/07/2018,30182504,1153.84,Revenue,Stagecoach in Peterborough,Contractors
Peterborough City Council,Peterborough Highway Services,Transport & Infrastructure Commissioning,Services,06/07/2018,30182505,1153.85,Revenue,Stagecoach in Peterborough,Contractors
Peterborough City Council,Peterborough Highway Services,Transport & Infrastructure Commissioning,Services,06/07/2018,30182506,1153.85,Revenue,Stagecoach in Peterborough,Contractors
Peterborough City Council,Peterborough Highway Services,Transport & Infrastructure Commissioning,Services,06/07/2018,30182507,1153.85,Revenue,Stagecoach in Peterborough,Contractors
Peterborough City Council,Peterborough Highway Services,Transport & Infrastructure Commissioning,Services,06/07/2018,30182508,1153.84,Revenue,Stagecoach in Peterborough,Contractors
Peterborough City Council,Peterborough Highway Services,Transport & Infrastructure Commissioning,Services,06/07/2018,30182509,1153.84,Revenue,Stagecoach in Peterborough,Contractors
Peterborough City Council,Peterborough Highway Services,Transport & Infrastructure Commissioning,Services,06/07/2018,30182510,1153.85,Revenue,Stagecoach in Peterborough,Contractors
Peterborough City Council,Commissioning and Commercial Operations,Clare Lodge,Agency Staff,06/07/2018,30182579,1376,Revenue,Wrixon Care Services,External Temporary Staff
Peterborough City Council,Commissioning and Commercial Operations,Clare Lodge,Agency Staff,06/07/2018,30182580,1352,Revenue,Wrixon Care Services,External Temporary Staff
Peterborough City Council,Commissioning and Commercial Operations,Clare Lodge,Agency Staff,06/07/2018,30182581,912,Revenue,Wrixon Care Services,External Temporary Staff
Peterborough City Council,Commissioning and Commercial Operations,Clare Lodge,Agency Staff,06/07/2018,30182582,1376,Revenue,Wrixon Care Services,External Temporary Staff
Peterborough City Council,Commissioning and Commercial Operations,Clare Lodge,Agency Staff,06/07/2018,30182585,1736,Revenue,Wrixon Care Services,External Temporary Staff
Peterborough City Council,Commissioning and Commercial Operations,Clare Lodge,Agency Staff,06/07/2018,30182586,592,Revenue,Wrixon Care Services,External Temporary Staff
Peterborough City Council,Commissioning and Commercial Operations,Clare Lodge,Agency Staff,06/07/2018,30182589,1040,Revenue,Wrixon Care Services,External Temporary Staff
Peterborough City Council,Financial Services,Finance,Agency Staff,06/07/2018,30182618,1045.45,Revenue,Morgan Hunt UK Ltd,External Temporary Staff
Peterborough City Council,Peterborough Highway Services,Highway & Drainage Control,Agency Staff,06/07/2018,30182636,1465.2,Revenue,Matchtech,External Temporary Staff
Peterborough City Council,Corporate,Corporate,Non Revenue,06/07/2018,30182808,2437.5,Capital,Dolphin Mobility East Midlands Ltd,Grant Payment
Peterborough City Council,Corporate,Corporate,Non Revenue,06/07/2018,30182814,5093,Capital,Gaswise Services Ltd,Grant Payment
Peterborough City Council,Corporate,Corporate,Non Revenue,06/07/2018,30182815,8321,Capital,Gaswise Services Ltd,Grant Payment
Peterborough City Council,Corporate,Corporate,Non Revenue,06/07/2018,30182817,7810,Capital,Casbon Building Services,Grant Payment
Peterborough City Council,Corporate,Corporate,Non Revenue,06/07/2018,30182818,3616,Capital,A W Morley T/A Morley Building Services,Grant Payment
Peterborough City Council,Adults,Independent Sector Placements,Services,06/07/2018,30182905,4531.4,Revenue,Craegmoor Priory Group,Residential Care
Peterborough City Council,Adults,Independent Sector Placements,Services,06/07/2018,30182906,5634.36,Revenue,Craegmoor Priory Group,Residential Care
Peterborough City Council,Adults,Independent Sector Placements,Services,06/07/2018,30182907,4756,Revenue,Craegmoor Priory Group,Residential Care
Peterborough City Council,Adults,Independent Sector Placements,Services,06/07/2018,30182922,920.44,Revenue,Craegmoor Priory Group,Residential Care
Peterborough City Council,Adults,Independent Sector Placements,Services,06/07/2018,30182923,3121.2,Revenue,Craegmoor Priory Group,Residential Care
Peterborough City Council,Regulatory Services,Regulatory Services,Services,06/07/2018,30183046,752.04,Revenue,Public Analyst Scientific Services Ltd,Scientific Testing
Peterborough City Council,Legal Services,Legal Services,Services,06/07/2018,30183083,840,Revenue,Mr Paul Hollow,Legal Costs
Peterborough City Council,Westcombe Engineering,Westcombe Engineering,Services,06/07/2018,30183182,1525,Revenue,Measurement Solutions Ltd,Hired Services
Peterborough City Council,Peterborough Serco Strategic Partnership,PSSP Retained Services,Services,06/07/2018,30183318,804.64,Revenue,Whistl UK Ltd,Postage
Peterborough City Council,Peterborough Serco Strategic Partnership,PSSP Retained Services,Services,06/07/2018,30183320,1953.53,Revenue,Whistl UK Ltd,Postage
Peterborough City Council,Adults,Independent Sector Placements,Services,06/07/2018,30183403,4559,Revenue,Voyage,Home Care
Peterborough City Council,Adults,Independent Sector Placements,Services,06/07/2018,30183412,7966.75,Revenue,NEW BOUNDARIES COMMUNITY SERVICES LTD,Residential Care
Peterborough City Council,Adults,Independent Sector Placements,Services,06/07/2018,30183440,848.7,Revenue,Merit Homecare Ltd,Home Care
Peterborough City Council,Adults,Independent Sector Placements,Services,06/07/2018,30183441,926,Revenue,Swanton Community Support,Residential Care
Peterborough City Council,Westcombe Engineering,Westcombe Engineering,"Tools, Equipment, Furniture & Materials",06/07/2018,30183587,513.61,Revenue,Carillon Industrial Services Ltd,Tools
Peterborough City Council,Westcombe Engineering,Westcombe Engineering,"Tools, Equipment, Furniture & Materials",06/07/2018,30183589,853.87,Revenue,Carillon Industrial Services Ltd,Tools
Peterborough City Council,Westcombe Engineering,Westcombe Engineering,"Tools, Equipment, Furniture & Materials",06/07/2018,30183591,732.67,Revenue,Carillon Industrial Services Ltd,Tools
Peterborough City Council,Westcombe Engineering,Westcombe Engineering,"Tools, Equipment, Furniture & Materials",06/07/2018,30183593,721.53,Revenue,Carillon Industrial Services Ltd,Tools
Peterborough City Council,Westcombe Engineering,Westcombe Engineering,"Tools, Equipment, Furniture & Materials",06/07/2018,30183603,536.59,Revenue,Carillon Industrial Services Ltd,Tools
Peterborough City Council,Westcombe Engineering,Westcombe Engineering,"Tools, Equipment, Furniture & Materials",06/07/2018,30183611,554.61,Revenue,Carillon Industrial Services Ltd,Tools
Peterborough City Council,Development and Construction,Development Management,Agency Staff,06/07/2018,30183822,1000.21,Revenue,Reed Specialist Recruitment Limited,External Temporary Staff
Peterborough City Council,Adults,Independent Sector Placements,Services,06/07/2018,30183910,6477.48,Revenue,Manchester House (Dovehaven Care Homes),Residential Care
Peterborough City Council,Corporate,Corporate,Non Revenue,06/07/2018,30184045,1121.8,Capital,Reed Specialist Recruitment Limited,Consultants Fees
Peterborough City Council,Development and Construction,Development Management,Agency Staff,06/07/2018,30184046,1113.13,Revenue,Reed Specialist Recruitment Limited,External Temporary Staff
Peterborough City Council,Development and Construction,Development Management,Agency Staff,06/07/2018,30184057,1000.21,Revenue,Reed Specialist Recruitment Limited,External Temporary Staff
Peterborough City Council,Communities,Service Director - Adults & Communities,Third Party Payment,06/07/2018,30184222,10000,Revenue,P'Boro Council For Voluntary Srvs (PCVS),Grant-Third Party
Peterborough City Council,Adults,Independent Sector Placements,Services,06/07/2018,30184449,652.5,Revenue,Cross Keys Homes,Home Care
Peterborough City Council,Westcombe Engineering,Westcombe Engineering,"Tools, Equipment, Furniture & Materials",06/07/2018,30184491,567.6,Revenue,Barron Clark Castings Ltd,Items For Resale
Peterborough City Council,Westcombe Engineering,Westcombe Engineering,"Tools, Equipment, Furniture & Materials",06/07/2018,30184497,596,Revenue,Barron Clark Castings Ltd,Items For Resale
Peterborough City Council,"Waste, Cleansing and Open Spaces",Waste & Operational Svs Mgmt,Services,06/07/2018,30184634,7974,Revenue,Eastern Shires Purchasing Organisation,Consultants Fees
Peterborough City Council,Commissioning and Commercial Operations,Clare Lodge,Agency Staff,06/07/2018,30184811,745.66,Revenue,Reed Specialist Recruitment Limited,External Temporary Staff
Peterborough City Council,Development and Construction,Development Management,Agency Staff,06/07/2018,30184926,1000.21,Revenue,Reed Specialist Recruitment Limited,External Temporary Staff
Peterborough City Council,Children's & Safeguarding,Early Help ASC/CSC,Agency Staff,06/07/2018,30184927,543.39,Revenue,Reed Specialist Recruitment Limited,External Temporary Staff
Peterborough City Council,Regulatory Services,Regulatory Services,Agency Staff,06/07/2018,30184949,935.6,Revenue,Reed Specialist Recruitment Limited,External Temporary Staff
Peterborough City Council,Regulatory Services,Regulatory Services,Agency Staff,06/07/2018,30184951,736.56,Revenue,Reed Specialist Recruitment Limited,External Temporary Staff
Peterborough City Council,Development and Construction,Development Management,Agency Staff,06/07/2018,30184954,1064.38,Revenue,Reed Specialist Recruitment Limited,External Temporary Staff
Peterborough City Council,Regulatory Services,Regulatory Services,Agency Staff,06/07/2018,30184957,1111.86,Revenue,Reed Specialist Recruitment Limited,External Temporary Staff
Peterborough City Council,Corporate,Corporate,Non Revenue,06/07/2018,30185031,4592.9,Capital,NPS Peterborough Ltd,Consultants Fees
Peterborough City Council,Corporate,Corporate,Non Revenue,06/07/2018,30185032,4628.66,Capital,NPS Peterborough Ltd,Consultants Fees
Peterborough City Council,Adults,Independent Sector Placements,Services,06/07/2018,30185204,915.76,Revenue,LAVENDER HOUSE RESIDENTIAL HOME,Residential Care
Peterborough City Council,Adults,Independent Sector Placements,Services,06/07/2018,30185205,743.36,Revenue,Sagecare,Home Care
Peterborough City Council,Adults,Independent Sector Placements,Services,06/07/2018,30185207,8836.32,Revenue,Alysia Caring Ltd T/a Cherry Blossom care Home,Residential Care
Peterborough City Council,Adults,Independent Sector Placements,Services,06/07/2018,30185212,2072.16,Revenue,BROADLEIGH NURSING HOME,Residential Care
Peterborough City Council,Adults,Independent Sector Placements,Services,06/07/2018,30185213,2474.64,Revenue,BROADLEIGH NURSING HOME,Residential Care
Peterborough City Council,Adults,Independent Sector Placements,Services,06/07/2018,30185214,1452.12,Revenue,BROADLEIGH NURSING HOME,Residential Care
Peterborough City Council,Adults,Independent Sector Placements,Services,06/07/2018,30185234,677.7,Revenue,Red Rock Partnership Ltd,Home Care
Peterborough City Council,Adults,Independent Sector Placements,Services,06/07/2018,30185236,797.4,Revenue,Red Rock Partnership Ltd,Home Care
Peterborough City Council,Adults,Independent Sector Placements,Services,06/07/2018,30185237,797.4,Revenue,Red Rock Partnership Ltd,Home Care
Peterborough City Council,Adults,Independent Sector Placements,Services,06/07/2018,30185238,803.24,Revenue,Red Rock Partnership Ltd,Home Care
Peterborough City Council,Adults,Independent Sector Placements,Services,06/07/2018,30185239,797.4,Revenue,Red Rock Partnership Ltd,Home Care
Peterborough City Council,Adults,Independent Sector Placements,Services,06/07/2018,30185242,685.8,Revenue,Red Rock Partnership Ltd,Home Care
Peterborough City Council,Adults,Independent Sector Placements,Services,06/07/2018,30185243,797.4,Revenue,Red Rock Partnership Ltd,Home Care
Peterborough City Council,Adults,Independent Sector Placements,Services,06/07/2018,30185245,803.24,Revenue,Red Rock Partnership Ltd,Home Care
Peterborough City Council,Adults,Independent Sector Placements,Services,06/07/2018,30185246,797.4,Revenue,Red Rock Partnership Ltd,Home Care
Peterborough City Council,Children's & Safeguarding,Children's Social Care,Agency Staff,06/07/2018,30185284,2423.18,Revenue,Eden Brown Ltd,External Temporary Staff
Peterborough City Council,Adults,Independent Sector Placements,Services,06/07/2018,30185303,2195.96,Revenue,LAVENDER HOUSE RESIDENTIAL HOME,Residential Care
Peterborough City Council,Adults,Independent Sector Placements,Services,06/07/2018,30185304,1241.88,Revenue,LAVENDER HOUSE RESIDENTIAL HOME,Residential Care
Peterborough City Council,Adults,Independent Sector Placements,Services,06/07/2018,30185317,924,Revenue,Sahara Community Care Services Limited,Home Care
Peterborough City Council,Adults,Independent Sector Placements,Services,06/07/2018,30185376,2760.8,Revenue,Axiom Housing Association Ltd,Home Care
Peterborough City Council,Adults,Independent Sector Placements,Services,06/07/2018,30185378,998.25,Revenue,Park Vista Care Home,Residential Care
Peterborough City Council,Adults,Independent Sector Placements,Services,06/07/2018,30185384,631.21,Revenue,Park Vista Care Home,Residential Care
Peterborough City Council,Adults,Independent Sector Placements,Services,06/07/2018,30185408,2138.08,Revenue,PHILIA LODGE REST HOME,Residential Care
Peterborough City Council,Adults,Independent Sector Placements,Services,06/07/2018,30185412,3233.44,Revenue,STAR RESIDENTIAL HOME LTD,Residential Care
Peterborough City Council,Adults,Independent Sector Placements,Services,06/07/2018,30185414,3233.44,Revenue,STAR RESIDENTIAL HOME LTD,Residential Care
Peterborough City Council,Adults,Independent Sector Placements,Services,06/07/2018,30185417,1490.24,Revenue,STAR RESIDENTIAL HOME LTD,Residential Care
Peterborough City Council,Adults,Independent Sector Placements,Services,06/07/2018,30185418,2580.04,Revenue,STAR RESIDENTIAL HOME LTD,Residential Care
Peterborough City Council,Adults,Independent Sector Placements,Services,06/07/2018,30185419,4272.76,Revenue,STAR RESIDENTIAL HOME LTD,Residential Care
Peterborough City Council,Adults,Independent Sector Placements,Services,06/07/2018,30185420,2651.8,Revenue,STAR RESIDENTIAL HOME LTD,Residential Care
Peterborough City Council,Adults,Independent Sector Placements,Services,06/07/2018,30185424,2681.04,Revenue,STAR RESIDENTIAL HOME LTD,Residential Care
Peterborough City Council,Adults,Independent Sector Placements,Services,06/07/2018,30185426,2684.04,Revenue,STAR RESIDENTIAL HOME LTD,Residential Care
Peterborough City Council,Adults,Independent Sector Placements,Services,06/07/2018,30185428,2685.04,Revenue,STAR RESIDENTIAL HOME LTD,Residential Care
Peterborough City Council,Adults,Independent Sector Placements,Services,06/07/2018,30185432,2867.96,Revenue,STAR RESIDENTIAL HOME LTD,Residential Care
Peterborough City Council,Adults,Independent Sector Placements,Services,06/07/2018,30185433,2354.56,Revenue,STAR RESIDENTIAL HOME LTD,Residential Care
Peterborough City Council,Adults,Independent Sector Placements,Services,06/07/2018,30185434,3232.64,Revenue,STAR RESIDENTIAL HOME LTD,Residential Care
Peterborough City Council,Adults,Independent Sector Placements,Services,06/07/2018,30185435,3236.44,Revenue,STAR RESIDENTIAL HOME LTD,Residential Care
Peterborough City Council,Adults,Independent Sector Placements,Services,06/07/2018,30185436,3233.44,Revenue,STAR RESIDENTIAL HOME LTD,Residential Care
Peterborough City Council,Communities,Housing,Services,06/07/2018,30185437,553,Revenue,Eastfield Guesthouse,Temporary Accommodation Costs
Peterborough City Council,Communities,Housing,Services,06/07/2018,30185441,553,Revenue,Eastfield Guesthouse,Temporary Accommodation Costs
Peterborough City Council,Communities,Housing,Services,06/07/2018,30185442,553,Revenue,Eastfield Guesthouse,Temporary Accommodation Costs
Peterborough City Council,Communities,Housing,Services,06/07/2018,30185443,553,Revenue,Eastfield Guesthouse,Temporary Accommodation Costs
Peterborough City Council,Communities,Housing,Services,06/07/2018,30185445,553,Revenue,Eastfield Guesthouse,Temporary Accommodation Costs
Peterborough City Council,Communities,Housing,Services,06/07/2018,30185446,553,Revenue,Eastfield Guesthouse,Temporary Accommodation Costs
Peterborough City Council,Communities,Housing,Services,06/07/2018,30185449,553,Revenue,Eastfield Guesthouse,Temporary Accommodation Costs
Peterborough City Council,Communities,Housing,Services,06/07/2018,30185450,553,Revenue,Eastfield Guesthouse,Temporary Accommodation Costs
Peterborough City Council,Communities,Housing,Services,06/07/2018,30185451,553,Revenue,Eastfield Guesthouse,Temporary Accommodation Costs
Peterborough City Council,Communities,Housing,Services,06/07/2018,30185454,553,Revenue,Eastfield Guesthouse,Temporary Accommodation Costs
Peterborough City Council,Communities,Housing,Services,06/07/2018,30185455,553,Revenue,Eastfield Guesthouse,Temporary Accommodation Costs
Peterborough City Council,Communities,Housing,Services,06/07/2018,30185460,553,Revenue,Eastfield Guesthouse,Temporary Accommodation Costs
Peterborough City Council,Adults,Independent Sector Placements,Services,06/07/2018,30185472,1975.6,Revenue,PHILIA LODGE REST HOME,Residential Care
Peterborough City Council,Adults,Independent Sector Placements,Services,06/07/2018,30185474,2050.92,Revenue,PHILIA LODGE REST HOME,Residential Care
Peterborough City Council,Adults,Independent Sector Placements,Services,06/07/2018,30185476,1822.2,Revenue,PHILIA LODGE REST HOME,Residential Care
Peterborough City Council,Adults,Independent Sector Placements,Services,06/07/2018,30185477,2021.88,Revenue,PHILIA LODGE REST HOME,Residential Care
Peterborough City Council,Adults,Independent Sector Placements,Services,06/07/2018,30185478,11079.36,Revenue,PHILIA LODGE REST HOME,Residential Care
Peterborough City Council,Adults,Independent Sector Placements,Services,06/07/2018,30185479,1236.72,Revenue,PHILIA LODGE REST HOME,Residential Care
Peterborough City Council,Adults,Independent Sector Placements,Services,06/07/2018,30185480,2648,Revenue,PHILIA LODGE REST HOME,Residential Care
Peterborough City Council,Peterborough Serco Strategic Partnership,PSSP Retained Services,"Tools, Equipment, Furniture & Materials",06/07/2018,30185481,1189.42,Revenue,Pitney Bowes Limited,Equipment 
Peterborough City Council,Adults,Independent Sector Placements,Services,06/07/2018,30185482,2648,Revenue,PHILIA LODGE REST HOME,Residential Care
Peterborough City Council,Adults,Independent Sector Placements,Services,06/07/2018,30185485,848.32,Revenue,PHILIA LODGE REST HOME,Residential Care
Peterborough City Council,HR,HR,Services,06/07/2018,30185487,12273.06,Revenue,Edenred,Childcare
Peterborough City Council,Adults,Independent Sector Placements,Services,06/07/2018,30185489,2648,Revenue,PHILIA LODGE REST HOME,Residential Care
Peterborough City Council,Adults,Independent Sector Placements,Services,06/07/2018,30185493,1885.71,Revenue,Park Vista Care Home,Residential Care
Peterborough City Council,Communities,Housing,Services,06/07/2018,30185498,553,Revenue,Eastfield Guesthouse,Temporary Accommodation Costs
Peterborough City Council,Communities,Housing,Services,06/07/2018,30185500,553,Revenue,Eastfield Guesthouse,Temporary Accommodation Costs
Peterborough City Council,Communities,Housing,Services,06/07/2018,30185507,532,Revenue,Eastfield Guesthouse,Temporary Accommodation Costs
Peterborough City Council,Communities,Housing,Services,06/07/2018,30185515,532,Revenue,Eastfield Guesthouse,Temporary Accommodation Costs
Peterborough City Council,Communities,Housing,Services,06/07/2018,30185516,532,Revenue,Eastfield Guesthouse,Temporary Accommodation Costs
Peterborough City Council,Children's & Safeguarding,Access to Resources & Specialist Commissioning,Agency Staff,06/07/2018,30185521,880,Revenue,HCL Social Care Ltd,External Temporary Staff
Peterborough City Council,Commissioning and Commercial Operations,Clare Lodge,Agency Staff,06/07/2018,30185522,785.97,Revenue,Reed Specialist Recruitment Limited,External Temporary Staff
Peterborough City Council,Commissioning and Commercial Operations,Clare Lodge,Agency Staff,06/07/2018,30185523,559.63,Revenue,Reed Specialist Recruitment Limited,External Temporary Staff
Peterborough City Council,Adults,Independent Sector Placements,Services,06/07/2018,30185524,-2196.6,Revenue,Alysia Caring Ltd T/a Cherry Blossom care Home,Residential Care
Peterborough City Council,Adults,Independent Sector Placements,Services,06/07/2018,30185525,2219.04,Revenue,Alysia Caring Ltd T/a Cherry Blossom care Home,Residential Care
Peterborough City Council,Adults,Independent Sector Placements,Services,06/07/2018,30185532,1034.84,Revenue,Park Vista Care Home,Residential Care
Peterborough City Council,Adults,Independent Sector Placements,Services,06/07/2018,30185533,1284.08,Revenue,Park Vista Care Home,Residential Care
Peterborough City Council,Adults,Independent Sector Placements,Services,06/07/2018,30185534,1034.84,Revenue,Park Vista Care Home,Residential Care
Peterborough City Council,Adults,Independent Sector Placements,Services,06/07/2018,30185535,1284.08,Revenue,Park Vista Care Home,Residential Care
Peterborough City Council,Commissioning and Commercial Operations,Clare Lodge,Agency Staff,06/07/2018,30185538,570.31,Revenue,Reed Specialist Recruitment Limited,External Temporary Staff
Peterborough City Council,Adults,Independent Sector Placements,Services,06/07/2018,30185540,1284.08,Revenue,Park Vista Care Home,Residential Care
Peterborough City Council,Adults,Independent Sector Placements,Services,06/07/2018,30185541,643.84,Revenue,Park Vista Care Home,Residential Care
Peterborough City Council,Adults,Independent Sector Placements,Services,06/07/2018,30185542,676.8,Revenue,Park Vista Care Home,Residential Care
Peterborough City Council,Adults,Independent Sector Placements,Services,06/07/2018,30185543,631.21,Revenue,Park Vista Care Home,Residential Care
Peterborough City Council,Adults,Independent Sector Placements,Services,06/07/2018,30185544,676.8,Revenue,Park Vista Care Home,Residential Care
Peterborough City Council,Adults,Independent Sector Placements,Services,06/07/2018,30185545,1284.08,Revenue,Park Vista Care Home,Residential Care
Peterborough City Council,Adults,Independent Sector Placements,Services,06/07/2018,30185567,762.9,Revenue,MEARS GROUP,Home Care
Peterborough City Council,Adults,Day opportunities - Older People,Catering,06/07/2018,30185569,1061.9,Revenue,The Cresset (Peterborough) Ltd,Catering Provisions
Peterborough City Council,Communities,Housing,Services,06/07/2018,30185580,553,Revenue,Eastfield Guesthouse,Temporary Accommodation Costs
Peterborough City Council,Adults,Block Contracts,Contract Hire and Operating Leases,06/07/2018,30185585,5034.04,Revenue,Sense,Hired Transport
Peterborough City Council,Adults,Block Contracts,Contract Hire and Operating Leases,06/07/2018,30185586,5034.04,Revenue,Sense,Hired Transport
Peterborough City Council,Communities,Housing,Services,06/07/2018,30185588,532,Revenue,Eastfield Guesthouse,Temporary Accommodation Costs
Peterborough City Council,Adults,Other Services,Third Party Payment,06/07/2018,30185598,12791,Revenue,Healthwatch Cambridgeshire and Peterborough,Third Party Payments - Contract
Peterborough City Council,Peterborough Highway Services,Transport & Infrastructure Commissioning,Services,06/07/2018,30185639,6856.32,Revenue,Stagecoach in Peterborough,Contractors
Peterborough City Council,Adults,Finance,Third Party Payment,06/07/2018,30185650,4800,Revenue,Cross Keys Homes,Third Party Payments - Contract
Peterborough City Council,Commissioning and Commercial Operations,Commissioning Team,Agency Staff,06/07/2018,30185682,3677.8,Revenue,Service Care Solutions Ltd,External Temporary Staff
Peterborough City Council,Westcombe Engineering,Westcombe Engineering,"Tools, Equipment, Furniture & Materials",06/07/2018,30185685,2821.09,Revenue,Perkins Engines Co Ltd,Items For Resale
Peterborough City Council,Commissioning and Commercial Operations,Commissioning Team,Agency Staff,06/07/2018,30185692,5779.4,Revenue,Service Care Solutions Ltd,External Temporary Staff
Peterborough City Council,Children's & Safeguarding,External Education Placements,Services,06/07/2018,30185698,30000,Revenue,Wilds Lodge School,Boarding Out Allowances
Peterborough City Council,City Centre Management,"Markets, Tourism & Events",Services,06/07/2018,30185705,3599,Revenue,Central Management Solutions Ltd,Hired Services
Peterborough City Council,Regulatory Services,Regulatory Services,Agency Staff,06/07/2018,30185713,736.56,Revenue,Reed Specialist Recruitment Limited,External Temporary Staff
Peterborough City Council,Adults,Independent Sector Placements,Services,06/07/2018,8000118491,676.2,Revenue,Merit Homecare Ltd,Home Care
Peterborough City Council,Adults,Independent Sector Placements,Services,06/07/2018,8000118495,669.3,Revenue,Merit Homecare Ltd,Home Care
Peterborough City Council,Adults,Independent Sector Placements,Services,06/07/2018,8000118498,524.4,Revenue,Merit Homecare Ltd,Home Care
Peterborough City Council,Adults,Independent Sector Placements,Services,06/07/2018,8000118499,924.6,Revenue,Merit Homecare Ltd,Home Care
Peterborough City Council,Adults,Independent Sector Placements,Services,06/07/2018,8000118502,966.23,Revenue,Merit Homecare Ltd,Home Care
Peterborough City Council,Adults,Independent Sector Placements,Services,06/07/2018,8000118504,579.6,Revenue,Merit Homecare Ltd,Home Care
Peterborough City Council,Adults,Independent Sector Placements,Services,06/07/2018,8000118507,1738.8,Revenue,Merit Homecare Ltd,Home Care
Peterborough City Council,Adults,Independent Sector Placements,Services,06/07/2018,8000118508,690,Revenue,Merit Homecare Ltd,Home Care
Peterborough City Council,Adults,Independent Sector Placements,Services,06/07/2018,8000118511,579.6,Revenue,Merit Homecare Ltd,Home Care
Peterborough City Council,Adults,Independent Sector Placements,Services,06/07/2018,8000118513,1352.4,Revenue,Merit Homecare Ltd,Home Care
Peterborough City Council,Adults,Independent Sector Placements,Services,06/07/2018,8000118523,1552.96,Revenue,Merit Homecare Ltd,Home Care
Peterborough City Council,Adults,Independent Sector Placements,Services,06/07/2018,8000118524,545.1,Revenue,Merit Homecare Ltd,Home Care
Peterborough City Council,Adults,Independent Sector Placements,Services,06/07/2018,8000118534,596.85,Revenue,Merit Homecare Ltd,Home Care
Peterborough City Council,Adults,Independent Sector Placements,Services,06/07/2018,8000118537,869.4,Revenue,Merit Homecare Ltd,Home Care
Peterborough City Council,Adults,Independent Sector Placements,Services,06/07/2018,8000118539,2318.4,Revenue,Merit Homecare Ltd,Home Care
Peterborough City Council,Adults,Independent Sector Placements,Services,06/07/2018,8000118541,645.15,Revenue,Merit Homecare Ltd,Home Care
Peterborough City Council,Adults,Independent Sector Placements,Services,06/07/2018,8000118547,772.8,Revenue,Merit Homecare Ltd,Home Care
Peterborough City Council,Adults,Independent Sector Placements,Services,06/07/2018,8000118551,1352.4,Revenue,Merit Homecare Ltd,Home Care
Peterborough City Council,Adults,Independent Sector Placements,Services,06/07/2018,8000118554,648.6,Revenue,Merit Homecare Ltd,Home Care
Peterborough City Council,Adults,Independent Sector Placements,Services,06/07/2018,8000118555,1545.6,Revenue,Merit Homecare Ltd,Home Care
Peterborough City Council,Adults,Independent Sector Placements,Services,06/07/2018,8000118556,1987.2,Revenue,Merit Homecare Ltd,Home Care
Peterborough City Council,Adults,Independent Sector Placements,Services,06/07/2018,8000118557,921.15,Revenue,Merit Homecare Ltd,Home Care
Peterborough City Council,Adults,Independent Sector Placements,Services,06/07/2018,8000118561,579.6,Revenue,Merit Homecare Ltd,Home Care
Peterborough City Council,Adults,Independent Sector Placements,Services,06/07/2018,8000118563,771.42,Revenue,Merit Homecare Ltd,Home Care
Peterborough City Council,Adults,Independent Sector Placements,Services,06/07/2018,8000118566,579.6,Revenue,Merit Homecare Ltd,Home Care
Peterborough City Council,Adults,Independent Sector Placements,Services,06/07/2018,8000118567,603.75,Revenue,Merit Homecare Ltd,Home Care
Peterborough City Council,Adults,Independent Sector Placements,Services,06/07/2018,8000118763,745.2,Revenue,Merit Homecare Ltd,Home Care
Peterborough City Council,Adults,Independent Sector Placements,Services,06/07/2018,8000118969,525,Revenue,Cross Keys Homes,Home Care
Peterborough City Council,Adults,Independent Sector Placements,Services,06/07/2018,8000118971,817.5,Revenue,Cross Keys Homes,Home Care
Peterborough City Council,Adults,Independent Sector Placements,Services,06/07/2018,8000118974,570,Revenue,Cross Keys Homes,Home Care
Peterborough City Council,Adults,Independent Sector Placements,Services,06/07/2018,8000118975,1832.5,Revenue,Cross Keys Homes,Home Care
Peterborough City Council,Adults,Independent Sector Placements,Services,06/07/2018,8000118976,555,Revenue,Cross Keys Homes,Home Care
Peterborough City Council,Adults,Independent Sector Placements,Services,06/07/2018,8000118977,2730,Revenue,Cross Keys Homes,Home Care
Peterborough City Council,Adults,Independent Sector Placements,Services,06/07/2018,8000118978,907.5,Revenue,Cross Keys Homes,Home Care
Peterborough City Council,Adults,Independent Sector Placements,Services,06/07/2018,8000118979,540,Revenue,Cross Keys Homes,Home Care
Peterborough City Council,Adults,Independent Sector Placements,Services,06/07/2018,8000118982,922.5,Revenue,Cross Keys Homes,Home Care
Peterborough City Council,Adults,Independent Sector Placements,Services,06/07/2018,8000118986,618.3,Revenue,Cross Keys Homes,Home Care
Peterborough City Council,Adults,Independent Sector Placements,Services,06/07/2018,8000118990,780,Revenue,Cross Keys Homes,Home Care
Peterborough City Council,Adults,Independent Sector Placements,Services,06/07/2018,8000118992,921,Revenue,Cross Keys Homes,Home Care
Peterborough City Council,Adults,Independent Sector Placements,Services,06/07/2018,8000118997,900,Revenue,Cross Keys Homes,Home Care
Peterborough City Council,Adults,Independent Sector Placements,Services,06/07/2018,8000119078,615,Revenue,Cross Keys Homes,Home Care
Peterborough City Council,Adults,Independent Sector Placements,Services,06/07/2018,8000119187,630,Revenue,Cross Keys Homes,Home Care
Peterborough City Council,Adults,Independent Sector Placements,Services,06/07/2018,8000119240,14541.16,Revenue,Atlas Care Services Ltd,Home Care
Peterborough City Council,Adults,Independent Sector Placements,Services,06/07/2018,8000119242,795.2,Revenue,Atlas Care Services Ltd,Home Care
Peterborough City Council,Adults,Independent Sector Placements,Services,06/07/2018,8000119245,1519.4,Revenue,Atlas Care Services Ltd,Home Care
Peterborough City Council,Adults,Independent Sector Placements,Services,06/07/2018,8000119248,1598.92,Revenue,Atlas Care Services Ltd,Home Care
Peterborough City Council,Adults,Independent Sector Placements,Services,06/07/2018,8000119253,2362.17,Revenue,Atlas Care Services Ltd,Home Care
Peterborough City Council,Adults,Independent Sector Placements,Services,06/07/2018,8000119257,1038.02,Revenue,Atlas Care Services Ltd,Home Care
Peterborough City Council,Adults,Independent Sector Placements,Services,06/07/2018,8000119259,587.17,Revenue,Atlas Care Services Ltd,Home Care
Peterborough City Council,Adults,Independent Sector Placements,Services,06/07/2018,8000119262,1615.25,Revenue,Atlas Care Services Ltd,Home Care
Peterborough City Council,Adults,Independent Sector Placements,Services,06/07/2018,8000119263,842.06,Revenue,Atlas Care Services Ltd,Home Care
Peterborough City Council,Adults,Independent Sector Placements,Services,06/07/2018,8000119265,836.38,Revenue,Atlas Care Services Ltd,Home Care
Peterborough City Council,Adults,Independent Sector Placements,Services,06/07/2018,8000119266,589.3,Revenue,Atlas Care Services Ltd,Home Care
Peterborough City Council,Adults,Independent Sector Placements,Services,06/07/2018,8000119267,653.91,Revenue,Atlas Care Services Ltd,Home Care
Peterborough City Council,Adults,Independent Sector Placements,Services,06/07/2018,8000119269,2612.8,Revenue,Atlas Care Services Ltd,Home Care
Peterborough City Council,Adults,Independent Sector Placements,Services,06/07/2018,8000119271,1478.93,Revenue,Atlas Care Services Ltd,Home Care
Peterborough City Council,Adults,Independent Sector Placements,Services,06/07/2018,8000119272,667.4,Revenue,Atlas Care Services Ltd,Home Care
Peterborough City Council,Adults,Independent Sector Placements,Services,06/07/2018,8000119274,2023.5,Revenue,Atlas Care Services Ltd,Home Care
Peterborough City Council,Adults,Independent Sector Placements,Services,06/07/2018,8000119275,576.52,Revenue,Atlas Care Services Ltd,Home Care
Peterborough City Council,Adults,Independent Sector Placements,Services,06/07/2018,8000119276,565.16,Revenue,Atlas Care Services Ltd,Home Care
Peterborough City Council,Adults,Independent Sector Placements,Services,06/07/2018,8000119280,731.3,Revenue,Atlas Care Services Ltd,Home Care
Peterborough City Council,Adults,Independent Sector Placements,Services,06/07/2018,8000119282,1970.25,Revenue,Atlas Care Services Ltd,Home Care
Peterborough City Council,Adults,Independent Sector Placements,Services,06/07/2018,8000119284,1352.55,Revenue,Atlas Care Services Ltd,Home Care
Peterborough City Council,Adults,Independent Sector Placements,Services,06/07/2018,8000119287,1094.11,Revenue,Atlas Care Services Ltd,Home Care
Peterborough City Council,Adults,Independent Sector Placements,Services,06/07/2018,8000119288,784.55,Revenue,Atlas Care Services Ltd,Home Care
Peterborough City Council,Adults,Independent Sector Placements,Services,06/07/2018,8000119289,1260.25,Revenue,Atlas Care Services Ltd,Home Care
Peterborough City Council,Adults,Independent Sector Placements,Services,06/07/2018,8000119291,967.73,Revenue,Atlas Care Services Ltd,Home Care
Peterborough City Council,Adults,Independent Sector Placements,Services,06/07/2018,8000119298,872.59,Revenue,Atlas Care Services Ltd,Home Care
Peterborough City Council,Adults,Independent Sector Placements,Services,06/07/2018,8000119305,1684.12,Revenue,Atlas Care Services Ltd,Home Care
Peterborough City Council,Adults,Independent Sector Placements,Services,06/07/2018,8000119306,860.52,Revenue,Atlas Care Services Ltd,Home Care
Peterborough City Council,Adults,Independent Sector Placements,Services,06/07/2018,8000119311,1129.61,Revenue,Atlas Care Services Ltd,Home Care
Peterborough City Council,Adults,Independent Sector Placements,Services,06/07/2018,8000119312,755.44,Revenue,Atlas Care Services Ltd,Home Care
Peterborough City Council,Adults,Independent Sector Placements,Services,06/07/2018,8000119960,936.98,Revenue,Redacted Personal Data,Adult Social Care Direct Payment
Peterborough City Council,Adults,Independent Sector Placements,Services,06/07/2018,8000119962,1668.12,Revenue,Redacted Personal Data,Adult Social Care Direct Payment
Peterborough City Council,Adults,Independent Sector Placements,Services,06/07/2018,8000119963,2017.78,Revenue,Redacted Personal Data,Adult Social Care Direct Payment
Peterborough City Council,Adults,Independent Sector Placements,Services,06/07/2018,8000119964,2496.55,Revenue,Redacted Personal Data,Adult Social Care Direct Payment
Peterborough City Council,Adults,Independent Sector Placements,Services,06/07/2018,8000119966,4988.75,Revenue,Redacted Personal Data,Adult Social Care Direct Payment
Peterborough City Council,Adults,Independent Sector Placements,Services,06/07/2018,8000119967,1265.26,Revenue,Redacted Personal Data,Adult Social Care Direct Payment
Peterborough City Council,Adults,Independent Sector Placements,Services,06/07/2018,8000119968,5801.55,Revenue,Redacted Personal Data,Adult Social Care Direct Payment
Peterborough City Council,Adults,Independent Sector Placements,Services,06/07/2018,8000119969,1815.68,Revenue,Redacted Personal Data,Adult Social Care Direct Payment
Peterborough City Council,Adults,Independent Sector Placements,Services,06/07/2018,8000119970,3196.01,Revenue,Redacted Personal Data,Adult Social Care Direct Payment
Peterborough City Council,Adults,Independent Sector Placements,Services,06/07/2018,8000119971,559.56,Revenue,Redacted Personal Data,Adult Social Care Direct Payment
Peterborough City Council,Adults,Independent Sector Placements,Services,06/07/2018,8000119973,2376.54,Revenue,Redacted Personal Data,Adult Social Care Direct Payment
Peterborough City Council,Adults,Independent Sector Placements,Services,06/07/2018,8000119974,1354.92,Revenue,Redacted Personal Data,Adult Social Care Direct Payment
Peterborough City Council,Adults,Independent Sector Placements,Services,06/07/2018,8000119975,1429.21,Revenue,Redacted Personal Data,Adult Social Care Direct Payment
Peterborough City Council,Adults,Independent Sector Placements,Services,06/07/2018,8000119976,705.64,Revenue,Redacted Personal Data,Adult Social Care Direct Payment
Peterborough City Council,Commissioning and Commercial Operations,Commissioning,Services,09/07/2018,30180543,1075.91,Revenue,CAPITA Translation and Interpreting,Interpretation Expenses
Peterborough City Council,Education,School Standards & Effectiveness,Services,09/07/2018,30182251,600,Revenue,The Holbeach William Stukeley Primary School,Grant Payment
Peterborough City Council,Education,School Standards & Effectiveness,Services,09/07/2018,30182252,550,Revenue,The Park Lane Primary School,Grant Payment
Peterborough City Council,Commissioning and Commercial Operations,Commissioning Team,Services,09/07/2018,30182485,9317.5,Revenue,British Red Cross,Carer Support Costs
Peterborough City Council,Adults,Finance,Services,09/07/2018,30182487,24985.75,Revenue,British Red Cross,Carer Support Costs
Peterborough City Council,Communities,Cultural Services,"Tools, Equipment, Furniture & Materials",09/07/2018,30182494,983.34,Revenue,Johns and Mushroom Percussion Ltd,Equipment Purchase
Peterborough City Council,City Centre Management,"Markets, Tourism & Events",Services,09/07/2018,30182658,3750,Revenue,Reactive Communications,Hired Services
Peterborough City Council,Education,Special Educational Needs / Inclusion,Agency Staff,09/07/2018,30182705,6059.17,Revenue,Sanctuary Personnel Ltd,External Temporary Staff
Peterborough City Council,Parking Services,Parking Services,Services,09/07/2018,30183009,2200,Revenue,Jade Security Services Limited,Hired Services
Peterborough City Council,Children's & Safeguarding,External Education Placements,Services,09/07/2018,30183027,13740,Revenue,London Borough of Brent,Education Expenses
Peterborough City Council,Financial Services,Finance,Agency Staff,09/07/2018,30183105,915,Revenue,Penna Plc,External Temporary Staff
Peterborough City Council,Westcombe Engineering,Westcombe Engineering,"Tools, Equipment, Furniture & Materials",09/07/2018,30183129,688.18,Revenue,M O 8 Specialities Ltd,Materials
Peterborough City Council,Adults,Therapy/Reablement/Community Equipment,Agency Staff,09/07/2018,30184636,3839.71,Revenue,HCL Social Care Ltd,External Temporary Staff
Peterborough City Council,Communities,Housing,Services,09/07/2018,30184899,1500,Revenue,Peterborough City Letting (PCL),Financial Assistance
Peterborough City Council,Commissioning and Commercial Operations,Early Years & Quality Improvement,Services,09/07/2018,30185100,5148,Revenue,Toddlers Inn Day Nursery,Grant Payment
Peterborough City Council,Commissioning and Commercial Operations,Early Years & Quality Improvement,Services,09/07/2018,30185101,1716,Revenue,Busy Bunnies Braybrook,Grant Payment
Peterborough City Council,Commissioning and Commercial Operations,Early Years & Quality Improvement,Services,09/07/2018,30185110,2535,Revenue,Beeches Pre-School,Grant Payment
Peterborough City Council,Commissioning and Commercial Operations,Early Years & Quality Improvement,Services,09/07/2018,30185112,633.75,Revenue,Little Bees Pre-School,Grant Payment
Peterborough City Council,Communities,Housing,Services,09/07/2018,30185161,1100,Revenue,Oak County Property Management,Financial Assistance
Peterborough City Council,Communities,Housing,Services,09/07/2018,30185163,575,Revenue,Redacted Personal Data,Financial Assistance
Peterborough City Council,Communities,Housing,Services,09/07/2018,30185165,560,Revenue,Property Squires,Financial Assistance
Peterborough City Council,Communities,Housing,Services,09/07/2018,30185166,550,Revenue,Redacted Personal Data,Financial Assistance
Peterborough City Council,Corporate,Corporate,Non Revenue,09/07/2018,30185172,12750,Capital,Nadeem Construction Ltd,Grant Payment
Peterborough City Council,Education,Service Director Education,Employee Costs,09/07/2018,30185680,27320.54,Revenue,Teachers Pensions,Pensions
Peterborough City Council,Commissioning and Commercial Operations,Early Years & Quality Improvement,Services,09/07/2018,30185693,2390.96,Revenue,Sunflower Seed Pre-School,Grant Payment
Peterborough City Council,Commissioning and Commercial Operations,Early Years & Quality Improvement,Services,09/07/2018,30185714,10294.96,Revenue,The Teddy Bears inn Day Nursery Ltd,Grant Payment
Peterborough City Council,Commissioning and Commercial Operations,Early Years & Quality Improvement,Services,09/07/2018,30185716,2426.1,Revenue,St Johns C of E Pre-School,Grant Payment
Peterborough City Council,Commissioning and Commercial Operations,Early Years & Quality Improvement,Services,09/07/2018,30185717,926.28,Revenue,Shooting Stars Pre-School,Grant Payment
Peterborough City Council,Commissioning and Commercial Operations,Early Years & Quality Improvement,Services,09/07/2018,30185718,2660.61,Revenue,Stars Pre-School Ravensthorpe,Grant Payment
Peterborough City Council,Commissioning and Commercial Operations,Early Years & Quality Improvement,Services,09/07/2018,30185719,2662.66,Revenue,The Learning Tree Kindergarten,Grant Payment
Peterborough City Council,Commissioning and Commercial Operations,Early Years & Quality Improvement,Services,09/07/2018,30185720,738.45,Revenue,Manor House Nursery (Peterborough) Ltd,Grant Payment
Peterborough City Council,Commissioning and Commercial Operations,Early Years & Quality Improvement,Services,09/07/2018,30185721,5779.8,Revenue,Alpha Big Sky Ltd,Grant Payment
Peterborough City Council,Commissioning and Commercial Operations,Early Years & Quality Improvement,Services,09/07/2018,30185722,3047.85,Revenue,Longthorpe Playgroup,Grant Payment
Peterborough City Council,Commissioning and Commercial Operations,Early Years & Quality Improvement,Services,09/07/2018,30185723,4647.56,Revenue,Acorn Academy Day Nursery Ltd,Grant Payment
Peterborough City Council,Commissioning and Commercial Operations,Early Years & Quality Improvement,Services,09/07/2018,30185724,1002.3,Revenue,Dogsthorpe Community Pre-School,Grant Payment
Peterborough City Council,Commissioning and Commercial Operations,Early Years & Quality Improvement,Services,09/07/2018,30185725,2399.48,Revenue,Little Stars Day Nursery,Grant Payment
Peterborough City Council,Communities,Housing,Services,09/07/2018,30185782,880,Revenue,247 Lettings Ltd,Financial Assistance
Peterborough City Council,Communities,Housing,Services,09/07/2018,30185783,880,Revenue,247 Lettings Ltd,Financial Assistance
Peterborough City Council,Director,Director,Rents,09/07/2018,30185805,700,Revenue,Huntingdonshire District Council,Hire Of Premises
Peterborough City Council,Communities,Housing,Services,09/07/2018,30185933,8100,Revenue,Axiom Housing Association Ltd,Financial Assistance
Peterborough City Council,Children's & Safeguarding,Access to Resources & Specialist Commissioning,Agency Staff,09/07/2018,30185963,880,Revenue,HCL Social Care Ltd,External Temporary Staff
Peterborough City Council,Corporate Items,Corporate Services,Services,09/07/2018,30185973,10020,Revenue,Ernst & Young LLP,Audit Fees
Peterborough City Council,Education,HTS & CSC Transport,Contract Hire and Operating Leases,09/07/2018,8000119980,1764.74,Revenue,Redacted Personal Data,Hired Transport
Peterborough City Council,Education,HTS & CSC Transport,Contract Hire and Operating Leases,09/07/2018,8000119981,1130.99,Revenue,Redacted Personal Data,Hired Transport
Peterborough City Council,Education,HTS & CSC Transport,Contract Hire and Operating Leases,09/07/2018,8000119982,1639.12,Revenue,Redacted Personal Data,Hired Transport
Peterborough City Council,Education,HTS & CSC Transport,Contract Hire and Operating Leases,09/07/2018,8000119984,608.62,Revenue,Redacted Personal Data,Hired Transport
Peterborough City Council,Education,HTS & CSC Transport,Contract Hire and Operating Leases,09/07/2018,8000119985,1009.5,Revenue,Redacted Personal Data,Hired Transport
Peterborough City Council,Education,HTS & CSC Transport,Contract Hire and Operating Leases,09/07/2018,8000119986,1157.66,Revenue,Redacted Personal Data,Hired Transport
Peterborough City Council,Education,HTS & CSC Transport,Contract Hire and Operating Leases,09/07/2018,8000119988,645,Revenue,Redacted Personal Data,Hired Transport
Peterborough City Council,Education,HTS & CSC Transport,Contract Hire and Operating Leases,09/07/2018,8000119989,2064.58,Revenue,Redacted Personal Data,Hired Transport
Peterborough City Council,Adults,Independent Sector Placements,Services,09/07/2018,8000120027,630.63,Revenue,Sagecare,Home Care
Peterborough City Council,Adults,Independent Sector Placements,Services,09/07/2018,8000120028,2106.72,Revenue,Sagecare,Home Care
Peterborough City Council,Adults,Independent Sector Placements,Services,09/07/2018,8000120032,873.18,Revenue,Sagecare,Home Care
Peterborough City Council,Adults,Independent Sector Placements,Services,09/07/2018,8000120037,887.8,Revenue,Merit Homecare Ltd,Home Care
Peterborough City Council,Adults,Independent Sector Placements,Services,09/07/2018,8000120038,503.7,Revenue,Merit Homecare Ltd,Home Care
Peterborough City Council,Adults,Independent Sector Placements,Services,09/07/2018,8000120039,676.2,Revenue,Merit Homecare Ltd,Home Care
Peterborough City Council,Adults,Independent Sector Placements,Services,09/07/2018,8000120041,524.4,Revenue,Merit Homecare Ltd,Home Care
Peterborough City Council,Adults,Independent Sector Placements,Services,09/07/2018,8000120046,1145.5,Revenue,PRESTIGE NURSING LIMITED,Home Care
Peterborough City Council,Adults,Independent Sector Placements,Services,09/07/2018,8000120047,528.5,Revenue,PRESTIGE NURSING LIMITED,Home Care
Peterborough City Council,Adults,Independent Sector Placements,Services,09/07/2018,8000120050,659.5,Revenue,PRESTIGE NURSING LIMITED,Home Care
Peterborough City Council,Adults,Independent Sector Placements,Services,09/07/2018,8000120051,828.5,Revenue,PRESTIGE NURSING LIMITED,Home Care
Peterborough City Council,Adults,Independent Sector Placements,Services,09/07/2018,8000120301,754,Revenue,Redacted Personal Data,Adult Social Care Direct Payment
Peterborough City Council,Peterborough Highway Services,Highway & Drainage Control,Agency Staff,11/07/2018,30182729,1465.2,Revenue,Matchtech,External Temporary Staff
Peterborough City Council,Public Health,PH Commissioning,Third Party Payment,11/07/2018,30182792,600,Revenue,Bretton Medical Practice,Third Party Payments - Contract
Peterborough City Council,Public Health,PH Commissioning,Third Party Payment,11/07/2018,30182797,768.17,Revenue,West Town Chemist,Third Party Payments - Contract
Peterborough City Council,Public Health,PH Commissioning,Third Party Payment,11/07/2018,30182802,2854.57,Revenue,Boots 6450,Third Party Payments - Contract
Peterborough City Council,Public Health,PH Commissioning,Third Party Payment,11/07/2018,30182805,729.91,Revenue,Lloyds Pharmacy Orton,Third Party Payments - Contract
Peterborough City Council,Sustainable Growth Strategy,Natural & Historic Environment,Services,11/07/2018,30182918,2192,Revenue,The Wildlife Trust BCN,Conservation And Bio Diversity Projects
Peterborough City Council,Corporate,Corporate,Non Revenue,11/07/2018,30182926,189186.15,Capital,FCC Recycling (UK) Limited,Building And Site Works
Peterborough City Council,ICT,ICT,Agency Staff,11/07/2018,30183018,2500,Revenue,Cranford Solutions Ltd,External Temporary Staff
Peterborough City Council,Westcombe Engineering,Westcombe Engineering,"Tools, Equipment, Furniture & Materials",11/07/2018,30183019,2795.42,Revenue,AALCO,Items For Resale
Peterborough City Council,Constitutional Services,Democratic Services,Services,11/07/2018,30183026,2725,Revenue,Local Government Association,Conferences/Events
Peterborough City Council,Legal Services,Legal Services,Services,11/07/2018,30183079,700,Revenue,"Walji, Miss Shabnam",Legal Costs
Peterborough City Council,Legal Services,Legal Services,Services,11/07/2018,30183081,550,Revenue,"Sleight, Mr Nigel",Legal Costs
Peterborough City Council,Adults,Day opportunities - Older People,Agency Staff,11/07/2018,30183095,1221,Revenue,Medicare First Ltd,External Temporary Staff
Peterborough City Council,Communities,Targeted Youth Service,Services,11/07/2018,30183096,7125,Revenue,The Lily Pad Cottages,Programmes
Peterborough City Council,"Waste, Cleansing and Open Spaces",Waste Management,Services,11/07/2018,30183101,744.85,Revenue,FCC Recycling (UK) Limited,Waste Disposal
Peterborough City Council,Corporate Property,Commercial Propety,Services,11/07/2018,30183108,1452.5,Revenue,Barker Storey Matthews,Professional Services
Peterborough City Council,Parking Services,Parking Services,Services,11/07/2018,30183126,3079.58,Revenue,Parkeon Limited,Hired Services
Peterborough City Council,Education,Special Educational Needs / Inclusion,Services,11/07/2018,30183136,5245,Revenue,Humanware Europe Ltd,Education Expenses
Peterborough City Council,Adults,Block Contracts,Third Party Payment,11/07/2018,30183143,5664.4,Revenue,Axiom Housing Association Ltd,Third Party Payments - Contract
Peterborough City Council,Adults,Block Contracts,Third Party Payment,11/07/2018,30183144,1999.2,Revenue,Axiom Housing Association Ltd,Third Party Payments - Contract
Peterborough City Council,Adults,Block Contracts,Third Party Payment,11/07/2018,30183145,5664.4,Revenue,Axiom Housing Association Ltd,Third Party Payments - Contract
Peterborough City Council,Adults,Block Contracts,Third Party Payment,11/07/2018,30183146,1999.2,Revenue,Axiom Housing Association Ltd,Third Party Payments - Contract
Peterborough City Council,Adults,Block Contracts,Third Party Payment,11/07/2018,30183147,5664.4,Revenue,Axiom Housing Association Ltd,Third Party Payments - Contract
Peterborough City Council,Adults,Block Contracts,Third Party Payment,11/07/2018,30183148,1999.2,Revenue,Axiom Housing Association Ltd,Third Party Payments - Contract
Peterborough City Council,Peterborough Highway Services,Transport & Infrastructure Commissioning,Services,11/07/2018,30183159,3432.95,Revenue,Unicard Ltd,Passes
Peterborough City Council,Peterborough Highway Services,Network and Traffic Management,Services,11/07/2018,30183211,660.95,Revenue,Johnston Press Midlands Division,Advertising
Peterborough City Council,Development and Construction,Development Management,Services,11/07/2018,30183212,574.74,Revenue,Johnston Press Midlands Division,Advertising
Peterborough City Council,Legal Services,Legal Services,Agency Staff,11/07/2018,30183218,2062.5,Revenue,Venn Group Ltd,External Temporary Staff
Peterborough City Council,Commissioning and Commercial Operations,Commissioning,Services,11/07/2018,30183219,2267.65,Revenue,BDP Social Care Ltd,Hired Services
Peterborough City Council,Adults,Independent Sector Placements,Services,11/07/2018,30183224,1855.6,Revenue,FIELD HOUSE (EYE) LTD,Residential Care
Peterborough City Council,Adults,Independent Sector Placements,Services,11/07/2018,30183225,1855.6,Revenue,FIELD HOUSE (EYE) LTD,Residential Care
Peterborough City Council,Adults,Independent Sector Placements,Services,11/07/2018,30183226,1687.6,Revenue,FIELD HOUSE (EYE) LTD,Residential Care
Peterborough City Council,Adults,Independent Sector Placements,Services,11/07/2018,30183227,1687.6,Revenue,FIELD HOUSE (EYE) LTD,Residential Care
Peterborough City Council,Adults,Independent Sector Placements,Services,11/07/2018,30183228,2320,Revenue,FIELD HOUSE (EYE) LTD,Residential Care
Peterborough City Council,Adults,Independent Sector Placements,Services,11/07/2018,30183229,2320,Revenue,FIELD HOUSE (EYE) LTD,Residential Care
Peterborough City Council,Adults,Independent Sector Placements,Services,11/07/2018,30183234,1989.84,Revenue,FIELD HOUSE (EYE) LTD,Residential Care
Peterborough City Council,Adults,Independent Sector Placements,Services,11/07/2018,30183236,1365.28,Revenue,FIELD HOUSE (EYE) LTD,Residential Care
Peterborough City Council,Adults,Independent Sector Placements,Services,11/07/2018,30183240,1365.28,Revenue,FIELD HOUSE (EYE) LTD,Residential Care
Peterborough City Council,Adults,Independent Sector Placements,Services,11/07/2018,30183246,2300,Revenue,FIELD HOUSE (EYE) LTD,Residential Care
Peterborough City Council,Adults,Independent Sector Placements,Services,11/07/2018,30183247,2300,Revenue,FIELD HOUSE (EYE) LTD,Residential Care
Peterborough City Council,Adults,Independent Sector Placements,Services,11/07/2018,30183248,1241.84,Revenue,FIELD HOUSE (EYE) LTD,Residential Care
Peterborough City Council,Adults,Independent Sector Placements,Services,11/07/2018,30183249,1241.84,Revenue,FIELD HOUSE (EYE) LTD,Residential Care
Peterborough City Council,Adults,Independent Sector Placements,Services,11/07/2018,30183413,5149.76,Revenue,LEONARD CHESHIRE DISABILITY,Residential Care
Peterborough City Council,Education,Special Educational Needs / Inclusion,Agency Staff,11/07/2018,30183436,4240,Revenue,Permanent Futures Ltd,External Temporary Staff
Peterborough City Council,Education,Special Educational Needs / Inclusion,Agency Staff,11/07/2018,30183437,7700,Revenue,Permanent Futures Ltd,External Temporary Staff
Peterborough City Council,Adults,Independent Sector Placements,Services,11/07/2018,30183455,1797.8,Revenue,THE LODGE TRUST,Residential Care
Peterborough City Council,Director,Director,Third Party Payment,11/07/2018,30183469,8810,Revenue,Hertfordshire County Council,Contributions
Peterborough City Council,Adults,Independent Sector Placements,Services,11/07/2018,30183633,749,Revenue,Sahara Community Care Services Limited,Home Care
Peterborough City Council,Adults,Independent Sector Placements,Services,11/07/2018,30183637,-767.95,Revenue,Avery House (Peterborough) t/a Brighterkind,Residential Care
Peterborough City Council,Adults,Independent Sector Placements,Services,11/07/2018,30183684,952,Revenue,Sahara Community Care Services Limited,Home Care
Peterborough City Council,Adults,Independent Sector Placements,Services,11/07/2018,30183692,1176,Revenue,Sahara Community Care Services Limited,Home Care
Peterborough City Council,Adults,Independent Sector Placements,Services,11/07/2018,30183693,980,Revenue,Sahara Community Care Services Limited,Home Care
Peterborough City Council,Adults,Independent Sector Placements,Services,11/07/2018,30183694,602,Revenue,Sahara Community Care Services Limited,Home Care
Peterborough City Council,Adults,Independent Sector Placements,Services,11/07/2018,30183698,637,Revenue,Sahara Community Care Services Limited,Home Care
Peterborough City Council,Adults,Independent Sector Placements,Services,11/07/2018,30183702,588,Revenue,Sahara Community Care Services Limited,Home Care
Peterborough City Council,Adults,Independent Sector Placements,Services,11/07/2018,30183704,896,Revenue,Sahara Community Care Services Limited,Home Care
Peterborough City Council,Adults,Independent Sector Placements,Services,11/07/2018,30183705,2744,Revenue,Sahara Community Care Services Limited,Home Care
Peterborough City Council,Adults,Independent Sector Placements,Services,11/07/2018,30183706,546.5,Revenue,Sahara Community Care Services Limited,Home Care
Peterborough City Council,Adults,Independent Sector Placements,Services,11/07/2018,30183714,896,Revenue,Sahara Community Care Services Limited,Home Care
Peterborough City Council,Adults,Independent Sector Placements,Services,11/07/2018,30183717,2179.24,Revenue,Avery House (Peterborough) t/a Brighterkind,Residential Care
Peterborough City Council,Adults,Independent Sector Placements,Services,11/07/2018,30183720,1078,Revenue,Sahara Community Care Services Limited,Home Care
Peterborough City Council,Adults,Independent Sector Placements,Services,11/07/2018,30183722,602,Revenue,Sahara Community Care Services Limited,Home Care
Peterborough City Council,Adults,Independent Sector Placements,Services,11/07/2018,30183737,2352,Revenue,Sahara Community Care Services Limited,Home Care
Peterborough City Council,Corporate,Corporate,Non Revenue,11/07/2018,30183953,2900,Balance Sheet,Redacted Personal Data,Insurance Claims
Peterborough City Council,Corporate Property,Office Accomodation,Agency Staff,11/07/2018,30184061,4730.04,Revenue,Reed Specialist Recruitment Limited,External Temporary Staff
Peterborough City Council,"Cemeteries, Cremation & Registrars",Bereavement Service,Grounds Maintenance,11/07/2018,30184087,800,Revenue,JAT Ingledew,Grounds Maintenance
Peterborough City Council,Adults,Independent Sector Placements,Services,11/07/2018,30184177,1200,Revenue,FIELD HOUSE (EYE) LTD,Residential Care
Peterborough City Council,Adults,Independent Sector Placements,Services,11/07/2018,30184192,1285.71,Revenue,FIELD HOUSE (EYE) LTD,Residential Care
Peterborough City Council,Adults,Independent Sector Placements,Services,11/07/2018,30184193,1371.43,Revenue,FIELD HOUSE (EYE) LTD,Residential Care
Peterborough City Council,Children's & Safeguarding,Access to Resources & Specialist Commissioning,Services,11/07/2018,30184337,627,Revenue,BDP Social Care Ltd,Hired Services
Peterborough City Council,Adults,Independent Sector Placements,Services,11/07/2018,30184339,738.05,Revenue,Sagecare,Home Care
Peterborough City Council,Peterborough Highway Services,Transport & Infrastructure Commissioning,Services,11/07/2018,30184461,4960,Revenue,UK Power Networks (operations) Ltd,Infrastructure Maintenance
Peterborough City Council,Adults,Independent Sector Placements,Services,11/07/2018,30184474,-1507.7,Revenue,Avery House (Peterborough) t/a Brighterkind,Residential Care
Peterborough City Council,Corporate,Corporate,Non Revenue,11/07/2018,30184889,1486.97,Balance Sheet,Redacted Personal Data,Insurance Claims
Peterborough City Council,Corporate,Corporate,Non Revenue,11/07/2018,30184895,4077.58,Balance Sheet,Redacted Personal Data,Insurance Claims
Peterborough City Council,Communities,Cohesion,Services,11/07/2018,30184912,2000,Revenue,P'Boro Council For Voluntary Srvs (PCVS),Conferences/Events
Peterborough City Council,Corporate Property,Office Accomodation,Energy Costs,11/07/2018,30185004,1112.81,Revenue,British Gas Business,Electricity
Peterborough City Council,Adults,Independent Sector Placements,Services,11/07/2018,30185035,875,Revenue,Sahara Community Care Services Limited,Home Care
Peterborough City Council,Communities,Housing,Services,11/07/2018,30185115,38197.5,Revenue,Stef & Philips Ltd,Temporary Accommodation Costs
Peterborough City Council,Corporate,Corporate,Non Revenue,11/07/2018,30185121,2268.6,Capital,Reed Specialist Recruitment Limited,Consultants Fees
Peterborough City Council,Adults,Independent Sector Placements,Services,11/07/2018,30185124,910,Revenue,Sahara Community Care Services Limited,Home Care
Peterborough City Council,Adults,Independent Sector Placements,Services,11/07/2018,30185248,797.4,Revenue,Red Rock Partnership Ltd,Home Care
Peterborough City Council,Commissioning and Commercial Operations,Commissioning,Services,11/07/2018,30185279,37500,Revenue,Cambs & P'boro NHS Foundation Trust,Special Projects
Peterborough City Council,Education,PFI,Energy Costs,11/07/2018,30185302,1365.22,Revenue,Corona Energy Retail 4 Limited,Gas
Peterborough City Council,Education,PFI,Energy Costs,11/07/2018,30185302,1125.99,Revenue,Corona Energy Retail 4 Limited,Gas
Peterborough City Council,Education,PFI,Energy Costs,11/07/2018,30185302,2230.52,Revenue,Corona Energy Retail 4 Limited,Gas
Peterborough City Council,Education,PFI,Energy Costs,11/07/2018,30185302,2791.09,Revenue,Corona Energy Retail 4 Limited,Gas
Peterborough City Council,Education,PFI,Energy Costs,11/07/2018,30185302,1857.75,Revenue,Corona Energy Retail 4 Limited,Gas
Peterborough City Council,Education,PFI,Energy Costs,11/07/2018,30185302,539.15,Revenue,Corona Energy Retail 4 Limited,Gas
Peterborough City Council,Education,PFI,Energy Costs,11/07/2018,30185302,693.29,Revenue,Corona Energy Retail 4 Limited,Gas
Peterborough City Council,Education,PFI,Energy Costs,11/07/2018,30185302,2202.5,Revenue,Corona Energy Retail 4 Limited,Gas
Peterborough City Council,Commissioning and Commercial Operations,Clare Lodge,Agency Staff,11/07/2018,30185366,1088,Revenue,Wrixon Care Services,External Temporary Staff
Peterborough City Council,Commissioning and Commercial Operations,Clare Lodge,Agency Staff,11/07/2018,30185367,1776,Revenue,Wrixon Care Services,External Temporary Staff
Peterborough City Council,Commissioning and Commercial Operations,Clare Lodge,Agency Staff,11/07/2018,30185370,1744,Revenue,Wrixon Care Services,External Temporary Staff
Peterborough City Council,Commissioning and Commercial Operations,Clare Lodge,Agency Staff,11/07/2018,30185372,1064,Revenue,Wrixon Care Services,External Temporary Staff
Peterborough City Council,Commissioning and Commercial Operations,Clare Lodge,Agency Staff,11/07/2018,30185374,1040,Revenue,Wrixon Care Services,External Temporary Staff
Peterborough City Council,Adults,Independent Sector Placements,Services,11/07/2018,30185459,544.01,Revenue,Sagecare,Home Care
Peterborough City Council,"Cemeteries, Cremation & Registrars",Bereavement Service,Energy Costs,11/07/2018,30185520,2493.82,Revenue,Corona Energy Retail 4 Limited,Gas
Peterborough City Council,Communities,Service Director - Adults & Communities,Third Party Payment,11/07/2018,30185641,10000,Revenue,P'Boro Council For Voluntary Srvs (PCVS),Grant-Third Party
Peterborough City Council,ICT,ICT,Services,11/07/2018,30185659,53318.57,Revenue,Amazon Web Services Inc.,Computer Software
Peterborough City Council,Adults,Independent Sector Placements,Services,11/07/2018,30185683,1038.44,Revenue,Park Vista Care Home,Residential Care
Peterborough City Council,Adults,Independent Sector Placements,Services,11/07/2018,30185686,1038.44,Revenue,Park Vista Care Home,Residential Care
Peterborough City Council,Adults,Independent Sector Placements,Services,11/07/2018,30185733,1250,Revenue,PSYCARE LIMITED,Residential Care
Peterborough City Council,Adults,Independent Sector Placements,Services,11/07/2018,30185734,2767.86,Revenue,PSYCARE LIMITED,Residential Care
Peterborough City Council,Adults,Independent Sector Placements,Services,11/07/2018,30185735,2678.57,Revenue,PSYCARE LIMITED,Residential Care
Peterborough City Council,Communities,Cultural Services,Energy Costs,11/07/2018,30185776,1935.38,Revenue,Corona Energy Retail 4 Limited,Gas
Peterborough City Council,Commissioning and Commercial Operations,Clare Lodge,Energy Costs,11/07/2018,30185777,840.73,Revenue,Corona Energy Retail 4 Limited,Gas
Peterborough City Council,Corporate Property,Commercial Propety,Energy Costs,11/07/2018,30185777,527.22,Revenue,Corona Energy Retail 4 Limited,Gas
Peterborough City Council,Communities,Cultural Services,Energy Costs,11/07/2018,30185777,933.05,Revenue,Corona Energy Retail 4 Limited,Gas
Peterborough City Council,Corporate Property,Commercial Propety,Energy Costs,11/07/2018,30185777,1701.23,Revenue,Corona Energy Retail 4 Limited,Gas
Peterborough City Council,Corporate Property,Office Accomodation,Energy Costs,11/07/2018,30185777,500.41,Revenue,Corona Energy Retail 4 Limited,Gas
Peterborough City Council,Education,PFI,Water Services,11/07/2018,30185778,699.96,Revenue,Anglian Water Business National,Water
Peterborough City Council,Communities,Travellers,Water Services,11/07/2018,30185778,582.37,Revenue,Anglian Water Business National,Water
Peterborough City Council,Corporate Property,Commercial Propety,Water Services,11/07/2018,30185778,2221.92,Revenue,Anglian Water Business National,Water
Peterborough City Council,Corporate Property,Commercial Propety,Water Services,11/07/2018,30185778,639.3,Revenue,Anglian Water Business National,Water
Peterborough City Council,Communities,Cultural Services,Energy Costs,11/07/2018,30185779,2442.15,Revenue,Corona Energy Retail 4 Limited,Gas
Peterborough City Council,Corporate Property,Office Accomodation,Energy Costs,11/07/2018,30185779,874.1,Revenue,Corona Energy Retail 4 Limited,Gas
Peterborough City Council,Corporate Property,Office Accomodation,Energy Costs,11/07/2018,30185779,3314.44,Revenue,Corona Energy Retail 4 Limited,Gas
Peterborough City Council,Communities,Cultural Services,Energy Costs,11/07/2018,30185779,798.77,Revenue,Corona Energy Retail 4 Limited,Gas
Peterborough City Council,Communities,Cultural Services,Energy Costs,11/07/2018,30185779,958.19,Revenue,Corona Energy Retail 4 Limited,Gas
Peterborough City Council,Regulatory Services,Regulatory Services,Services,11/07/2018,30185785,2760,Revenue,Disability Huntingdonshire,Grant Payment
Peterborough City Council,Children's & Safeguarding,Early Help ASC/CSC,Agency Staff,11/07/2018,30185811,543.39,Revenue,Reed Specialist Recruitment Limited,External Temporary Staff
Peterborough City Council,Legal Services,Legal Services,Agency Staff,11/07/2018,30185815,2025.38,Revenue,Reed Specialist Recruitment Limited,External Temporary Staff
Peterborough City Council,Regulatory Services,Regulatory Services,Agency Staff,11/07/2018,30185821,736.56,Revenue,Reed Specialist Recruitment Limited,External Temporary Staff
Peterborough City Council,Development and Construction,Development Management,Agency Staff,11/07/2018,30185823,1000.21,Revenue,Reed Specialist Recruitment Limited,External Temporary Staff
Peterborough City Council,Financial Services,Finance,Agency Staff,11/07/2018,30185838,744.93,Revenue,Reed Specialist Recruitment Limited,External Temporary Staff
Peterborough City Council,Financial Services,Finance,Agency Staff,11/07/2018,30185852,657.86,Revenue,Reed Specialist Recruitment Limited,External Temporary Staff
Peterborough City Council,Adults,Independent Sector Placements,Services,11/07/2018,30185886,516.17,Revenue,Hales Group Ltd,Home Care
Peterborough City Council,Regulatory Services,Regulatory Services,Agency Staff,11/07/2018,30185889,1100.7,Revenue,Reed Specialist Recruitment Limited,External Temporary Staff
Peterborough City Council,Parking Services,Parking Services,Agency Staff,11/07/2018,30185891,899.58,Revenue,Reed Specialist Recruitment Limited,External Temporary Staff
Peterborough City Council,Corporate,Corporate,Non Revenue,11/07/2018,30185892,1570.52,Capital,Reed Specialist Recruitment Limited,Consultants Fees
Peterborough City Council,Legal Services,Legal Services,Agency Staff,11/07/2018,30185896,1556.8,Revenue,Reed Specialist Recruitment Limited,External Temporary Staff
Peterborough City Council,Corporate,Corporate,Non Revenue,11/07/2018,30185897,2583.6,Capital,Reed Specialist Recruitment Limited,Consultants Fees
Peterborough City Council,Adults,Independent Sector Placements,Services,11/07/2018,30185898,1314.75,Revenue,MEARS GROUP,Home Care
Peterborough City Council,Adults,Independent Sector Placements,Services,11/07/2018,30185899,1614.32,Revenue,Advinia Care Homes Ltd,Residential Care
Peterborough City Council,Adults,Independent Sector Placements,Services,11/07/2018,30185900,1599.72,Revenue,Advinia Care Homes Ltd,Residential Care
Peterborough City Council,Development and Construction,Development Management,Agency Staff,11/07/2018,30185901,1048.13,Revenue,Reed Specialist Recruitment Limited,External Temporary Staff
Peterborough City Council,Adults,Independent Sector Placements,Services,11/07/2018,30185920,1599.72,Revenue,Advinia Care Homes Ltd,Residential Care
Peterborough City Council,Corporate Property,Office Accomodation,Repair & Maintenance of Buildings,11/07/2018,30185921,1254.71,Revenue,Beeson Wright Ltd,Service Charges - Premises
Peterborough City Council,Communities,Housing,Services,11/07/2018,30185934,900,Revenue,Axiom Housing Association Ltd,Financial Assistance
Peterborough City Council,Adults,Independent Sector Placements,Services,11/07/2018,30185941,4644.99,Revenue,PHILIA LODGE REST HOME,Residential Care
Peterborough City Council,Adults,Independent Sector Placements,Services,11/07/2018,30185942,2748.53,Revenue,STAR RESIDENTIAL HOME LTD,Residential Care
Peterborough City Council,Children's & Safeguarding,Child Health,Services,11/07/2018,30185967,10000,Revenue,Dial Peterborough,Hired Services
Peterborough City Council,Commissioning and Commercial Operations,Clare Lodge,Agency Staff,11/07/2018,30185980,767.98,Revenue,Reed Specialist Recruitment Limited,External Temporary Staff
Peterborough City Council,Corporate,Corporate,Non Revenue,11/07/2018,30185988,1346.16,Capital,Reed Specialist Recruitment Limited,Consultants Fees
Peterborough City Council,Education,Special Educational Needs / Inclusion,Services,11/07/2018,30186005,525,Revenue,Priory Hospital School Priory,Boarding Out Allowances
Peterborough City Council,Adults,Independent Sector Placements,Services,11/07/2018,30186034,3065.6,Revenue,"ATCHISON, MR ALAN",Residential Care
Peterborough City Council,Adults,Independent Sector Placements,Services,11/07/2018,30186035,3625.08,Revenue,"ATCHISON, MR ALAN",Residential Care
Peterborough City Council,Adults,Independent Sector Placements,Services,11/07/2018,30186036,2162.28,Revenue,"ATCHISON, MR ALAN",Residential Care
Peterborough City Council,Adults,Independent Sector Placements,Services,11/07/2018,30186037,4904,Revenue,"ATCHISON, MR ALAN",Residential Care
Peterborough City Council,Adults,Independent Sector Placements,Services,11/07/2018,30186038,3103.92,Revenue,"ATCHISON, MR ALAN",Residential Care
Peterborough City Council,Adults,Independent Sector Placements,Services,11/07/2018,30186039,4288,Revenue,"ATCHISON, MR ALAN",Residential Care
Peterborough City Council,Adults,Independent Sector Placements,Services,11/07/2018,30186040,2794.32,Revenue,"ATCHISON, MR ALAN",Residential Care
Peterborough City Council,Adults,Independent Sector Placements,Services,11/07/2018,30186041,685.28,Revenue,"ATCHISON, MR ALAN",Day Care
Peterborough City Council,Adults,Independent Sector Placements,Services,11/07/2018,30186042,3812.84,Revenue,"ATCHISON, MR ALAN",Residential Care
Peterborough City Council,Children's & Safeguarding,External Education Placements,Services,11/07/2018,30186045,2915,Revenue,Gosberton House Academy,Education Expenses
Peterborough City Council,Corporate,Corporate,Non Revenue,11/07/2018,30186053,2026.21,Balance Sheet,The Prudential Assurance Company Ltd,Pensions
Peterborough City Council,Corporate,Corporate,Non Revenue,11/07/2018,30186054,4658.46,Balance Sheet,The Prudential Assurance Company Ltd,Pensions
Peterborough City Council,Adults,Independent Sector Placements,Services,11/07/2018,30186059,5061.84,Revenue,Turning Point Services Ltd,Residential Care
Peterborough City Council,Adults,Independent Sector Placements,Services,11/07/2018,30186060,5046.2,Revenue,Turning Point Services Ltd,Residential Care
Peterborough City Council,Adults,Independent Sector Placements,Services,11/07/2018,30186061,6172.88,Revenue,Turning Point Services Ltd,Residential Care
Peterborough City Council,Adults,Independent Sector Placements,Services,11/07/2018,30186062,3200,Revenue,"ATCHISON, MR ALAN",Residential Care
Peterborough City Council,Adults,Independent Sector Placements,Services,11/07/2018,30186063,660,Revenue,"ATCHISON, MR ALAN",Day Care
Peterborough City Council,Adults,Independent Sector Placements,Services,11/07/2018,30186064,660,Revenue,"ATCHISON, MR ALAN",Day Care
Peterborough City Council,Adults,Independent Sector Placements,Services,11/07/2018,30186065,2337.52,Revenue,"ATCHISON, MR ALAN",Residential Care
Peterborough City Council,Adults,Independent Sector Placements,Services,11/07/2018,30186066,1954.32,Revenue,"ATCHISON, MR ALAN",Residential Care
Peterborough City Council,Adults,Independent Sector Placements,Services,11/07/2018,30186067,2345.2,Revenue,"ATCHISON, MR ALAN",Residential Care
Peterborough City Council,Adults,Independent Sector Placements,Services,11/07/2018,30186068,2162.24,Revenue,"ATCHISON, MR ALAN",Residential Care
Peterborough City Council,Adults,Independent Sector Placements,Services,11/07/2018,30186069,3625.08,Revenue,"ATCHISON, MR ALAN",Residential Care
Peterborough City Council,Adults,Independent Sector Placements,Services,11/07/2018,30186070,4391.48,Revenue,"ATCHISON, MR ALAN",Residential Care
Peterborough City Council,Adults,Independent Sector Placements,Services,11/07/2018,30186072,756,Revenue,"ATCHISON, MR ALAN",Residential Care
Peterborough City Council,Adults,Independent Sector Placements,Services,11/07/2018,30186073,1954.32,Revenue,"ATCHISON, MR ALAN",Residential Care
Peterborough City Council,Adults,Independent Sector Placements,Services,11/07/2018,30186074,5234.52,Revenue,"ATCHISON, MR ALAN",Residential Care
Peterborough City Council,Adults,Independent Sector Placements,Services,11/07/2018,30186076,4677.96,Revenue,Turning Point Services Ltd,Residential Care
Peterborough City Council,Adults,Independent Sector Placements,Services,11/07/2018,30186077,11632.6,Revenue,Turning Point Services Ltd,Residential Care
Peterborough City Council,Adults,Independent Sector Placements,Services,11/07/2018,30186078,5635.2,Revenue,Turning Point Services Ltd,Residential Care
Peterborough City Council,Adults,Independent Sector Placements,Services,11/07/2018,30186079,6167.28,Revenue,Turning Point Services Ltd,Residential Care
Peterborough City Council,Adults,Independent Sector Placements,Services,11/07/2018,30186080,4101.64,Revenue,Turning Point Services Ltd,Residential Care
Peterborough City Council,Adults,Independent Sector Placements,Services,11/07/2018,30186081,6939.08,Revenue,Turning Point Services Ltd,Residential Care
Peterborough City Council,Adults,Independent Sector Placements,Services,11/07/2018,30186082,500.8,Revenue,Turning Point Services Ltd,Residential Care
Peterborough City Council,Adults,Independent Sector Placements,Services,11/07/2018,30186083,5635.2,Revenue,Turning Point Services Ltd,Residential Care
Peterborough City Council,Adults,Independent Sector Placements,Services,11/07/2018,30186084,6886.68,Revenue,Turning Point Services Ltd,Residential Care
Peterborough City Council,Adults,Independent Sector Placements,Services,11/07/2018,30186085,5449.76,Revenue,Turning Point Services Ltd,Residential Care
Peterborough City Council,Adults,Independent Sector Placements,Services,11/07/2018,30186088,6473.88,Revenue,Turning Point Services Ltd,Residential Care
Peterborough City Council,Adults,Independent Sector Placements,Services,11/07/2018,30186089,5078.04,Revenue,Turning Point Services Ltd,Residential Care
Peterborough City Council,Adults,Independent Sector Placements,Services,11/07/2018,30186092,6473.88,Revenue,Turning Point Services Ltd,Residential Care
Peterborough City Council,Adults,Block Contracts,Services,11/07/2018,30186094,596.6,Revenue,FIRST PRIORITY HOUSING ASSOCIATION LTD,Home Care
Peterborough City Council,Adults,Independent Sector Placements,Services,11/07/2018,30186101,16651.6,Revenue,Turning Point Services Ltd,Residential Care
Peterborough City Council,Adults,Independent Sector Placements,Services,11/07/2018,30186111,976,Revenue,THE HELPING HANDS GROUP,Day Care
Peterborough City Council,Adults,Independent Sector Placements,Services,11/07/2018,30186120,1599.72,Revenue,Advinia Care Homes Ltd,Residential Care
Peterborough City Council,Adults,Independent Sector Placements,Services,11/07/2018,30186135,504,Revenue,THE HELPING HANDS GROUP,Day Care
Peterborough City Council,Adults,Independent Sector Placements,Services,11/07/2018,30186139,568.5,Revenue,THE HELPING HANDS GROUP,Day Care
Peterborough City Council,Adults,Independent Sector Placements,Services,11/07/2018,30186142,732,Revenue,THE HELPING HANDS GROUP,Day Care
Peterborough City Council,Adults,Independent Sector Placements,Services,11/07/2018,30186143,1134,Revenue,THE HELPING HANDS GROUP,Day Care
Peterborough City Council,Adults,Independent Sector Placements,Services,11/07/2018,30186144,976,Revenue,THE HELPING HANDS GROUP,Day Care
Peterborough City Council,Adults,Independent Sector Placements,Services,11/07/2018,30186148,663.75,Revenue,THE HELPING HANDS GROUP,Day Care
Peterborough City Council,Adults,Independent Sector Placements,Services,11/07/2018,30186149,1062,Revenue,THE HELPING HANDS GROUP,Day Care
Peterborough City Council,Adults,Independent Sector Placements,Services,11/07/2018,30186151,976,Revenue,THE HELPING HANDS GROUP,Day Care
Peterborough City Council,Adults,Independent Sector Placements,Services,11/07/2018,30186152,1460.25,Revenue,THE HELPING HANDS GROUP,Day Care
Peterborough City Council,Adults,Independent Sector Placements,Services,11/07/2018,30186153,504,Revenue,THE HELPING HANDS GROUP,Day Care
Peterborough City Council,Adults,Independent Sector Placements,Services,11/07/2018,30186155,531,Revenue,THE HELPING HANDS GROUP,Day Care
Peterborough City Council,Adults,Independent Sector Placements,Services,11/07/2018,30186156,3453.75,Revenue,THE HELPING HANDS GROUP,Day Care
Peterborough City Council,Corporate Items,Corporate Services,Agency Staff,11/07/2018,30186166,11033.62,Revenue,Skanska Construction UK Ltd,External Temporary Staff
Peterborough City Council,Adults,Independent Sector Placements,Services,11/07/2018,30186189,504,Revenue,THE HELPING HANDS GROUP,Day Care
Peterborough City Council,Children's & Safeguarding,Access to Resources & Specialist Commissioning,Services,11/07/2018,30186204,910.71,Revenue,Locate Accommodation Ltd,Boarding Out Allowances
Peterborough City Council,Children's & Safeguarding,Access to Resources & Specialist Commissioning,Services,11/07/2018,30186205,553.57,Revenue,Locate Accommodation Ltd,Boarding Out Allowances
Peterborough City Council,Children's & Safeguarding,Access to Resources & Specialist Commissioning,Services,11/07/2018,30186206,500,Revenue,Locate Accommodation Ltd,Boarding Out Allowances
Peterborough City Council,Children's & Safeguarding,Access to Resources & Specialist Commissioning,Services,11/07/2018,30186208,553.57,Revenue,Locate Accommodation Ltd,Boarding Out Allowances
Peterborough City Council,Communities,Performance & Information,Agency Staff,11/07/2018,30186241,788.67,Revenue,Reed Specialist Recruitment Limited,External Temporary Staff
Peterborough City Council,Communities,Performance & Information,Agency Staff,11/07/2018,30186241,197.21,Revenue,Reed Specialist Recruitment Limited,External Temporary Staff
Peterborough City Council,Adults,Independent Sector Placements,Services,11/07/2018,30186245,4454.84,Revenue,Craegmoor Priory Group,Residential Care
Peterborough City Council,Adults,Independent Sector Placements,Services,11/07/2018,30186246,4454.84,Revenue,Craegmoor Priory Group,Residential Care
Peterborough City Council,Children's & Safeguarding,Child Health,Services,11/07/2018,30186258,1078.92,Revenue,Cannon Hygiene UK Limited,Refuse Collection
Peterborough City Council,Adults,Independent Sector Placements,Services,11/07/2018,30186272,6246.43,Revenue,Barchester Healthcare (Werrington Lodge),Residential Care
Peterborough City Council,Adults,Independent Sector Placements,Services,11/07/2018,30186273,-972.9,Revenue,Barchester Healthcare (Werrington Lodge),Residential Care
Peterborough City Council,Adults,Independent Sector Placements,Services,11/07/2018,30186274,5676.21,Revenue,Barchester Healthcare (Werrington Lodge),Residential Care
Peterborough City Council,Communities,Housing,Services,11/07/2018,30186282,560,Revenue,Singh and Sons Property Management Ltd,Temporary Accommodation Costs
Peterborough City Council,Corporate Property,Commercial Propety,Services,11/07/2018,30186289,800,Revenue,Yaaser Vanderman,Legal Costs
Peterborough City Council,Adults,Independent Sector Placements,Services,11/07/2018,8000118637,945,Revenue,Sagecare,Home Care
Peterborough City Council,Adults,Independent Sector Placements,Services,11/07/2018,8000118640,892.5,Revenue,Sagecare,Home Care
Peterborough City Council,Adults,Independent Sector Placements,Services,11/07/2018,8000118641,3600,Revenue,Sagecare,Home Care
Peterborough City Council,Adults,Independent Sector Placements,Services,11/07/2018,8000118642,765,Revenue,Sagecare,Home Care
Peterborough City Council,Adults,Independent Sector Placements,Services,11/07/2018,8000118647,630,Revenue,Sagecare,Home Care
Peterborough City Council,Adults,Independent Sector Placements,Services,11/07/2018,8000118649,735,Revenue,Sagecare,Home Care
Peterborough City Council,Adults,Independent Sector Placements,Services,11/07/2018,8000118656,845.46,Revenue,Sagecare,Home Care
Peterborough City Council,Adults,Independent Sector Placements,Services,11/07/2018,8000118658,2536.38,Revenue,Sagecare,Home Care
Peterborough City Council,Adults,Independent Sector Placements,Services,11/07/2018,8000118662,582.12,Revenue,Sagecare,Home Care
Peterborough City Council,Adults,Independent Sector Placements,Services,11/07/2018,8000118665,970.2,Revenue,Sagecare,Home Care
Peterborough City Council,Adults,Independent Sector Placements,Services,11/07/2018,8000118669,904.83,Revenue,Sagecare,Home Care
Peterborough City Council,Adults,Independent Sector Placements,Services,11/07/2018,8000118674,956.34,Revenue,Sagecare,Home Care
Peterborough City Council,Adults,Independent Sector Placements,Services,11/07/2018,8000118676,679.14,Revenue,Sagecare,Home Care
Peterborough City Council,Adults,Independent Sector Placements,Services,11/07/2018,8000118677,595.98,Revenue,Sagecare,Home Care
Peterborough City Council,Adults,Independent Sector Placements,Services,11/07/2018,8000118679,942.48,Revenue,Sagecare,Home Care
Peterborough City Council,Adults,Independent Sector Placements,Services,11/07/2018,8000118682,2633.4,Revenue,Sagecare,Home Care
Peterborough City Council,Adults,Independent Sector Placements,Services,11/07/2018,8000118684,776.16,Revenue,Sagecare,Home Care
Peterborough City Council,Adults,Independent Sector Placements,Services,11/07/2018,8000118685,582.12,Revenue,Sagecare,Home Care
Peterborough City Council,Adults,Independent Sector Placements,Services,11/07/2018,8000118690,675.68,Revenue,Sagecare,Home Care
Peterborough City Council,Adults,Independent Sector Placements,Services,11/07/2018,8000118691,1067.22,Revenue,Sagecare,Home Care
Peterborough City Council,Adults,Independent Sector Placements,Services,11/07/2018,8000118692,1746.36,Revenue,Sagecare,Home Care
Peterborough City Council,Adults,Independent Sector Placements,Services,11/07/2018,8000118694,568.26,Revenue,Sagecare,Home Care
Peterborough City Council,Adults,Independent Sector Placements,Services,11/07/2018,8000118695,582.12,Revenue,Sagecare,Home Care
Peterborough City Council,Adults,Independent Sector Placements,Services,11/07/2018,8000118697,970.2,Revenue,Sagecare,Home Care
Peterborough City Council,Adults,Independent Sector Placements,Services,11/07/2018,8000118699,1940.4,Revenue,Sagecare,Home Care
Peterborough City Council,Adults,Independent Sector Placements,Services,11/07/2018,8000118704,1548.39,Revenue,Sagecare,Home Care
Peterborough City Council,Adults,Independent Sector Placements,Services,11/07/2018,8000118705,665.28,Revenue,Sagecare,Home Care
Peterborough City Council,Adults,Independent Sector Placements,Services,11/07/2018,8000118706,502.43,Revenue,Sagecare,Home Care
Peterborough City Council,Adults,Independent Sector Placements,Services,11/07/2018,8000118716,1940.4,Revenue,Sagecare,Home Care
Peterborough City Council,Adults,Independent Sector Placements,Services,11/07/2018,8000118717,1552.78,Revenue,Sagecare,Home Care
Peterborough City Council,Adults,Independent Sector Placements,Services,11/07/2018,8000118718,1358.28,Revenue,Sagecare,Home Care
Peterborough City Council,Adults,Independent Sector Placements,Services,11/07/2018,8000118719,873.18,Revenue,Sagecare,Home Care
Peterborough City Council,Adults,Independent Sector Placements,Services,11/07/2018,8000118722,1245.71,Revenue,Sagecare,Home Care
Peterborough City Council,Adults,Independent Sector Placements,Services,11/07/2018,8000118724,873.18,Revenue,Sagecare,Home Care
Peterborough City Council,Adults,Independent Sector Placements,Services,11/07/2018,8000118726,1940.4,Revenue,Sagecare,Home Care
Peterborough City Council,Adults,Independent Sector Placements,Services,11/07/2018,8000118727,1746.36,Revenue,Sagecare,Home Care
Peterborough City Council,Adults,Independent Sector Placements,Services,11/07/2018,8000118729,970.2,Revenue,Sagecare,Home Care
Peterborough City Council,Adults,Independent Sector Placements,Services,11/07/2018,8000118732,1746.36,Revenue,Sagecare,Home Care
Peterborough City Council,Adults,Independent Sector Placements,Services,11/07/2018,8000118737,862.79,Revenue,Sagecare,Home Care
Peterborough City Council,Adults,Independent Sector Placements,Services,11/07/2018,8000118739,848.93,Revenue,Sagecare,Home Care
Peterborough City Council,Adults,Independent Sector Placements,Services,11/07/2018,8000118741,776.16,Revenue,Sagecare,Home Care
Peterborough City Council,Adults,Independent Sector Placements,Services,11/07/2018,8000118742,637.79,Revenue,Sagecare,Home Care
Peterborough City Council,Adults,Independent Sector Placements,Services,11/07/2018,8000118743,678.68,Revenue,Sagecare,Home Care
Peterborough City Council,Adults,Independent Sector Placements,Services,11/07/2018,8000118744,679.83,Revenue,Sagecare,Home Care
Peterborough City Council,Adults,Independent Sector Placements,Services,11/07/2018,8000118747,755.37,Revenue,Sagecare,Home Care
Peterborough City Council,Adults,Independent Sector Placements,Services,11/07/2018,8000118748,602.91,Revenue,Sagecare,Home Care
Peterborough City Council,Adults,Independent Sector Placements,Services,11/07/2018,8000118752,2065.14,Revenue,Sagecare,Home Care
Peterborough City Council,Adults,Independent Sector Placements,Services,11/07/2018,8000118755,970.43,Revenue,Sagecare,Home Care
Peterborough City Council,Adults,Independent Sector Placements,Services,11/07/2018,8000118756,2328.48,Revenue,Sagecare,Home Care
Peterborough City Council,Adults,Independent Sector Placements,Services,11/07/2018,8000118758,643.34,Revenue,Sagecare,Home Care
Peterborough City Council,Adults,Independent Sector Placements,Services,11/07/2018,8000119043,562.5,Revenue,Cambridgeshirehomecare,Home Care
Peterborough City Council,Adults,Independent Sector Placements,Services,11/07/2018,8000119044,750,Revenue,Cambridgeshirehomecare,Home Care
Peterborough City Council,Adults,Independent Sector Placements,Services,11/07/2018,8000119045,540,Revenue,Cambridgeshirehomecare,Home Care
Peterborough City Council,Adults,Independent Sector Placements,Services,11/07/2018,8000119047,11181.86,Revenue,Cambridgeshirehomecare,Home Care
Peterborough City Council,Adults,Independent Sector Placements,Services,11/07/2018,8000119049,618.75,Revenue,Cambridgeshirehomecare,Home Care
Peterborough City Council,Adults,Independent Sector Placements,Services,11/07/2018,8000119170,519.75,Revenue,Sagecare,Home Care
Peterborough City Council,Adults,Independent Sector Placements,Services,11/07/2018,8000119172,2976.44,Revenue,Sagecare,Home Care
Peterborough City Council,Adults,Independent Sector Placements,Services,11/07/2018,8000119175,595.98,Revenue,Sagecare,Home Care
Peterborough City Council,Adults,Independent Sector Placements,Services,11/07/2018,8000120033,568.26,Revenue,Sagecare,Home Care
Peterborough City Council,Adults,Independent Sector Placements,Services,11/07/2018,8000120484,3453.44,Revenue,Redacted Personal Data,Adult Social Care Direct Payment
Peterborough City Council,Adults,Independent Sector Placements,Services,11/07/2018,8000120604,3066.3,Revenue,Redacted Personal Data,Adult Social Care Direct Payment
Peterborough City Council,Legal & Democratic,Democratic Services,Contract Hire and Operating Leases,11/07/2018,8000118584,534.32,Revenue,Lex Autolease Ltd,Leasing Charges
Peterborough City Council,Sustainable Growth Strategy,Housing & Strategic Planning,Agency Staff,12/07/2018,30187307,11760,Revenue,North Kesteven District Council,External Temporary Staff
Peterborough City Council,Corporate,Corporate,Non Revenue,13/07/2018,30183098,9519.67,Capital,The Froglife Trust,Grant Payment
Peterborough City Council,Children's & Safeguarding,Child Health,Repair & Maintenance of Buildings,13/07/2018,30183156,2035,Revenue,Ace 4 Digital,Premises Maintenance
Peterborough City Council,Peterborough Highway Services,Transport & Infrastructure Commissioning,"Tools, Equipment, Furniture & Materials",13/07/2018,30183158,1257.95,Revenue,Unicard Ltd,Computer Hardware
Peterborough City Council,"Director, OP & JV",Growth HoS,Third Party Payment,13/07/2018,30183171,100000,Revenue,Opportunity Peterborough T/A OP Ltd,Contributions
Peterborough City Council,Corporate Property,Commercial Propety,Third Party Payment,13/07/2018,30183172,16750,Revenue,Opportunity Peterborough T/A OP Ltd,Third Party Payments - Contract
Peterborough City Council,Corporate,Corporate,Non Revenue,13/07/2018,30183178,1961,Capital,NPS Peterborough Ltd,Consultants Fees
Peterborough City Council,Communities,Housing,Services,13/07/2018,30183254,4500,Revenue,Light Project Peterborough,Grant Payment
Peterborough City Council,Communities,Community Safety,Services,13/07/2018,30183264,10660.18,Revenue,Cambridgeshire & Peterborough Fire Authority,Grant Payment
Peterborough City Council,Children's & Safeguarding,Early Help ASC/CSC,Services,13/07/2018,30183289,1373.82,Revenue,Virgin Media Ltd,Telephones
Peterborough City Council,Westcombe Engineering,Westcombe Engineering,"Tools, Equipment, Furniture & Materials",13/07/2018,30183303,1166,Revenue,AALCO,Items For Resale
Peterborough City Council,Adults,Independent Sector Placements,Services,13/07/2018,30183411,2413.4,Revenue,Linkage Community Trust Limited,Residential Care
Peterborough City Council,Financial Services,Finance,Agency Staff,13/07/2018,30183419,1035.93,Revenue,Morgan Hunt UK Ltd,External Temporary Staff
Peterborough City Council,Adults,Day opportunities - Older People,Agency Staff,13/07/2018,30183423,4847,Revenue,Swim Recruitment,External Temporary Staff
Peterborough City Council,Adults,Independent Sector Placements,Services,13/07/2018,30183446,979.8,Revenue,Mencap,Home Care
Peterborough City Council,Commissioning and Commercial Operations,Commissioning,Services,13/07/2018,30183475,16000,Revenue,Barnardo Services Limited,Hired Services
Peterborough City Council,Adults,Independent Sector Placements,Services,13/07/2018,30183535,2215.2,Revenue,Mencap,Home Care
Peterborough City Council,Adults,Independent Sector Placements,Services,13/07/2018,30183536,7277.4,Revenue,Mencap,Home Care
Peterborough City Council,Education,PFI,Services,13/07/2018,30183547,4071.26,Revenue,IIC by Education (P'boro) Ltd,Service Charge
Peterborough City Council,Adults,Independent Sector Placements,Services,13/07/2018,30183552,852,Revenue,Mencap,Home Care
Peterborough City Council,Adults,Independent Sector Placements,Services,13/07/2018,30183553,852,Revenue,Mencap,Home Care
Peterborough City Council,Adults,Independent Sector Placements,Services,13/07/2018,30183555,6287.6,Revenue,Mencap,Residential Care
Peterborough City Council,Adults,Independent Sector Placements,Services,13/07/2018,30183556,681.6,Revenue,Mencap,Home Care
Peterborough City Council,Adults,Independent Sector Placements,Services,13/07/2018,30183557,7439.2,Revenue,Mencap,Home Care
Peterborough City Council,Adults,Independent Sector Placements,Services,13/07/2018,30183558,1636.8,Revenue,Mencap,Home Care
Peterborough City Council,Adults,Independent Sector Placements,Services,13/07/2018,30183559,695.8,Revenue,Mencap,Home Care
Peterborough City Council,Adults,Independent Sector Placements,Services,13/07/2018,30183560,1882.2,Revenue,Mencap,Home Care
Peterborough City Council,Adults,Independent Sector Placements,Services,13/07/2018,30183561,1476.8,Revenue,Mencap,Home Care
Peterborough City Council,Adults,Independent Sector Placements,Services,13/07/2018,30183564,3687.04,Revenue,Mencap,Home Care
Peterborough City Council,Adults,Independent Sector Placements,Services,13/07/2018,30183565,562.4,Revenue,Mencap,Home Care
Peterborough City Council,Adults,Independent Sector Placements,Services,13/07/2018,30183566,8106,Revenue,Mencap,Home Care
Peterborough City Council,Adults,Independent Sector Placements,Services,13/07/2018,30183568,1500.64,Revenue,Mencap,Home Care
Peterborough City Council,Adults,Independent Sector Placements,Services,13/07/2018,30183569,568,Revenue,Mencap,Home Care
Peterborough City Council,Adults,Independent Sector Placements,Services,13/07/2018,30183590,1605.48,Revenue,Avery House (Peterborough) t/a Brighterkind,Residential Care
Peterborough City Council,Adults,Independent Sector Placements,Services,13/07/2018,30183601,1269.48,Revenue,Avery House (Peterborough) t/a Brighterkind,Residential Care
Peterborough City Council,Adults,Independent Sector Placements,Services,13/07/2018,30183602,1473.2,Revenue,Avery House (Peterborough) t/a Brighterkind,Residential Care
Peterborough City Council,Westcombe Engineering,Westcombe Engineering,"Tools, Equipment, Furniture & Materials",13/07/2018,30183608,682.86,Revenue,Carillon Industrial Services Ltd,Items For Resale
Peterborough City Council,Education,PFI,Services,13/07/2018,30183626,19075,Revenue,IIC by Education (P'boro) Ltd,Service Charge
Peterborough City Council,Adults,Independent Sector Placements,Services,13/07/2018,30183635,2880.5,Revenue,Avery House (Peterborough) t/a Brighterkind,Residential Care
Peterborough City Council,Adults,Independent Sector Placements,Services,13/07/2018,30183636,1211.16,Revenue,Avery House (Peterborough) t/a Brighterkind,Residential Care
Peterborough City Council,Adults,Independent Sector Placements,Services,13/07/2018,30183638,2210.6,Revenue,Avery House (Peterborough) t/a Brighterkind,Residential Care
Peterborough City Council,Adults,Independent Sector Placements,Services,13/07/2018,30183639,1281.48,Revenue,Avery House (Peterborough) t/a Brighterkind,Residential Care
